Organisation Code,Organisation Label,Effective Date,Organisational Unit,Service Division Label,Category Internal Name,Purpose,Detailed Expenditure Code,Payment Date,Transaction Number,Irrecoverable VAT Amount,Amount,Capital Or Revenue,Beneficiary Name,Procurement Card
Http://opendatacommunities.org/id/metropolitan-district-council/leeds,Leeds City Council,31/07/2021,Resources and Housing,Leeds Building Services,Supplies and Services,Operational Materials,205,08/07/2021,2107-00001,0.00,36.00,R,A & A ELECTRICAL DISTRIBUTORS LTD,No
Http://opendatacommunities.org/id/metropolitan-district-council/leeds,Leeds City Council,31/07/2021,Resources and Housing,Leeds Building Services,Supplies and Services,Operational Materials,205,13/07/2021,2107-00002,0.00,148.02,R,A & A ELECTRICAL DISTRIBUTORS LTD,No
Http://opendatacommunities.org/id/metropolitan-district-council/leeds,Leeds City Council,31/07/2021,Resources and Housing,Strategic Housing Partnerships,Capital,CONSTRUCTION,3,08/07/2021,2107-00003,0.00,7487.50,C,A & C Galley,No
Http://opendatacommunities.org/id/metropolitan-district-council/leeds,Leeds City Council,31/07/2021,City Development,Libraries Arts & Heritage,Supplies and Services,Advertising,211,09/07/2021,2107-00004,0.00,1500.00,R,A & N Media Finance Services Ltd,No
Http://opendatacommunities.org/id/metropolitan-district-council/leeds,Leeds City Council,31/07/2021,Adults and Health,Services For Older People Under 65 P/Dis,Agency Payments,Sheltered Accommodation,569,21/07/2021,2107-00005,0.00,5400.00,R,A & V TRANSITIONAL HOMES,No
Http://opendatacommunities.org/id/metropolitan-district-council/leeds,Leeds City Council,31/07/2021,Communities and Environment,Benefits Welfare and Poverty,Supplies and Services,Grant Related Expenditure,290,28/07/2021,2107-00006,0.00,500.00,R,REDACTED PERSONAL DATA,No
Http://opendatacommunities.org/id/metropolitan-district-council/leeds,Leeds City Council,31/07/2021,Resources and Housing,Leeds Building Services,Supplies and Services,Operational Materials,205,13/07/2021,2107-00007,0.00,16.89,R,A ANDREWS & SONS (MARBLES & TILES),No
Http://opendatacommunities.org/id/metropolitan-district-council/leeds,Leeds City Council,31/07/2021,Resources and Housing,Leeds Building Services,Supplies and Services,Operational Materials,205,13/07/2021,2107-00008,0.00,10.69,R,A ANDREWS & SONS (MARBLES & TILES),No
Http://opendatacommunities.org/id/metropolitan-district-council/leeds,Leeds City Council,31/07/2021,Children and Families,Social Care,Agency Payments,Services Rendered By Other Organisations,511,02/07/2021,2107-00009,0.00,173.94,R,REDACTED PERSONAL DATA,No
Http://opendatacommunities.org/id/metropolitan-district-council/leeds,Leeds City Council,31/07/2021,City Development,Libraries Arts & Heritage,Supplies and Services,Operational Furniture And Equipment,203,15/07/2021,2107-00010,0.00,4656.03,R,A C Entertainment Technologies Ltd,No
Http://opendatacommunities.org/id/metropolitan-district-council/leeds,Leeds City Council,31/07/2021,City Development,Libraries Arts & Heritage,Supplies and Services,Operational Furniture And Equipment,203,15/07/2021,2107-00011,0.00,5070.00,R,A C Entertainment Technologies Ltd,No
Http://opendatacommunities.org/id/metropolitan-district-council/leeds,Leeds City Council,31/07/2021,City Development,Libraries Arts & Heritage,Supplies and Services,Operational Furniture And Equipment,203,15/07/2021,2107-00012,0.00,485.03,R,A C Entertainment Technologies Ltd,No
Http://opendatacommunities.org/id/metropolitan-district-council/leeds,Leeds City Council,31/07/2021,City Development,Libraries Arts & Heritage,Supplies and Services,Operational Furniture And Equipment,203,16/07/2021,2107-00013,0.00,741.00,R,A C Entertainment Technologies Ltd,No
Http://opendatacommunities.org/id/metropolitan-district-council/leeds,Leeds City Council,31/07/2021,Children and Families,Social Care,Agency Payments,Services Rendered By Other Organisations,511,02/07/2021,2107-00014,0.00,695.76,R,REDACTED PERSONAL DATA,No
Http://opendatacommunities.org/id/metropolitan-district-council/leeds,Leeds City Council,31/07/2021,Resources and Housing,Leeds Building Services,Supplies and Services,Other Hired And Contracted Services,265,01/07/2021,2107-00015,0.00,85.00,R,A Coole Electrical Ltd,No
Http://opendatacommunities.org/id/metropolitan-district-council/leeds,Leeds City Council,31/07/2021,Resources and Housing,Leeds Building Services,Supplies and Services,Other Hired And Contracted Services,265,01/07/2021,2107-00016,0.00,85.00,R,A Coole Electrical Ltd,No
Http://opendatacommunities.org/id/metropolitan-district-council/leeds,Leeds City Council,31/07/2021,Resources and Housing,Leeds Building Services,Supplies and Services,Other Hired And Contracted Services,265,01/07/2021,2107-00017,0.00,85.00,R,A Coole Electrical Ltd,No
Http://opendatacommunities.org/id/metropolitan-district-council/leeds,Leeds City Council,31/07/2021,Resources and Housing,Leeds Building Services,Supplies and Services,Other Hired And Contracted Services,265,01/07/2021,2107-00018,0.00,85.00,R,A Coole Electrical Ltd,No
Http://opendatacommunities.org/id/metropolitan-district-council/leeds,Leeds City Council,31/07/2021,Resources and Housing,Leeds Building Services,Supplies and Services,Other Hired And Contracted Services,265,01/07/2021,2107-00019,0.00,85.00,R,A Coole Electrical Ltd,No
Http://opendatacommunities.org/id/metropolitan-district-council/leeds,Leeds City Council,31/07/2021,Resources and Housing,Leeds Building Services,Supplies and Services,Other Hired And Contracted Services,265,01/07/2021,2107-00020,0.00,85.00,R,A Coole Electrical Ltd,No
Http://opendatacommunities.org/id/metropolitan-district-council/leeds,Leeds City Council,31/07/2021,Resources and Housing,Leeds Building Services,Supplies and Services,Other Hired And Contracted Services,265,01/07/2021,2107-00021,0.00,135.00,R,A Coole Electrical Ltd,No
Http://opendatacommunities.org/id/metropolitan-district-council/leeds,Leeds City Council,31/07/2021,Resources and Housing,Leeds Building Services,Supplies and Services,Other Hired And Contracted Services,265,01/07/2021,2107-00022,0.00,85.00,R,A Coole Electrical Ltd,No
Http://opendatacommunities.org/id/metropolitan-district-council/leeds,Leeds City Council,31/07/2021,Resources and Housing,Leeds Building Services,Supplies and Services,Other Hired And Contracted Services,265,01/07/2021,2107-00023,0.00,85.00,R,A Coole Electrical Ltd,No
Http://opendatacommunities.org/id/metropolitan-district-council/leeds,Leeds City Council,31/07/2021,Resources and Housing,Leeds Building Services,Supplies and Services,Other Hired And Contracted Services,265,01/07/2021,2107-00024,0.00,85.00,R,A Coole Electrical Ltd,No
Http://opendatacommunities.org/id/metropolitan-district-council/leeds,Leeds City Council,31/07/2021,Resources and Housing,Leeds Building Services,Supplies and Services,Other Hired And Contracted Services,265,06/07/2021,2107-00025,0.00,250.00,R,A Coole Electrical Ltd,No
Http://opendatacommunities.org/id/metropolitan-district-council/leeds,Leeds City Council,31/07/2021,Resources and Housing,Leeds Building Services,Supplies and Services,Other Hired And Contracted Services,265,08/07/2021,2107-00026,0.00,2355.00,R,A Coole Electrical Ltd,No
Http://opendatacommunities.org/id/metropolitan-district-council/leeds,Leeds City Council,31/07/2021,Resources and Housing,Leeds Building Services,Supplies and Services,Other Hired And Contracted Services,265,08/07/2021,2107-00027,0.00,2880.00,R,A Coole Electrical Ltd,No
Http://opendatacommunities.org/id/metropolitan-district-council/leeds,Leeds City Council,31/07/2021,Resources and Housing,Leeds Building Services,Supplies and Services,Other Hired And Contracted Services,265,09/07/2021,2107-00028,0.00,250.00,R,A Coole Electrical Ltd,No
Http://opendatacommunities.org/id/metropolitan-district-council/leeds,Leeds City Council,31/07/2021,Resources and Housing,Leeds Building Services,Supplies and Services,Other Hired And Contracted Services,265,09/07/2021,2107-00029,0.00,250.00,R,A Coole Electrical Ltd,No
Http://opendatacommunities.org/id/metropolitan-district-council/leeds,Leeds City Council,31/07/2021,Resources and Housing,Leeds Building Services,Supplies and Services,Other Hired And Contracted Services,265,15/07/2021,2107-00030,0.00,250.00,R,A Coole Electrical Ltd,No
Http://opendatacommunities.org/id/metropolitan-district-council/leeds,Leeds City Council,31/07/2021,Resources and Housing,Leeds Building Services,Supplies and Services,Other Hired And Contracted Services,265,16/07/2021,2107-00031,0.00,85.00,R,A Coole Electrical Ltd,No
Http://opendatacommunities.org/id/metropolitan-district-council/leeds,Leeds City Council,31/07/2021,Resources and Housing,Leeds Building Services,Supplies and Services,Other Hired And Contracted Services,265,16/07/2021,2107-00032,0.00,250.00,R,A Coole Electrical Ltd,No
Http://opendatacommunities.org/id/metropolitan-district-council/leeds,Leeds City Council,31/07/2021,Resources and Housing,Leeds Building Services,Supplies and Services,Other Hired And Contracted Services,265,16/07/2021,2107-00033,0.00,2758.00,R,A Coole Electrical Ltd,No
Http://opendatacommunities.org/id/metropolitan-district-council/leeds,Leeds City Council,31/07/2021,Resources and Housing,Leeds Building Services,Supplies and Services,Other Hired And Contracted Services,265,16/07/2021,2107-00034,0.00,2830.00,R,A Coole Electrical Ltd,No
Http://opendatacommunities.org/id/metropolitan-district-council/leeds,Leeds City Council,31/07/2021,Resources and Housing,Leeds Building Services,Supplies and Services,Other Hired And Contracted Services,265,16/07/2021,2107-00035,0.00,2850.00,R,A Coole Electrical Ltd,No
Http://opendatacommunities.org/id/metropolitan-district-council/leeds,Leeds City Council,31/07/2021,Resources and Housing,Leeds Building Services,Supplies and Services,Other Hired And Contracted Services,265,16/07/2021,2107-00036,0.00,3323.00,R,A Coole Electrical Ltd,No
Http://opendatacommunities.org/id/metropolitan-district-council/leeds,Leeds City Council,31/07/2021,Resources and Housing,Leeds Building Services,Supplies and Services,Other Hired And Contracted Services,265,16/07/2021,2107-00037,0.00,3435.00,R,A Coole Electrical Ltd,No
Http://opendatacommunities.org/id/metropolitan-district-council/leeds,Leeds City Council,31/07/2021,Resources and Housing,Leeds Building Services,Supplies and Services,Other Hired And Contracted Services,265,16/07/2021,2107-00038,0.00,1890.00,R,A Coole Electrical Ltd,No
Http://opendatacommunities.org/id/metropolitan-district-council/leeds,Leeds City Council,31/07/2021,Resources and Housing,Leeds Building Services,Supplies and Services,Other Hired And Contracted Services,265,16/07/2021,2107-00039,0.00,1425.00,R,A Coole Electrical Ltd,No
Http://opendatacommunities.org/id/metropolitan-district-council/leeds,Leeds City Council,31/07/2021,Resources and Housing,Leeds Building Services,Supplies and Services,Other Hired And Contracted Services,265,16/07/2021,2107-00040,0.00,685.00,R,A Coole Electrical Ltd,No
Http://opendatacommunities.org/id/metropolitan-district-council/leeds,Leeds City Council,31/07/2021,Resources and Housing,Leeds Building Services,Supplies and Services,Other Hired And Contracted Services,265,16/07/2021,2107-00041,0.00,1275.00,R,A Coole Electrical Ltd,No
Http://opendatacommunities.org/id/metropolitan-district-council/leeds,Leeds City Council,31/07/2021,Resources and Housing,Leeds Building Services,Supplies and Services,Other Hired And Contracted Services,265,16/07/2021,2107-00042,0.00,953.00,R,A Coole Electrical Ltd,No
Http://opendatacommunities.org/id/metropolitan-district-council/leeds,Leeds City Council,31/07/2021,Resources and Housing,Leeds Building Services,Supplies and Services,Other Hired And Contracted Services,265,16/07/2021,2107-00043,0.00,1750.00,R,A Coole Electrical Ltd,No
Http://opendatacommunities.org/id/metropolitan-district-council/leeds,Leeds City Council,31/07/2021,Resources and Housing,Leeds Building Services,Supplies and Services,Other Hired And Contracted Services,265,16/07/2021,2107-00044,0.00,1733.00,R,A Coole Electrical Ltd,No
Http://opendatacommunities.org/id/metropolitan-district-council/leeds,Leeds City Council,31/07/2021,Resources and Housing,Leeds Building Services,Supplies and Services,Other Hired And Contracted Services,265,16/07/2021,2107-00045,0.00,1795.00,R,A Coole Electrical Ltd,No
Http://opendatacommunities.org/id/metropolitan-district-council/leeds,Leeds City Council,31/07/2021,Resources and Housing,Leeds Building Services,Supplies and Services,Other Hired And Contracted Services,265,16/07/2021,2107-00046,0.00,1570.00,R,A Coole Electrical Ltd,No
Http://opendatacommunities.org/id/metropolitan-district-council/leeds,Leeds City Council,31/07/2021,Resources and Housing,Leeds Building Services,Supplies and Services,Other Hired And Contracted Services,265,22/07/2021,2107-00047,0.00,1025.00,R,A Coole Electrical Ltd,No
Http://opendatacommunities.org/id/metropolitan-district-council/leeds,Leeds City Council,31/07/2021,Resources and Housing,Leeds Building Services,Supplies and Services,Other Hired And Contracted Services,265,22/07/2021,2107-00048,0.00,1195.00,R,A Coole Electrical Ltd,No
Http://opendatacommunities.org/id/metropolitan-district-council/leeds,Leeds City Council,31/07/2021,Resources and Housing,Leeds Building Services,Supplies and Services,Other Hired And Contracted Services,265,22/07/2021,2107-00049,0.00,1385.00,R,A Coole Electrical Ltd,No
Http://opendatacommunities.org/id/metropolitan-district-council/leeds,Leeds City Council,31/07/2021,Resources and Housing,Leeds Building Services,Supplies and Services,Other Hired And Contracted Services,265,22/07/2021,2107-00050,0.00,1665.00,R,A Coole Electrical Ltd,No
Http://opendatacommunities.org/id/metropolitan-district-council/leeds,Leeds City Council,31/07/2021,Children and Families,Social Care,Agency Payments,Contact,548,02/07/2021,2107-00051,0.00,36.00,R,REDACTED PERSONAL DATA,No
Http://opendatacommunities.org/id/metropolitan-district-council/leeds,Leeds City Council,31/07/2021,Communities and Environment,Customer Access,Supplies and Services,Bought In Professional Services,277,07/07/2021,2107-00052,0.00,13.50,R,A D Dumitru,No
Http://opendatacommunities.org/id/metropolitan-district-council/leeds,Leeds City Council,31/07/2021,Communities and Environment,Customer Access,Supplies and Services,Bought In Professional Services,277,07/07/2021,2107-00053,0.00,9.00,R,A D Dumitru,No
Http://opendatacommunities.org/id/metropolitan-district-council/leeds,Leeds City Council,31/07/2021,Communities and Environment,Customer Access,Supplies and Services,Bought In Professional Services,277,16/07/2021,2107-00054,0.00,18.00,R,A D Dumitru,No
Http://opendatacommunities.org/id/metropolitan-district-council/leeds,Leeds City Council,31/07/2021,Communities and Environment,Customer Access,Supplies and Services,Bought In Professional Services,277,16/07/2021,2107-00055,0.00,135.00,R,A D Dumitru,No
Http://opendatacommunities.org/id/metropolitan-district-council/leeds,Leeds City Council,31/07/2021,Communities and Environment,Customer Access,Supplies and Services,Bought In Professional Services,277,16/07/2021,2107-00056,0.00,13.50,R,A D Dumitru,No
Http://opendatacommunities.org/id/metropolitan-district-council/leeds,Leeds City Council,31/07/2021,Communities and Environment,Customer Access,Supplies and Services,Bought In Professional Services,277,16/07/2021,2107-00057,0.00,63.00,R,A D Dumitru,No
Http://opendatacommunities.org/id/metropolitan-district-council/leeds,Leeds City Council,31/07/2021,Communities and Environment,Customer Access,Supplies and Services,Bought In Professional Services,277,16/07/2021,2107-00058,0.00,27.00,R,A D Dumitru,No
Http://opendatacommunities.org/id/metropolitan-district-council/leeds,Leeds City Council,31/07/2021,Communities and Environment,Customer Access,Supplies and Services,Bought In Professional Services,277,16/07/2021,2107-00059,0.00,18.00,R,A D Dumitru,No
Http://opendatacommunities.org/id/metropolitan-district-council/leeds,Leeds City Council,31/07/2021,Communities and Environment,Customer Access,Supplies and Services,Bought In Professional Services,277,16/07/2021,2107-00060,0.00,22.50,R,A D Dumitru,No
Http://opendatacommunities.org/id/metropolitan-district-council/leeds,Leeds City Council,31/07/2021,Communities and Environment,Customer Access,Supplies and Services,Bought In Professional Services,277,16/07/2021,2107-00061,0.00,18.00,R,A D Dumitru,No
Http://opendatacommunities.org/id/metropolitan-district-council/leeds,Leeds City Council,31/07/2021,Communities and Environment,Communities,Supplies and Services,Other Hired And Contracted Services,265,16/07/2021,2107-00062,0.00,75.00,R,REDACTED PERSONAL DATA,No
Http://opendatacommunities.org/id/metropolitan-district-council/leeds,Leeds City Council,31/07/2021,Communities and Environment,Customer Access,Supplies and Services,Bought In Professional Services,277,21/07/2021,2107-00063,0.00,18.00,R,A D Dumitru,No
Http://opendatacommunities.org/id/metropolitan-district-council/leeds,Leeds City Council,31/07/2021,Communities and Environment,Customer Access,Supplies and Services,Bought In Professional Services,277,21/07/2021,2107-00064,0.00,18.00,R,A D Dumitru,No
Http://opendatacommunities.org/id/metropolitan-district-council/leeds,Leeds City Council,31/07/2021,Communities and Environment,Customer Access,Supplies and Services,Bought In Professional Services,277,21/07/2021,2107-00065,0.00,9.00,R,A D Dumitru,No
Http://opendatacommunities.org/id/metropolitan-district-council/leeds,Leeds City Council,31/07/2021,Communities and Environment,Customer Access,Supplies and Services,Bought In Professional Services,277,21/07/2021,2107-00066,0.00,18.00,R,A D Dumitru,No
Http://opendatacommunities.org/id/metropolitan-district-council/leeds,Leeds City Council,31/07/2021,Communities and Environment,Customer Access,Supplies and Services,Bought In Professional Services,277,21/07/2021,2107-00067,0.00,18.00,R,A D Dumitru,No
Http://opendatacommunities.org/id/metropolitan-district-council/leeds,Leeds City Council,31/07/2021,Communities and Environment,Communities,Supplies and Services,Other Hired And Contracted Services,265,26/07/2021,2107-00068,0.00,25.00,R,REDACTED PERSONAL DATA,No
Http://opendatacommunities.org/id/metropolitan-district-council/leeds,Leeds City Council,31/07/2021,Communities and Environment,Customer Access,Supplies and Services,Bought In Professional Services,277,29/07/2021,2107-00069,0.00,18.00,R,A D Dumitru,No
Http://opendatacommunities.org/id/metropolitan-district-council/leeds,Leeds City Council,31/07/2021,Communities and Environment,Customer Access,Supplies and Services,Bought In Professional Services,277,29/07/2021,2107-00070,0.00,18.00,R,A D Dumitru,No
Http://opendatacommunities.org/id/metropolitan-district-council/leeds,Leeds City Council,31/07/2021,Communities and Environment,Customer Access,Supplies and Services,Bought In Professional Services,277,29/07/2021,2107-00071,0.00,36.00,R,A D Dumitru,No
Http://opendatacommunities.org/id/metropolitan-district-council/leeds,Leeds City Council,31/07/2021,City Development,Economic Development,Supplies and Services,Grant Related Expenditure,290,12/07/2021,2107-00072,0.00,250.00,R,A D Hilder,No
Http://opendatacommunities.org/id/metropolitan-district-council/leeds,Leeds City Council,31/07/2021,Children and Families,Social Care,Agency Payments,Placement Support,550,28/07/2021,2107-00073,0.00,605.00,R,REDACTED PERSONAL DATA,No
Http://opendatacommunities.org/id/metropolitan-district-council/leeds,Leeds City Council,31/07/2021,Children and Families,Social Care,Agency Payments,Placement Support,550,29/07/2021,2107-00074,0.00,473.00,R,REDACTED PERSONAL DATA,No
Http://opendatacommunities.org/id/metropolitan-district-council/leeds,Leeds City Council,31/07/2021,Children and Families,Social Care,Agency Payments,Services Rendered By Voluntary Sector,505,02/07/2021,2107-00075,0.00,5705.24,R,REDACTED PERSONAL DATA,No
Http://opendatacommunities.org/id/metropolitan-district-council/leeds,Leeds City Council,31/07/2021,Children and Families,Social Care,Agency Payments,Services Rendered By Other Organisations,511,07/07/2021,2107-00076,0.00,104.52,R,REDACTED PERSONAL DATA,No
Http://opendatacommunities.org/id/metropolitan-district-council/leeds,Leeds City Council,31/07/2021,Children and Families,Social Care,Agency Payments,Services Rendered By Other Organisations,511,02/07/2021,2107-00077,0.00,173.94,R,REDACTED PERSONAL DATA,No
Http://opendatacommunities.org/id/metropolitan-district-council/leeds,Leeds City Council,31/07/2021,Children and Families,Social Care,Agency Payments,Services Rendered By Other Organisations,511,07/07/2021,2107-00078,0.00,418.08,R,REDACTED PERSONAL DATA,No
Http://opendatacommunities.org/id/metropolitan-district-council/leeds,Leeds City Council,31/07/2021,City Development,Economic Development,Supplies and Services,Grant Related Expenditure,290,30/07/2021,2107-00079,0.00,500.00,R,A Haddish,No
Http://opendatacommunities.org/id/metropolitan-district-council/leeds,Leeds City Council,31/07/2021,City Development,Economic Development,Supplies and Services,Grant Related Expenditure,290,12/07/2021,2107-00080,0.00,250.00,R,A Haile,No
Http://opendatacommunities.org/id/metropolitan-district-council/leeds,Leeds City Council,31/07/2021,Children and Families,Social Care,Agency Payments,Services Rendered By Other Organisations,511,02/07/2021,2107-00081,0.00,347.88,R,REDACTED PERSONAL DATA,No
Http://opendatacommunities.org/id/metropolitan-district-council/leeds,Leeds City Council,31/07/2021,Children and Families,Social Care,Agency Payments,Services Rendered By Other Organisations,511,02/07/2021,2107-00082,0.00,774.04,R,REDACTED PERSONAL DATA,No
Http://opendatacommunities.org/id/metropolitan-district-council/leeds,Leeds City Council,31/07/2021,Communities and Environment,Benefits Welfare and Poverty,Supplies and Services,Grant Related Expenditure,290,02/07/2021,2107-00083,0.00,500.00,R,REDACTED PERSONAL DATA,No
Http://opendatacommunities.org/id/metropolitan-district-council/leeds,Leeds City Council,31/07/2021,City Development,Economic Development,Supplies and Services,Grant Related Expenditure,290,12/07/2021,2107-00084,0.00,500.00,R,A Hussain,No
Http://opendatacommunities.org/id/metropolitan-district-council/leeds,Leeds City Council,31/07/2021,Resources and Housing,Strategic Housing Partnership & Support,Supplies and Services,Other Hired And Contracted Services,265,19/07/2021,2107-00085,0.00,700.00,R,A Hussain,No
Http://opendatacommunities.org/id/metropolitan-district-council/leeds,Leeds City Council,31/07/2021,City Development,Economic Development,Supplies and Services,Grant Related Expenditure,290,29/07/2021,2107-00086,0.00,250.00,R,A Hussain,No
Http://opendatacommunities.org/id/metropolitan-district-council/leeds,Leeds City Council,31/07/2021,Adults and Health,Other Generic Services,Agency Payments,Fees To Carers,563,02/07/2021,2107-00087,0.00,163.80,R,REDACTED PERSONAL DATA,No
Http://opendatacommunities.org/id/metropolitan-district-council/leeds,Leeds City Council,31/07/2021,Adults and Health,Other Generic Services,Agency Payments,Fees To Carers,563,16/07/2021,2107-00088,0.00,565.80,R,REDACTED PERSONAL DATA,No
Http://opendatacommunities.org/id/metropolitan-district-council/leeds,Leeds City Council,31/07/2021,Adults and Health,Other Generic Services,Agency Payments,Fees To Carers,563,16/07/2021,2107-00089,0.00,63.00,R,REDACTED PERSONAL DATA,No
Http://opendatacommunities.org/id/metropolitan-district-council/leeds,Leeds City Council,31/07/2021,City Development,Libraries Arts & Heritage,Supplies and Services,Other Hired And Contracted Services,265,27/07/2021,2107-00090,0.00,320.00,R,REDACTED COMMERCIAL CONFIDENTIALITY,No
Http://opendatacommunities.org/id/metropolitan-district-council/leeds,Leeds City Council,31/07/2021,Resources and Housing,Leeds Building Services,Supplies and Services,Operational Materials,205,01/07/2021,2107-00091,0.00,68.11,R,A J H  Pump Supply & Repair Ltd,No
Http://opendatacommunities.org/id/metropolitan-district-council/leeds,Leeds City Council,31/07/2021,Resources and Housing,Leeds Building Services,Supplies and Services,Operational Materials,205,01/07/2021,2107-00092,0.00,39.90,R,A J H  Pump Supply & Repair Ltd,No
Http://opendatacommunities.org/id/metropolitan-district-council/leeds,Leeds City Council,31/07/2021,Resources and Housing,Leeds Building Services,Supplies and Services,Operational Materials,205,01/07/2021,2107-00093,0.00,51.30,R,A J H  Pump Supply & Repair Ltd,No
Http://opendatacommunities.org/id/metropolitan-district-council/leeds,Leeds City Council,31/07/2021,Resources and Housing,Leeds Building Services,Supplies and Services,Operational Materials,205,01/07/2021,2107-00094,0.00,18.67,R,A J H  Pump Supply & Repair Ltd,No
Http://opendatacommunities.org/id/metropolitan-district-council/leeds,Leeds City Council,31/07/2021,Resources and Housing,Leeds Building Services,Supplies and Services,Operational Materials,205,01/07/2021,2107-00095,0.00,190.43,R,A J H  Pump Supply & Repair Ltd,No
Http://opendatacommunities.org/id/metropolitan-district-council/leeds,Leeds City Council,31/07/2021,Resources and Housing,Leeds Building Services,Supplies and Services,Operational Materials,205,01/07/2021,2107-00096,0.00,73.16,R,A J H  Pump Supply & Repair Ltd,No
Http://opendatacommunities.org/id/metropolitan-district-council/leeds,Leeds City Council,31/07/2021,Resources and Housing,Leeds Building Services,Supplies and Services,Operational Materials,205,01/07/2021,2107-00097,0.00,170.63,R,A J H  Pump Supply & Repair Ltd,No
Http://opendatacommunities.org/id/metropolitan-district-council/leeds,Leeds City Council,31/07/2021,Resources and Housing,Leeds Building Services,Supplies and Services,Operational Materials,205,01/07/2021,2107-00098,0.00,940.72,R,A J H  Pump Supply & Repair Ltd,No
Http://opendatacommunities.org/id/metropolitan-district-council/leeds,Leeds City Council,31/07/2021,Resources and Housing,Leeds Building Services,Supplies and Services,Operational Materials,205,01/07/2021,2107-00099,0.00,61.32,R,A J H  Pump Supply & Repair Ltd,No
Http://opendatacommunities.org/id/metropolitan-district-council/leeds,Leeds City Council,31/07/2021,Resources and Housing,Leeds Building Services,Supplies and Services,Operational Materials,205,01/07/2021,2107-00100,0.00,138.72,R,A J H  Pump Supply & Repair Ltd,No
Http://opendatacommunities.org/id/metropolitan-district-council/leeds,Leeds City Council,31/07/2021,Resources and Housing,Leeds Building Services,Supplies and Services,Operational Materials,205,06/07/2021,2107-00101,0.00,97.40,R,A J H  Pump Supply & Repair Ltd,No
Http://opendatacommunities.org/id/metropolitan-district-council/leeds,Leeds City Council,31/07/2021,Resources and Housing,Leeds Building Services,Supplies and Services,Operational Materials,205,06/07/2021,2107-00102,0.00,89.50,R,A J H  Pump Supply & Repair Ltd,No
Http://opendatacommunities.org/id/metropolitan-district-council/leeds,Leeds City Council,31/07/2021,Resources and Housing,Leeds Building Services,Supplies and Services,Operational Materials,205,06/07/2021,2107-00103,0.00,675.00,R,A J H  Pump Supply & Repair Ltd,No
Http://opendatacommunities.org/id/metropolitan-district-council/leeds,Leeds City Council,31/07/2021,Resources and Housing,Leeds Building Services,Supplies and Services,Operational Materials,205,06/07/2021,2107-00104,0.00,795.00,R,A J H  Pump Supply & Repair Ltd,No
Http://opendatacommunities.org/id/metropolitan-district-council/leeds,Leeds City Council,31/07/2021,Resources and Housing,Leeds Building Services,Supplies and Services,Operational Materials,205,08/07/2021,2107-00105,0.00,146.45,R,A J H  Pump Supply & Repair Ltd,No
Http://opendatacommunities.org/id/metropolitan-district-council/leeds,Leeds City Council,31/07/2021,Resources and Housing,Leeds Building Services,Supplies and Services,Operational Materials,205,08/07/2021,2107-00106,0.00,54.60,R,A J H  Pump Supply & Repair Ltd,No
Http://opendatacommunities.org/id/metropolitan-district-council/leeds,Leeds City Council,31/07/2021,Resources and Housing,Leeds Building Services,Supplies and Services,Operational Materials,205,08/07/2021,2107-00107,0.00,140.59,R,A J H  Pump Supply & Repair Ltd,No
Http://opendatacommunities.org/id/metropolitan-district-council/leeds,Leeds City Council,31/07/2021,Resources and Housing,Leeds Building Services,Supplies and Services,Operational Materials,205,08/07/2021,2107-00108,0.00,795.00,R,A J H  Pump Supply & Repair Ltd,No
Http://opendatacommunities.org/id/metropolitan-district-council/leeds,Leeds City Council,31/07/2021,Resources and Housing,Leeds Building Services,Supplies and Services,Other Hired And Contracted Services,265,13/07/2021,2107-00109,0.00,180.00,R,A J H  Pump Supply & Repair Ltd,No
Http://opendatacommunities.org/id/metropolitan-district-council/leeds,Leeds City Council,31/07/2021,Resources and Housing,Leeds Building Services,Supplies and Services,Operational Materials,205,13/07/2021,2107-00110,0.00,105.50,R,A J H  Pump Supply & Repair Ltd,No
Http://opendatacommunities.org/id/metropolitan-district-council/leeds,Leeds City Council,31/07/2021,Resources and Housing,Leeds Building Services,Supplies and Services,Operational Materials,205,13/07/2021,2107-00111,0.00,1119.04,R,A J H  Pump Supply & Repair Ltd,No
Http://opendatacommunities.org/id/metropolitan-district-council/leeds,Leeds City Council,31/07/2021,Resources and Housing,Leeds Building Services,Supplies and Services,Operational Materials,205,13/07/2021,2107-00112,0.00,393.67,R,A J H  Pump Supply & Repair Ltd,No
Http://opendatacommunities.org/id/metropolitan-district-council/leeds,Leeds City Council,31/07/2021,Resources and Housing,Leeds Building Services,Supplies and Services,Operational Materials,205,13/07/2021,2107-00113,0.00,239.65,R,A J H  Pump Supply & Repair Ltd,No
Http://opendatacommunities.org/id/metropolitan-district-council/leeds,Leeds City Council,31/07/2021,Resources and Housing,Leeds Building Services,Supplies and Services,Operational Materials,205,13/07/2021,2107-00114,0.00,53.35,R,A J H  Pump Supply & Repair Ltd,No
Http://opendatacommunities.org/id/metropolitan-district-council/leeds,Leeds City Council,31/07/2021,Resources and Housing,Leeds Building Services,Supplies and Services,Operational Materials,205,13/07/2021,2107-00115,0.00,28.90,R,A J H  Pump Supply & Repair Ltd,No
Http://opendatacommunities.org/id/metropolitan-district-council/leeds,Leeds City Council,31/07/2021,Resources and Housing,Leeds Building Services,Supplies and Services,Operational Materials,205,16/07/2021,2107-00116,0.00,219.99,R,A J H  Pump Supply & Repair Ltd,No
Http://opendatacommunities.org/id/metropolitan-district-council/leeds,Leeds City Council,31/07/2021,Resources and Housing,Leeds Building Services,Supplies and Services,Operational Materials,205,16/07/2021,2107-00117,0.00,50.00,R,A J H  Pump Supply & Repair Ltd,No
Http://opendatacommunities.org/id/metropolitan-district-council/leeds,Leeds City Council,31/07/2021,Resources and Housing,Leeds Building Services,Supplies and Services,Operational Materials,205,16/07/2021,2107-00118,0.00,129.58,R,A J H  Pump Supply & Repair Ltd,No
Http://opendatacommunities.org/id/metropolitan-district-council/leeds,Leeds City Council,31/07/2021,Resources and Housing,Leeds Building Services,Supplies and Services,Operational Materials,205,16/07/2021,2107-00119,0.00,52.50,R,A J H  Pump Supply & Repair Ltd,No
Http://opendatacommunities.org/id/metropolitan-district-council/leeds,Leeds City Council,31/07/2021,Resources and Housing,Leeds Building Services,Supplies and Services,Operational Materials,205,20/07/2021,2107-00120,0.00,168.27,R,A J H  Pump Supply & Repair Ltd,No
Http://opendatacommunities.org/id/metropolitan-district-council/leeds,Leeds City Council,31/07/2021,Resources and Housing,Leeds Building Services,Supplies and Services,Operational Materials,205,20/07/2021,2107-00121,0.00,209.23,R,A J H  Pump Supply & Repair Ltd,No
Http://opendatacommunities.org/id/metropolitan-district-council/leeds,Leeds City Council,31/07/2021,Resources and Housing,Leeds Building Services,Supplies and Services,Operational Materials,205,20/07/2021,2107-00122,0.00,143.48,R,A J H  Pump Supply & Repair Ltd,No
Http://opendatacommunities.org/id/metropolitan-district-council/leeds,Leeds City Council,31/07/2021,Resources and Housing,Leeds Building Services,Supplies and Services,Operational Materials,205,20/07/2021,2107-00123,0.00,52.74,R,A J H  Pump Supply & Repair Ltd,No
Http://opendatacommunities.org/id/metropolitan-district-council/leeds,Leeds City Council,31/07/2021,Resources and Housing,Leeds Building Services,Supplies and Services,Operational Materials,205,20/07/2021,2107-00124,0.00,739.90,R,A J H  Pump Supply & Repair Ltd,No
Http://opendatacommunities.org/id/metropolitan-district-council/leeds,Leeds City Council,31/07/2021,Resources and Housing,Leeds Building Services,Supplies and Services,Operational Materials,205,20/07/2021,2107-00125,0.00,150.65,R,A J H  Pump Supply & Repair Ltd,No
Http://opendatacommunities.org/id/metropolitan-district-council/leeds,Leeds City Council,31/07/2021,Resources and Housing,Leeds Building Services,Supplies and Services,Operational Materials,205,20/07/2021,2107-00126,0.00,439.28,R,A J H  Pump Supply & Repair Ltd,No
Http://opendatacommunities.org/id/metropolitan-district-council/leeds,Leeds City Council,31/07/2021,Resources and Housing,Leeds Building Services,Supplies and Services,Operational Materials,205,20/07/2021,2107-00127,0.00,885.00,R,A J H  Pump Supply & Repair Ltd,No
Http://opendatacommunities.org/id/metropolitan-district-council/leeds,Leeds City Council,31/07/2021,Resources and Housing,Leeds Building Services,Supplies and Services,Operational Materials,205,20/07/2021,2107-00128,0.00,53.80,R,A J H  Pump Supply & Repair Ltd,No
Http://opendatacommunities.org/id/metropolitan-district-council/leeds,Leeds City Council,31/07/2021,Resources and Housing,Leeds Building Services,Supplies and Services,Operational Materials,205,29/07/2021,2107-00129,0.00,166.40,R,A J H  Pump Supply & Repair Ltd,No
Http://opendatacommunities.org/id/metropolitan-district-council/leeds,Leeds City Council,31/07/2021,Resources and Housing,Leeds Building Services,Supplies and Services,Operational Materials,205,29/07/2021,2107-00130,0.00,794.00,R,A J H  Pump Supply & Repair Ltd,No
Http://opendatacommunities.org/id/metropolitan-district-council/leeds,Leeds City Council,31/07/2021,Resources and Housing,Leeds Building Services,Supplies and Services,Operational Materials,205,30/07/2021,2107-00131,0.00,775.00,R,A J H  Pump Supply & Repair Ltd,No
Http://opendatacommunities.org/id/metropolitan-district-council/leeds,Leeds City Council,31/07/2021,Resources and Housing,Leeds Building Services,Supplies and Services,Operational Materials,205,30/07/2021,2107-00132,0.00,795.00,R,A J H  Pump Supply & Repair Ltd,No
Http://opendatacommunities.org/id/metropolitan-district-council/leeds,Leeds City Council,31/07/2021,City Development,Libraries Arts & Heritage,Supplies and Services,Other Hired And Contracted Services,265,23/07/2021,2107-00133,0.00,1690.00,R,A J PROMOTIONS,No
Http://opendatacommunities.org/id/metropolitan-district-council/leeds,Leeds City Council,31/07/2021,City Development,Economic Development,Supplies and Services,Grant Related Expenditure,290,01/07/2021,2107-00134,0.00,250.00,R,A K Thompson,No
Http://opendatacommunities.org/id/metropolitan-district-council/leeds,Leeds City Council,31/07/2021,Children and Families,Social Care,Agency Payments,Services Rendered By Other Organisations,511,02/07/2021,2107-00135,0.00,2609.10,R,REDACTED PERSONAL DATA,No
Http://opendatacommunities.org/id/metropolitan-district-council/leeds,Leeds City Council,31/07/2021,Children and Families,Social Care,Agency Payments,Services Rendered By Other Organisations,511,07/07/2021,2107-00136,0.00,209.04,R,REDACTED PERSONAL DATA,No
Http://opendatacommunities.org/id/metropolitan-district-council/leeds,Leeds City Council,31/07/2021,City Development,Economic Development,Supplies and Services,Grant Related Expenditure,290,01/07/2021,2107-00137,0.00,250.00,R,A Khan,No
Http://opendatacommunities.org/id/metropolitan-district-council/leeds,Leeds City Council,31/07/2021,City Development,Economic Development,Supplies and Services,Grant Related Expenditure,290,19/07/2021,2107-00138,0.00,250.00,R,A Koncha,No
Http://opendatacommunities.org/id/metropolitan-district-council/leeds,Leeds City Council,31/07/2021,City Development,Economic Development,Supplies and Services,Grant Related Expenditure,290,14/07/2021,2107-00139,0.00,500.00,R,A Little Something Extra Ltd,No
Http://opendatacommunities.org/id/metropolitan-district-council/leeds,Leeds City Council,31/07/2021,City Development,Economic Development,Supplies and Services,Grant Related Expenditure,290,02/07/2021,2107-00140,0.00,500.00,R,A Mahmood,No
Http://opendatacommunities.org/id/metropolitan-district-council/leeds,Leeds City Council,31/07/2021,City Development,Economic Development,Supplies and Services,Grant Related Expenditure,290,06/07/2021,2107-00141,0.00,500.00,R,A Mahmood,No
Http://opendatacommunities.org/id/metropolitan-district-council/leeds,Leeds City Council,31/07/2021,City Development,Economic Development,Supplies and Services,Grant Related Expenditure,290,14/07/2021,2107-00142,0.00,250.00,R,A Mahmood,No
Http://opendatacommunities.org/id/metropolitan-district-council/leeds,Leeds City Council,31/07/2021,City Development,Economic Development,Supplies and Services,Grant Related Expenditure,290,15/07/2021,2107-00143,0.00,250.00,R,A Mahmood,No
Http://opendatacommunities.org/id/metropolitan-district-council/leeds,Leeds City Council,31/07/2021,Communities and Environment,Benefits Welfare and Poverty,Supplies and Services,Grant Related Expenditure,290,05/07/2021,2107-00144,0.00,15.00,R,REDACTED PERSONAL DATA,No
Http://opendatacommunities.org/id/metropolitan-district-council/leeds,Leeds City Council,31/07/2021,Communities and Environment,Benefits Welfare and Poverty,Supplies and Services,Grant Related Expenditure,290,22/07/2021,2107-00145,0.00,15.00,R,REDACTED PERSONAL DATA,No
Http://opendatacommunities.org/id/metropolitan-district-council/leeds,Leeds City Council,31/07/2021,Communities and Environment,Customer Access,Supplies and Services,Bought In Professional Services,277,07/07/2021,2107-00146,0.00,36.00,R,A MOHAMMED,No
Http://opendatacommunities.org/id/metropolitan-district-council/leeds,Leeds City Council,31/07/2021,Communities and Environment,Customer Access,Supplies and Services,Bought In Professional Services,277,07/07/2021,2107-00147,0.00,18.00,R,A MOHAMMED,No
Http://opendatacommunities.org/id/metropolitan-district-council/leeds,Leeds City Council,31/07/2021,Communities and Environment,Customer Access,Supplies and Services,Bought In Professional Services,277,07/07/2021,2107-00148,0.00,22.50,R,A MOHAMMED,No
Http://opendatacommunities.org/id/metropolitan-district-council/leeds,Leeds City Council,31/07/2021,Communities and Environment,Customer Access,Supplies and Services,Bought In Professional Services,277,07/07/2021,2107-00149,0.00,18.00,R,A MOHAMMED,No
Http://opendatacommunities.org/id/metropolitan-district-council/leeds,Leeds City Council,31/07/2021,Communities and Environment,Customer Access,Supplies and Services,Bought In Professional Services,277,07/07/2021,2107-00150,0.00,18.00,R,A MOHAMMED,No
Http://opendatacommunities.org/id/metropolitan-district-council/leeds,Leeds City Council,31/07/2021,Communities and Environment,Customer Access,Supplies and Services,Bought In Professional Services,277,07/07/2021,2107-00151,0.00,18.00,R,A MOHAMMED,No
Http://opendatacommunities.org/id/metropolitan-district-council/leeds,Leeds City Council,31/07/2021,Communities and Environment,Customer Access,Supplies and Services,Bought In Professional Services,277,07/07/2021,2107-00152,0.00,18.00,R,A MOHAMMED,No
Http://opendatacommunities.org/id/metropolitan-district-council/leeds,Leeds City Council,31/07/2021,Communities and Environment,Customer Access,Supplies and Services,Bought In Professional Services,277,07/07/2021,2107-00153,0.00,18.00,R,A MOHAMMED,No
Http://opendatacommunities.org/id/metropolitan-district-council/leeds,Leeds City Council,31/07/2021,Communities and Environment,Customer Access,Supplies and Services,Bought In Professional Services,277,16/07/2021,2107-00154,0.00,9.00,R,A MOHAMMED,No
Http://opendatacommunities.org/id/metropolitan-district-council/leeds,Leeds City Council,31/07/2021,Communities and Environment,Customer Access,Supplies and Services,Bought In Professional Services,277,16/07/2021,2107-00155,0.00,18.00,R,A MOHAMMED,No
Http://opendatacommunities.org/id/metropolitan-district-council/leeds,Leeds City Council,31/07/2021,Communities and Environment,Customer Access,Supplies and Services,Bought In Professional Services,277,16/07/2021,2107-00156,0.00,40.50,R,A MOHAMMED,No
Http://opendatacommunities.org/id/metropolitan-district-council/leeds,Leeds City Council,31/07/2021,Communities and Environment,Customer Access,Supplies and Services,Bought In Professional Services,277,16/07/2021,2107-00157,0.00,18.00,R,A MOHAMMED,No
Http://opendatacommunities.org/id/metropolitan-district-council/leeds,Leeds City Council,31/07/2021,Communities and Environment,Customer Access,Supplies and Services,Bought In Professional Services,277,16/07/2021,2107-00158,0.00,18.00,R,A MOHAMMED,No
Http://opendatacommunities.org/id/metropolitan-district-council/leeds,Leeds City Council,31/07/2021,Communities and Environment,Customer Access,Supplies and Services,Bought In Professional Services,277,16/07/2021,2107-00159,0.00,36.00,R,A MOHAMMED,No
Http://opendatacommunities.org/id/metropolitan-district-council/leeds,Leeds City Council,31/07/2021,Communities and Environment,Customer Access,Supplies and Services,Bought In Professional Services,277,16/07/2021,2107-00160,0.00,18.00,R,A MOHAMMED,No
Http://opendatacommunities.org/id/metropolitan-district-council/leeds,Leeds City Council,31/07/2021,Communities and Environment,Customer Access,Supplies and Services,Bought In Professional Services,277,16/07/2021,2107-00161,0.00,18.00,R,A MOHAMMED,No
Http://opendatacommunities.org/id/metropolitan-district-council/leeds,Leeds City Council,31/07/2021,Communities and Environment,Customer Access,Supplies and Services,Bought In Professional Services,277,16/07/2021,2107-00162,0.00,18.00,R,A MOHAMMED,No
Http://opendatacommunities.org/id/metropolitan-district-council/leeds,Leeds City Council,31/07/2021,Communities and Environment,Customer Access,Supplies and Services,Bought In Professional Services,277,16/07/2021,2107-00163,0.00,22.50,R,A MOHAMMED,No
Http://opendatacommunities.org/id/metropolitan-district-council/leeds,Leeds City Council,31/07/2021,Communities and Environment,Customer Access,Supplies and Services,Bought In Professional Services,277,16/07/2021,2107-00164,0.00,18.00,R,A MOHAMMED,No
Http://opendatacommunities.org/id/metropolitan-district-council/leeds,Leeds City Council,31/07/2021,Communities and Environment,Customer Access,Supplies and Services,Bought In Professional Services,277,21/07/2021,2107-00165,0.00,18.00,R,A MOHAMMED,No
Http://opendatacommunities.org/id/metropolitan-district-council/leeds,Leeds City Council,31/07/2021,Communities and Environment,Customer Access,Supplies and Services,Bought In Professional Services,277,21/07/2021,2107-00166,0.00,18.00,R,A MOHAMMED,No
Http://opendatacommunities.org/id/metropolitan-district-council/leeds,Leeds City Council,31/07/2021,Communities and Environment,Customer Access,Supplies and Services,Bought In Professional Services,277,21/07/2021,2107-00167,0.00,18.00,R,A MOHAMMED,No
Http://opendatacommunities.org/id/metropolitan-district-council/leeds,Leeds City Council,31/07/2021,Communities and Environment,Customer Access,Supplies and Services,Bought In Professional Services,277,21/07/2021,2107-00168,0.00,18.00,R,A MOHAMMED,No
Http://opendatacommunities.org/id/metropolitan-district-council/leeds,Leeds City Council,31/07/2021,Communities and Environment,Customer Access,Supplies and Services,Bought In Professional Services,277,21/07/2021,2107-00169,0.00,9.00,R,A MOHAMMED,No
Http://opendatacommunities.org/id/metropolitan-district-council/leeds,Leeds City Council,31/07/2021,Communities and Environment,Customer Access,Supplies and Services,Bought In Professional Services,277,21/07/2021,2107-00170,0.00,18.00,R,A MOHAMMED,No
Http://opendatacommunities.org/id/metropolitan-district-council/leeds,Leeds City Council,31/07/2021,Communities and Environment,Customer Access,Supplies and Services,Bought In Professional Services,277,21/07/2021,2107-00171,0.00,18.00,R,A MOHAMMED,No
Http://opendatacommunities.org/id/metropolitan-district-council/leeds,Leeds City Council,31/07/2021,Communities and Environment,Customer Access,Supplies and Services,Bought In Professional Services,277,21/07/2021,2107-00172,0.00,18.00,R,A MOHAMMED,No
Http://opendatacommunities.org/id/metropolitan-district-council/leeds,Leeds City Council,31/07/2021,Communities and Environment,Customer Access,Supplies and Services,Bought In Professional Services,277,21/07/2021,2107-00173,0.00,13.50,R,A MOHAMMED,No
Http://opendatacommunities.org/id/metropolitan-district-council/leeds,Leeds City Council,31/07/2021,Communities and Environment,Customer Access,Supplies and Services,Bought In Professional Services,277,21/07/2021,2107-00174,0.00,27.00,R,A MOHAMMED,No
Http://opendatacommunities.org/id/metropolitan-district-council/leeds,Leeds City Council,31/07/2021,Communities and Environment,Customer Access,Supplies and Services,Bought In Professional Services,277,21/07/2021,2107-00175,0.00,13.50,R,A MOHAMMED,No
Http://opendatacommunities.org/id/metropolitan-district-council/leeds,Leeds City Council,31/07/2021,Communities and Environment,Customer Access,Supplies and Services,Bought In Professional Services,277,29/07/2021,2107-00176,0.00,18.00,R,A MOHAMMED,No
Http://opendatacommunities.org/id/metropolitan-district-council/leeds,Leeds City Council,31/07/2021,Communities and Environment,Customer Access,Supplies and Services,Bought In Professional Services,277,29/07/2021,2107-00177,0.00,18.00,R,A MOHAMMED,No
Http://opendatacommunities.org/id/metropolitan-district-council/leeds,Leeds City Council,31/07/2021,Communities and Environment,Customer Access,Supplies and Services,Bought In Professional Services,277,29/07/2021,2107-00178,0.00,18.00,R,A MOHAMMED,No
Http://opendatacommunities.org/id/metropolitan-district-council/leeds,Leeds City Council,31/07/2021,Communities and Environment,Customer Access,Supplies and Services,Bought In Professional Services,277,29/07/2021,2107-00179,0.00,18.00,R,A MOHAMMED,No
Http://opendatacommunities.org/id/metropolitan-district-council/leeds,Leeds City Council,31/07/2021,Communities and Environment,Customer Access,Supplies and Services,Bought In Professional Services,277,29/07/2021,2107-00180,0.00,18.00,R,A MOHAMMED,No
Http://opendatacommunities.org/id/metropolitan-district-council/leeds,Leeds City Council,31/07/2021,Communities and Environment,Customer Access,Supplies and Services,Bought In Professional Services,277,29/07/2021,2107-00181,0.00,18.00,R,A MOHAMMED,No
Http://opendatacommunities.org/id/metropolitan-district-council/leeds,Leeds City Council,31/07/2021,Communities and Environment,Customer Access,Supplies and Services,Bought In Professional Services,277,29/07/2021,2107-00182,0.00,18.00,R,A MOHAMMED,No
Http://opendatacommunities.org/id/metropolitan-district-council/leeds,Leeds City Council,31/07/2021,Communities and Environment,Customer Access,Supplies and Services,Bought In Professional Services,277,29/07/2021,2107-00183,0.00,22.50,R,A MOHAMMED,No
Http://opendatacommunities.org/id/metropolitan-district-council/leeds,Leeds City Council,31/07/2021,Communities and Environment,Customer Access,Supplies and Services,Bought In Professional Services,277,29/07/2021,2107-00184,0.00,18.00,R,A MOHAMMED,No
Http://opendatacommunities.org/id/metropolitan-district-council/leeds,Leeds City Council,31/07/2021,Communities and Environment,Customer Access,Supplies and Services,Bought In Professional Services,277,29/07/2021,2107-00185,0.00,18.00,R,A MOHAMMED,No
Http://opendatacommunities.org/id/metropolitan-district-council/leeds,Leeds City Council,31/07/2021,Communities and Environment,Customer Access,Supplies and Services,Bought In Professional Services,277,29/07/2021,2107-00186,0.00,18.00,R,A MOHAMMED,No
Http://opendatacommunities.org/id/metropolitan-district-council/leeds,Leeds City Council,31/07/2021,Communities and Environment,Customer Access,Supplies and Services,Bought In Professional Services,277,29/07/2021,2107-00187,0.00,18.00,R,A MOHAMMED,No
Http://opendatacommunities.org/id/metropolitan-district-council/leeds,Leeds City Council,31/07/2021,Children and Families,Social Care,Agency Payments,Services Rendered By Other Organisations,511,02/07/2021,2107-00188,0.00,1043.64,R,REDACTED PERSONAL DATA,No
Http://opendatacommunities.org/id/metropolitan-district-council/leeds,Leeds City Council,31/07/2021,Children and Families,Social Care,Agency Payments,Services Rendered By Other Organisations,511,07/07/2021,2107-00189,0.00,1254.24,R,REDACTED PERSONAL DATA,No
Http://opendatacommunities.org/id/metropolitan-district-council/leeds,Leeds City Council,31/07/2021,Communities and Environment,Customer Access,Supplies and Services,Bought In Professional Services,277,07/07/2021,2107-00190,0.00,9.00,R,A NAMAKI,No
Http://opendatacommunities.org/id/metropolitan-district-council/leeds,Leeds City Council,31/07/2021,Communities and Environment,Customer Access,Supplies and Services,Bought In Professional Services,277,07/07/2021,2107-00191,0.00,18.00,R,A NAMAKI,No
Http://opendatacommunities.org/id/metropolitan-district-council/leeds,Leeds City Council,31/07/2021,Communities and Environment,Customer Access,Supplies and Services,Bought In Professional Services,277,21/07/2021,2107-00192,0.00,18.00,R,A NAMAKI,No
Http://opendatacommunities.org/id/metropolitan-district-council/leeds,Leeds City Council,31/07/2021,Communities and Environment,Customer Access,Supplies and Services,Bought In Professional Services,277,21/07/2021,2107-00193,0.00,18.00,R,A NAMAKI,No
Http://opendatacommunities.org/id/metropolitan-district-council/leeds,Leeds City Council,31/07/2021,Communities and Environment,Customer Access,Supplies and Services,Bought In Professional Services,277,29/07/2021,2107-00194,0.00,18.00,R,A NAMAKI,No
Http://opendatacommunities.org/id/metropolitan-district-council/leeds,Leeds City Council,31/07/2021,Communities and Environment,Customer Access,Supplies and Services,Bought In Professional Services,277,29/07/2021,2107-00195,0.00,18.00,R,A NAMAKI,No
Http://opendatacommunities.org/id/metropolitan-district-council/leeds,Leeds City Council,31/07/2021,Communities and Environment,Customer Access,Supplies and Services,Bought In Professional Services,277,29/07/2021,2107-00196,0.00,27.00,R,A NAMAKI,No
Http://opendatacommunities.org/id/metropolitan-district-council/leeds,Leeds City Council,31/07/2021,Communities and Environment,Customer Access,Supplies and Services,Bought In Professional Services,277,29/07/2021,2107-00197,0.00,18.00,R,A NAMAKI,No
Http://opendatacommunities.org/id/metropolitan-district-council/leeds,Leeds City Council,31/07/2021,Children and Families,Social Care,Agency Payments,Services Rendered By Other Organisations,511,02/07/2021,2107-00198,0.00,173.94,R,REDACTED PERSONAL DATA,No
Http://opendatacommunities.org/id/metropolitan-district-council/leeds,Leeds City Council,31/07/2021,Communities and Environment,Parks and Countryside,Supplies and Services,Other Hired And Contracted Services,265,08/07/2021,2107-00199,0.00,1020.64,R,A NICHOLLS,No
Http://opendatacommunities.org/id/metropolitan-district-council/leeds,Leeds City Council,31/07/2021,Resources and Housing,HRA Housing Leeds,Capital,OTHER COSTS,7,08/07/2021,2107-00200,0.00,25.00,C,REDACTED PERSONAL DATA,No
Http://opendatacommunities.org/id/metropolitan-district-council/leeds,Leeds City Council,31/07/2021,City Development,Economic Development,Supplies and Services,Grant Related Expenditure,290,14/07/2021,2107-00201,0.00,250.00,R,A Qayyum,No
Http://opendatacommunities.org/id/metropolitan-district-council/leeds,Leeds City Council,31/07/2021,City Development,Libraries Arts & Heritage,Supplies and Services,Non-Recurring Grants,227,28/07/2021,2107-00202,0.00,2000.00,R,A Quiet Word Ltd,No
Http://opendatacommunities.org/id/metropolitan-district-council/leeds,Leeds City Council,31/07/2021,Communities and Environment,Parks and Countryside,Supplies and Services,Operational Furniture And Equipment,203,28/07/2021,2107-00203,0.00,228.50,R,A R Twigg & Son Limited,No
Http://opendatacommunities.org/id/metropolitan-district-council/leeds,Leeds City Council,31/07/2021,City Development,Economic Development,Supplies and Services,Grant Related Expenditure,290,16/07/2021,2107-00204,0.00,250.00,R,A Rahimi,No
Http://opendatacommunities.org/id/metropolitan-district-council/leeds,Leeds City Council,31/07/2021,Resources and Housing,HRA Housing Leeds,Capital,OTHER COSTS,7,22/07/2021,2107-00205,0.00,100.00,C,REDACTED PERSONAL DATA,No
Http://opendatacommunities.org/id/metropolitan-district-council/leeds,Leeds City Council,31/07/2021,City Development,Economic Development,Supplies and Services,Grant Related Expenditure,290,16/07/2021,2107-00206,0.00,250.00,R,A Salih,No
Http://opendatacommunities.org/id/metropolitan-district-council/leeds,Leeds City Council,31/07/2021,Strategic Landlord,Housing Management,Supplies and Services,Compensation Claims,200,28/07/2021,2107-00207,0.00,200.00,R,REDACTED PERSONAL DATA,No
Http://opendatacommunities.org/id/metropolitan-district-council/leeds,Leeds City Council,31/07/2021,Children and Families,Social Care,Agency Payments,Services Rendered By Other Organisations,511,02/07/2021,2107-00208,0.00,521.82,R,REDACTED PERSONAL DATA,No
Http://opendatacommunities.org/id/metropolitan-district-council/leeds,Leeds City Council,31/07/2021,Resources and Housing,Shared Services,Supplies and Services,Other Hired And Contracted Services,265,30/07/2021,2107-00209,0.00,65.00,R,A Star Couriers Ltd,No
Http://opendatacommunities.org/id/metropolitan-district-council/leeds,Leeds City Council,31/07/2021,City Development,Economic Development,Supplies and Services,Grant Related Expenditure,290,08/07/2021,2107-00210,0.00,500.00,R,A U R Lone,No
Http://opendatacommunities.org/id/metropolitan-district-council/leeds,Leeds City Council,31/07/2021,City Development,Economic Development,Supplies and Services,Grant Related Expenditure,290,28/07/2021,2107-00211,0.00,250.00,R,A U R Lone,No
Http://opendatacommunities.org/id/metropolitan-district-council/leeds,Leeds City Council,31/07/2021,Children and Families,Social Care,Agency Payments,Services Rendered By Other Organisations,511,07/07/2021,2107-00212,0.00,209.04,R,REDACTED PERSONAL DATA,No
Http://opendatacommunities.org/id/metropolitan-district-council/leeds,Leeds City Council,31/07/2021,Children and Families,Social Care,Agency Payments,Services Rendered By Other Organisations,511,02/07/2021,2107-00213,0.00,347.88,R,REDACTED PERSONAL DATA,No
Http://opendatacommunities.org/id/metropolitan-district-council/leeds,Leeds City Council,31/07/2021,Children and Families,Social Care,Agency Payments,Independent Fostering Agencies,509,02/07/2021,2107-00214,0.00,-31500.00,R,A Wilderness Way Ltd,No
Http://opendatacommunities.org/id/metropolitan-district-council/leeds,Leeds City Council,31/07/2021,Children and Families,Social Care,Agency Payments,General External Residential Placements,507,02/07/2021,2107-00215,0.00,29142.90,R,A Wilderness Way Ltd,No
Http://opendatacommunities.org/id/metropolitan-district-council/leeds,Leeds City Council,31/07/2021,Children and Families,Social Care,Agency Payments,General External Residential Placements,507,02/07/2021,2107-00216,0.00,2520.00,R,A Wilderness Way Ltd,No
Http://opendatacommunities.org/id/metropolitan-district-council/leeds,Leeds City Council,31/07/2021,Children and Families,Social Care,Agency Payments,General External Residential Placements,507,30/07/2021,2107-00217,0.00,30114.33,R,A Wilderness Way Ltd,No
Http://opendatacommunities.org/id/metropolitan-district-council/leeds,Leeds City Council,31/07/2021,City Development,Economic Development,Supplies and Services,Grant Related Expenditure,290,14/07/2021,2107-00218,0.00,500.00,R,A Zerabruk,No
Http://opendatacommunities.org/id/metropolitan-district-council/leeds,Leeds City Council,31/07/2021,City Development,Economic Development,Supplies and Services,Grant Related Expenditure,290,29/07/2021,2107-00219,0.00,250.00,R,A Zerabruk,No
Http://opendatacommunities.org/id/metropolitan-district-council/leeds,Leeds City Council,31/07/2021,Communities and Environment,Waste Management,Capital,FURNITURE AND EQUIPMENT,5,01/07/2021,2107-00220,0.00,10444.00,C,A&C Weber Uk Ltd,No
Http://opendatacommunities.org/id/metropolitan-district-council/leeds,Leeds City Council,31/07/2021,City Development,Libraries Arts & Heritage,Supplies and Services,Non-Recurring Grants,227,14/07/2021,2107-00221,0.00,198.00,R,A.Clissold,No
Http://opendatacommunities.org/id/metropolitan-district-council/leeds,Leeds City Council,31/07/2021,Resources and Housing,Leeds Building Services,Supplies and Services,Other Hired And Contracted Services,265,06/07/2021,2107-00222,0.00,172.50,R,A1 STAIR LIFT SERVICES,No
Http://opendatacommunities.org/id/metropolitan-district-council/leeds,Leeds City Council,31/07/2021,Resources and Housing,Leeds Building Services,Supplies and Services,Other Hired And Contracted Services,265,29/07/2021,2107-00223,0.00,850.00,R,A1 STAIR LIFT SERVICES,No
Http://opendatacommunities.org/id/metropolitan-district-council/leeds,Leeds City Council,31/07/2021,Resources and Housing,Leeds Building Services,Supplies and Services,Other Hired And Contracted Services,265,29/07/2021,2107-00224,0.00,600.00,R,A1 STAIR LIFT SERVICES,No
Http://opendatacommunities.org/id/metropolitan-district-council/leeds,Leeds City Council,31/07/2021,City Development,Economic Development,Supplies and Services,Grant Related Expenditure,290,08/07/2021,2107-00225,0.00,2300.00,R,A2Z Bargins2020 Limited,No
Http://opendatacommunities.org/id/metropolitan-district-council/leeds,Leeds City Council,31/07/2021,Resources and Housing,Leeds Building Services,Employees,Training & Development,70,23/07/2021,2107-00226,0.00,605.83,R,AAA TRAINING CO LTD,No
Http://opendatacommunities.org/id/metropolitan-district-council/leeds,Leeds City Council,31/07/2021,City Development,Economic Development,Supplies and Services,Grant Related Expenditure,290,08/07/2021,2107-00227,0.00,3500.00,R,AAMIR AKHTAR,No
Http://opendatacommunities.org/id/metropolitan-district-council/leeds,Leeds City Council,31/07/2021,Communities and Environment,Benefits Welfare and Poverty,Supplies and Services,Grant Related Expenditure,290,21/07/2021,2107-00228,0.00,500.00,R,REDACTED PERSONAL DATA,No
Http://opendatacommunities.org/id/metropolitan-district-council/leeds,Leeds City Council,31/07/2021,Communities and Environment,Benefits Welfare and Poverty,Supplies and Services,Grant Related Expenditure,290,21/07/2021,2107-00229,0.00,500.00,R,REDACTED PERSONAL DATA,No
Http://opendatacommunities.org/id/metropolitan-district-council/leeds,Leeds City Council,31/07/2021,Adults and Health,Services For Older People - 65 And Over,Agency Payments,Residential Care Dementia,571,21/07/2021,2107-00230,0.00,1245.20,R,Aaron Court Care Home,No
Http://opendatacommunities.org/id/metropolitan-district-council/leeds,Leeds City Council,31/07/2021,Communities and Environment,Benefits Welfare and Poverty,Supplies and Services,Grant Related Expenditure,298,28/07/2021,2107-00231,0.00,500.00,R,REDACTED PERSONAL DATA,No
Http://opendatacommunities.org/id/metropolitan-district-council/leeds,Leeds City Council,31/07/2021,Communities and Environment,Benefits Welfare and Poverty,Supplies and Services,Grant Related Expenditure,290,27/07/2021,2107-00232,0.00,500.00,R,REDACTED PERSONAL DATA,No
Http://opendatacommunities.org/id/metropolitan-district-council/leeds,Leeds City Council,31/07/2021,Communities and Environment,Benefits Welfare and Poverty,Supplies and Services,Grant Related Expenditure,298,22/07/2021,2107-00233,0.00,500.00,R,REDACTED PERSONAL DATA,No
Http://opendatacommunities.org/id/metropolitan-district-council/leeds,Leeds City Council as Accountable Body,31/07/2021,Social Services Pooled Budgets,Leeds Community Equip Store Pooled Budgt,Supplies and Services,Other Equipment,203,02/07/2021,2107-00234,0.00,955.00,R,AAT (GB) LTD,No
Http://opendatacommunities.org/id/metropolitan-district-council/leeds,Leeds City Council as Accountable Body,31/07/2021,Social Services Pooled Budgets,Leeds Community Equip Store Pooled Budgt,Supplies and Services,Other Equipment,203,16/07/2021,2107-00235,0.00,1119.00,R,AAT (GB) LTD,No
Http://opendatacommunities.org/id/metropolitan-district-council/leeds,Leeds City Council as Accountable Body,31/07/2021,Social Services Pooled Budgets,Leeds Community Equip Store Pooled Budgt,Supplies and Services,Other Equipment,203,16/07/2021,2107-00236,0.00,1119.00,R,AAT (GB) LTD,No
Http://opendatacommunities.org/id/metropolitan-district-council/leeds,Leeds City Council as Accountable Body,31/07/2021,Social Services Pooled Budgets,Leeds Community Equip Store Pooled Budgt,Supplies and Services,Other Equipment,203,16/07/2021,2107-00237,0.00,50.00,R,AAT (GB) LTD,No
Http://opendatacommunities.org/id/metropolitan-district-council/leeds,Leeds City Council as Accountable Body,31/07/2021,Social Services Pooled Budgets,Leeds Community Equip Store Pooled Budgt,Supplies and Services,Other Equipment,203,30/07/2021,2107-00238,0.00,464.00,R,AAT (GB) LTD,No
Http://opendatacommunities.org/id/metropolitan-district-council/leeds,Leeds City Council as Accountable Body,31/07/2021,Social Services Pooled Budgets,Leeds Community Equip Store Pooled Budgt,Supplies and Services,Other Equipment,203,30/07/2021,2107-00239,0.00,464.00,R,AAT (GB) LTD,No
Http://opendatacommunities.org/id/metropolitan-district-council/leeds,Leeds City Council,31/07/2021,City Development,Economic Development,Supplies and Services,Grant Related Expenditure,290,01/07/2021,2107-00240,0.00,250.00,R,AB Maintenance,No
Http://opendatacommunities.org/id/metropolitan-district-council/leeds,Leeds City Council,31/07/2021,City Development,Economic Development,Supplies and Services,Grant Related Expenditure,290,16/07/2021,2107-00241,0.00,250.00,R,Abad Ali,No
Http://opendatacommunities.org/id/metropolitan-district-council/leeds,Leeds City Council,31/07/2021,Communities and Environment,Customer Access,Supplies and Services,Bought In Professional Services,277,16/07/2021,2107-00242,0.00,27.00,R,Abadit Kiros,No
Http://opendatacommunities.org/id/metropolitan-district-council/leeds,Leeds City Council,31/07/2021,Communities and Environment,Customer Access,Supplies and Services,Bought In Professional Services,277,16/07/2021,2107-00243,0.00,18.00,R,Abadit Kiros,No
Http://opendatacommunities.org/id/metropolitan-district-council/leeds,Leeds City Council,31/07/2021,Communities and Environment,Customer Access,Supplies and Services,Bought In Professional Services,277,16/07/2021,2107-00244,0.00,18.00,R,Abadit Kiros,No
Http://opendatacommunities.org/id/metropolitan-district-council/leeds,Leeds City Council,31/07/2021,Communities and Environment,Customer Access,Supplies and Services,Bought In Professional Services,277,16/07/2021,2107-00245,0.00,18.00,R,Abadit Kiros,No
Http://opendatacommunities.org/id/metropolitan-district-council/leeds,Leeds City Council,31/07/2021,Communities and Environment,Customer Access,Supplies and Services,Bought In Professional Services,277,16/07/2021,2107-00246,0.00,18.00,R,Abadit Kiros,No
Http://opendatacommunities.org/id/metropolitan-district-council/leeds,Leeds City Council,31/07/2021,Communities and Environment,Customer Access,Supplies and Services,Bought In Professional Services,277,16/07/2021,2107-00247,0.00,18.00,R,Abadit Kiros,No
Http://opendatacommunities.org/id/metropolitan-district-council/leeds,Leeds City Council,31/07/2021,Communities and Environment,Customer Access,Supplies and Services,Bought In Professional Services,277,16/07/2021,2107-00248,0.00,27.00,R,Abadit Kiros,No
Http://opendatacommunities.org/id/metropolitan-district-council/leeds,Leeds City Council,31/07/2021,Communities and Environment,Customer Access,Supplies and Services,Bought In Professional Services,277,29/07/2021,2107-00249,0.00,9.00,R,Abadit Kiros,No
Http://opendatacommunities.org/id/metropolitan-district-council/leeds,Leeds City Council,31/07/2021,Adults and Health,Services For Older People - 65 And Over,Supplies and Services,Clothing & Uniforms,241,28/06/2021,2107-00250,0.00,89.75,R,Abalone Graphics Ltd,Yes
Http://opendatacommunities.org/id/metropolitan-district-council/leeds,Leeds City Council,31/07/2021,Resources and Housing,Human Resources,Employees,Occupational Health,85,15/07/2021,2107-00251,0.00,30.00,R,Abbey Grange Medical Practice,No
Http://opendatacommunities.org/id/metropolitan-district-council/leeds,Leeds City Council,31/07/2021,Resources and Housing,Human Resources,Employees,Occupational Health,85,26/07/2021,2107-00252,0.00,48.40,R,Abbey Grange Medical Practice,No
Http://opendatacommunities.org/id/metropolitan-district-council/leeds,Leeds City Council,31/07/2021,City Development,Libraries Arts & Heritage,Supplies and Services,Books & Audio-Visual Materials,206,09/06/2021,2107-00253,0.00,12.50,R,Abbey House Museum,Yes
Http://opendatacommunities.org/id/metropolitan-district-council/leeds,Leeds City Council,31/07/2021,Communities and Environment,Benefits Welfare and Poverty,Supplies and Services,Grant Related Expenditure,298,27/07/2021,2107-00254,0.00,500.00,R,REDACTED PERSONAL DATA,No
Http://opendatacommunities.org/id/metropolitan-district-council/leeds,Leeds City Council,31/07/2021,Children and Families,Social Care,Agency Payments,Services Rendered By Other Organisations,511,02/07/2021,2107-00255,0.00,217.43,R,REDACTED PERSONAL DATA,No
Http://opendatacommunities.org/id/metropolitan-district-council/leeds,Leeds City Council,31/07/2021,Children and Families,Social Care,Agency Payments,Services Rendered By Other Organisations,511,07/07/2021,2107-00256,0.00,90.59,R,REDACTED PERSONAL DATA,No
Http://opendatacommunities.org/id/metropolitan-district-council/leeds,Leeds City Council,31/07/2021,Children and Families,Social Care,Agency Payments,Services Rendered By Other Organisations,511,02/07/2021,2107-00257,0.00,6957.60,R,ABC NURSERY AT LUFC,No
Http://opendatacommunities.org/id/metropolitan-district-council/leeds,Leeds City Council,31/07/2021,Children and Families,Social Care,Agency Payments,Services Rendered By Other Organisations,511,07/07/2021,2107-00258,0.00,2508.48,R,ABC NURSERY AT LUFC,No
Http://opendatacommunities.org/id/metropolitan-district-council/leeds,Leeds City Council,31/07/2021,Children and Families,Social Care,Agency Payments,Services Rendered By Other Organisations,511,02/07/2021,2107-00259,0.00,6261.84,R,Abc@D'S Childcare,No
Http://opendatacommunities.org/id/metropolitan-district-council/leeds,Leeds City Council,31/07/2021,Children and Families,Social Care,Agency Payments,Services Rendered By Other Organisations,511,07/07/2021,2107-00260,0.00,1672.32,R,Abc@D'S Childcare,No
Http://opendatacommunities.org/id/metropolitan-district-council/leeds,Leeds City Council,31/07/2021,City Development,Economic Development,Supplies and Services,Grant Related Expenditure,290,20/07/2021,2107-00261,0.00,250.00,R,Abdelkrim Kouara,No
Http://opendatacommunities.org/id/metropolitan-district-council/leeds,Leeds City Council,31/07/2021,City Development,Economic Development,Supplies and Services,Grant Related Expenditure,290,16/07/2021,2107-00262,0.00,250.00,R,Abdul Hameed,No
Http://opendatacommunities.org/id/metropolitan-district-council/leeds,Leeds City Council,31/07/2021,City Development,Economic Development,Supplies and Services,Grant Related Expenditure,290,21/07/2021,2107-00263,0.00,500.00,R,Abdul Ikhlaq,No
Http://opendatacommunities.org/id/metropolitan-district-council/leeds,Leeds City Council,31/07/2021,City Development,Economic Development,Supplies and Services,Grant Related Expenditure,290,30/07/2021,2107-00264,0.00,250.00,R,Abdul Ikhlaq,No
Http://opendatacommunities.org/id/metropolitan-district-council/leeds,Leeds City Council,31/07/2021,City Development,Economic Development,Supplies and Services,Grant Related Expenditure,290,28/07/2021,2107-00265,0.00,500.00,R,Abdul Jabbar,No
Http://opendatacommunities.org/id/metropolitan-district-council/leeds,Leeds City Council,31/07/2021,City Development,Economic Development,Supplies and Services,Grant Related Expenditure,290,12/07/2021,2107-00266,0.00,250.00,R,Abdul Jabbar Sattar,No
Http://opendatacommunities.org/id/metropolitan-district-council/leeds,Leeds City Council,31/07/2021,Communities and Environment,Customer Access,Supplies and Services,Bought In Professional Services,277,21/07/2021,2107-00267,0.00,18.00,R,Abdul Kalam,No
Http://opendatacommunities.org/id/metropolitan-district-council/leeds,Leeds City Council,31/07/2021,Communities and Environment,Customer Access,Supplies and Services,Bought In Professional Services,277,29/07/2021,2107-00268,0.00,18.00,R,Abdul Kalam,No
Http://opendatacommunities.org/id/metropolitan-district-council/leeds,Leeds City Council,31/07/2021,City Development,Economic Development,Supplies and Services,Grant Related Expenditure,290,06/07/2021,2107-00269,0.00,500.00,R,Abdul Kayer,No
Http://opendatacommunities.org/id/metropolitan-district-council/leeds,Leeds City Council,31/07/2021,City Development,Economic Development,Supplies and Services,Grant Related Expenditure,290,15/07/2021,2107-00270,0.00,250.00,R,Abdul Kayer,No
Http://opendatacommunities.org/id/metropolitan-district-council/leeds,Leeds City Council,31/07/2021,City Development,Economic Development,Supplies and Services,Grant Related Expenditure,290,28/07/2021,2107-00271,0.00,500.00,R,Abdul Malik,No
Http://opendatacommunities.org/id/metropolitan-district-council/leeds,Leeds City Council,31/07/2021,City Development,Economic Development,Supplies and Services,Grant Related Expenditure,290,06/07/2021,2107-00272,0.00,500.00,R,Abdul Nemati,No
Http://opendatacommunities.org/id/metropolitan-district-council/leeds,Leeds City Council,31/07/2021,City Development,Economic Development,Supplies and Services,Grant Related Expenditure,290,15/07/2021,2107-00273,0.00,250.00,R,Abdul Nemati,No
Http://opendatacommunities.org/id/metropolitan-district-council/leeds,Leeds City Council,31/07/2021,City Development,Economic Development,Supplies and Services,Grant Related Expenditure,290,20/07/2021,2107-00274,0.00,250.00,R,Abdul Non Sattar,No
Http://opendatacommunities.org/id/metropolitan-district-council/leeds,Leeds City Council,31/07/2021,City Development,Economic Development,Supplies and Services,Grant Related Expenditure,290,16/07/2021,2107-00275,0.00,250.00,R,Abdul Qadeer,No
Http://opendatacommunities.org/id/metropolitan-district-council/leeds,Leeds City Council,31/07/2021,City Development,Economic Development,Supplies and Services,Grant Related Expenditure,290,12/07/2021,2107-00276,0.00,250.00,R,Abdul Raouf,No
Http://opendatacommunities.org/id/metropolitan-district-council/leeds,Leeds City Council,31/07/2021,City Development,Economic Development,Supplies and Services,Grant Related Expenditure,290,21/07/2021,2107-00277,0.00,250.00,R,Abdul Rashid,No
Http://opendatacommunities.org/id/metropolitan-district-council/leeds,Leeds City Council,31/07/2021,City Development,Economic Development,Supplies and Services,Grant Related Expenditure,290,21/07/2021,2107-00278,0.00,250.00,R,Abdul Rehman,No
Http://opendatacommunities.org/id/metropolitan-district-council/leeds,Leeds City Council,31/07/2021,City Development,Economic Development,Supplies and Services,Grant Related Expenditure,290,16/07/2021,2107-00279,0.00,250.00,R,Abdul Sattar,No
Http://opendatacommunities.org/id/metropolitan-district-council/leeds,Leeds City Council,31/07/2021,City Development,Economic Development,Supplies and Services,Grant Related Expenditure,290,16/07/2021,2107-00280,0.00,500.00,R,Abdul Shakoor,No
Http://opendatacommunities.org/id/metropolitan-district-council/leeds,Leeds City Council,31/07/2021,City Development,Economic Development,Supplies and Services,Grant Related Expenditure,290,28/07/2021,2107-00281,0.00,250.00,R,Abdul Shakoor,No
Http://opendatacommunities.org/id/metropolitan-district-council/leeds,Leeds City Council,31/07/2021,Communities and Environment,Customer Access,Supplies and Services,Bought In Professional Services,277,07/07/2021,2107-00282,0.00,18.00,R,Abdulahad Denha,No
Http://opendatacommunities.org/id/metropolitan-district-council/leeds,Leeds City Council,31/07/2021,Communities and Environment,Customer Access,Supplies and Services,Bought In Professional Services,277,07/07/2021,2107-00283,0.00,18.00,R,Abdulahad Denha,No
Http://opendatacommunities.org/id/metropolitan-district-council/leeds,Leeds City Council,31/07/2021,Communities and Environment,Customer Access,Supplies and Services,Bought In Professional Services,277,16/07/2021,2107-00284,0.00,9.00,R,Abdulahad Denha,No
Http://opendatacommunities.org/id/metropolitan-district-council/leeds,Leeds City Council,31/07/2021,Communities and Environment,Customer Access,Supplies and Services,Bought In Professional Services,277,21/07/2021,2107-00285,0.00,27.00,R,Abdulahad Denha,No
Http://opendatacommunities.org/id/metropolitan-district-council/leeds,Leeds City Council,31/07/2021,Communities and Environment,Customer Access,Supplies and Services,Bought In Professional Services,277,21/07/2021,2107-00286,0.00,18.00,R,Abdulahad Denha,No
Http://opendatacommunities.org/id/metropolitan-district-council/leeds,Leeds City Council,31/07/2021,City Development,Economic Development,Supplies and Services,Grant Related Expenditure,290,16/07/2021,2107-00287,0.00,500.00,R,Abdullah Al Mousawie,No
Http://opendatacommunities.org/id/metropolitan-district-council/leeds,Leeds City Council,31/07/2021,City Development,Economic Development,Supplies and Services,Grant Related Expenditure,290,29/07/2021,2107-00288,0.00,250.00,R,Abdullah Al Mousawie,No
Http://opendatacommunities.org/id/metropolitan-district-council/leeds,Leeds City Council,31/07/2021,Communities and Environment,Elections Licensing and Registration,External Income,Admissions Booking Fees & Ticket Sales,933,08/07/2021,2107-00289,0.00,130.00,R,REDACTED PERSONAL DATA,No
Http://opendatacommunities.org/id/metropolitan-district-council/leeds,Leeds City Council,31/07/2021,City Development,Economic Development,Supplies and Services,Grant Related Expenditure,290,14/07/2021,2107-00290,0.00,500.00,R,Abdulmated Salim,No
Http://opendatacommunities.org/id/metropolitan-district-council/leeds,Leeds City Council,31/07/2021,City Development,Economic Development,Supplies and Services,Grant Related Expenditure,290,28/07/2021,2107-00291,0.00,250.00,R,Abdulmated Salim,No
Http://opendatacommunities.org/id/metropolitan-district-council/leeds,Leeds City Council,31/07/2021,Communities and Environment,Customer Access,Supplies and Services,Bought In Professional Services,277,07/07/2021,2107-00292,0.00,9.00,R,Abdulrahim Dastyar,No
Http://opendatacommunities.org/id/metropolitan-district-council/leeds,Leeds City Council,31/07/2021,Communities and Environment,Customer Access,Supplies and Services,Bought In Professional Services,277,07/07/2021,2107-00293,0.00,18.00,R,Abdulrahim Dastyar,No
Http://opendatacommunities.org/id/metropolitan-district-council/leeds,Leeds City Council,31/07/2021,Communities and Environment,Customer Access,Supplies and Services,Bought In Professional Services,277,07/07/2021,2107-00294,0.00,27.00,R,Abdulrahim Dastyar,No
Http://opendatacommunities.org/id/metropolitan-district-council/leeds,Leeds City Council,31/07/2021,Communities and Environment,Customer Access,Supplies and Services,Bought In Professional Services,277,07/07/2021,2107-00295,0.00,18.00,R,Abdulrahim Dastyar,No
Http://opendatacommunities.org/id/metropolitan-district-council/leeds,Leeds City Council,31/07/2021,Communities and Environment,Customer Access,Supplies and Services,Bought In Professional Services,277,16/07/2021,2107-00296,0.00,18.00,R,Abdulrahim Dastyar,No
Http://opendatacommunities.org/id/metropolitan-district-council/leeds,Leeds City Council,31/07/2021,Communities and Environment,Customer Access,Supplies and Services,Bought In Professional Services,277,16/07/2021,2107-00297,0.00,18.00,R,Abdulrahim Dastyar,No
Http://opendatacommunities.org/id/metropolitan-district-council/leeds,Leeds City Council,31/07/2021,Communities and Environment,Customer Access,Supplies and Services,Bought In Professional Services,277,16/07/2021,2107-00298,0.00,9.00,R,Abdulrahim Dastyar,No
Http://opendatacommunities.org/id/metropolitan-district-council/leeds,Leeds City Council,31/07/2021,Communities and Environment,Customer Access,Supplies and Services,Bought In Professional Services,277,21/07/2021,2107-00299,0.00,18.00,R,Abdulrahim Dastyar,No
Http://opendatacommunities.org/id/metropolitan-district-council/leeds,Leeds City Council,31/07/2021,Communities and Environment,Customer Access,Supplies and Services,Bought In Professional Services,277,21/07/2021,2107-00300,0.00,18.00,R,Abdulrahim Dastyar,No
Http://opendatacommunities.org/id/metropolitan-district-council/leeds,Leeds City Council,31/07/2021,Communities and Environment,Customer Access,Supplies and Services,Bought In Professional Services,277,29/07/2021,2107-00301,0.00,19.50,R,Abdulrahim Dastyar,No
Http://opendatacommunities.org/id/metropolitan-district-council/leeds,Leeds City Council,31/07/2021,Resources and Housing,Sustainable Energy & Climate Change,Capital,OTHER COSTS,7,28/07/2021,2107-00302,0.00,2100.00,C,REDACTED COMMERCIAL CONFIDENTIALITY,No
Http://opendatacommunities.org/id/metropolitan-district-council/leeds,Leeds City Council,31/07/2021,Adults and Health,Services For Older People - 65 And Over,Agency Payments,Nursing Home,570,21/07/2021,2107-00303,0.00,18916.29,R,Aberford Hall,No
Http://opendatacommunities.org/id/metropolitan-district-council/leeds,Leeds City Council,31/07/2021,City Development,Economic Development,Supplies and Services,Grant Related Expenditure,290,14/07/2021,2107-00304,0.00,250.00,R,Abid Ali,No
Http://opendatacommunities.org/id/metropolitan-district-council/leeds,Leeds City Council,31/07/2021,City Development,Economic Development,Supplies and Services,Grant Related Expenditure,290,06/07/2021,2107-00305,0.00,500.00,R,Abid Hussain,No
Http://opendatacommunities.org/id/metropolitan-district-council/leeds,Leeds City Council,31/07/2021,City Development,Economic Development,Supplies and Services,Grant Related Expenditure,290,15/07/2021,2107-00306,0.00,250.00,R,Abid Hussain,No
Http://opendatacommunities.org/id/metropolitan-district-council/leeds,Leeds City Council,31/07/2021,City Development,Economic Development,Supplies and Services,Grant Related Expenditure,290,21/07/2021,2107-00307,0.00,500.00,R,Abid Hussain,No
Http://opendatacommunities.org/id/metropolitan-district-council/leeds,Leeds City Council,31/07/2021,City Development,Economic Development,Supplies and Services,Grant Related Expenditure,290,30/07/2021,2107-00308,0.00,250.00,R,Abid Hussain,No
Http://opendatacommunities.org/id/metropolitan-district-council/leeds,Leeds City Council,31/07/2021,Communities and Environment,Customer Access,Supplies and Services,Bought In Professional Services,277,21/07/2021,2107-00309,0.00,17.10,R,Abida Begum,No
Http://opendatacommunities.org/id/metropolitan-district-council/leeds,Leeds City Council,31/07/2021,Communities and Environment,Benefits Welfare and Poverty,Supplies and Services,Grant Related Expenditure,298,02/07/2021,2107-00310,0.00,500.00,R,REDACTED PERSONAL DATA,No
Http://opendatacommunities.org/id/metropolitan-district-council/leeds,Leeds City Council,31/07/2021,Communities and Environment,Benefits Welfare and Poverty,Supplies and Services,Grant Related Expenditure,298,14/07/2021,2107-00311,0.00,500.00,R,REDACTED PERSONAL DATA,No
Http://opendatacommunities.org/id/metropolitan-district-council/leeds,Leeds City Council,31/07/2021,Children and Families,Social Care,Agency Payments, Direct Work,549,07/07/2021,2107-00312,0.00,108.00,R,REDACTED PERSONAL DATA,No
Http://opendatacommunities.org/id/metropolitan-district-council/leeds,Leeds City Council,31/07/2021,Communities and Environment,Benefits Welfare and Poverty,Supplies and Services,Grant Related Expenditure,290,15/07/2021,2107-00313,0.00,500.00,R,REDACTED PERSONAL DATA,No
Http://opendatacommunities.org/id/metropolitan-district-council/leeds,Leeds City Council,31/07/2021,Communities and Environment,Benefits Welfare and Poverty,Supplies and Services,Grant Related Expenditure,298,12/07/2021,2107-00314,0.00,500.00,R,REDACTED PERSONAL DATA,No
Http://opendatacommunities.org/id/metropolitan-district-council/leeds,Leeds City Council,31/07/2021,Communities and Environment,Benefits Welfare and Poverty,Supplies and Services,Grant Related Expenditure,298,08/07/2021,2107-00315,0.00,500.00,R,REDACTED PERSONAL DATA,No
Http://opendatacommunities.org/id/metropolitan-district-council/leeds,Leeds City Council,31/07/2021,Communities and Environment,Benefits Welfare and Poverty,Supplies and Services,Grant Related Expenditure,298,29/07/2021,2107-00316,0.00,500.00,R,REDACTED PERSONAL DATA,No
Http://opendatacommunities.org/id/metropolitan-district-council/leeds,Leeds City Council,31/07/2021,Communities and Environment,Benefits Welfare and Poverty,Supplies and Services,Grant Related Expenditure,298,02/07/2021,2107-00317,0.00,500.00,R,REDACTED PERSONAL DATA,No
Http://opendatacommunities.org/id/metropolitan-district-council/leeds,Leeds City Council,31/07/2021,Communities and Environment,Waste Management,Supplies and Services,Publication And Promotion,267,09/07/2021,2107-00318,0.00,30.00,R,REDACTED PERSONAL DATA,No
Http://opendatacommunities.org/id/metropolitan-district-council/leeds,Leeds City Council,31/07/2021,Children and Families,Social Care,Appropriations,Leaving Care Allowances,634,09/07/2021,2107-00319,0.00,160.00,R,REDACTED PERSONAL DATA,No
Http://opendatacommunities.org/id/metropolitan-district-council/leeds,Leeds City Council,31/07/2021,City Development,Economic Development,Supplies and Services,Grant Related Expenditure,290,30/07/2021,2107-00320,0.00,2000.00,R,Abraham Moon & Sons,No
Http://opendatacommunities.org/id/metropolitan-district-council/leeds,Leeds City Council,31/07/2021,Adults and Health,Services For Adults Under 65 Mental/Dis,Agency Payments,Fees - Level 4,520,01/07/2021,2107-00321,0.00,175.00,R,Abubaker Denja Mohammed,No
Http://opendatacommunities.org/id/metropolitan-district-council/leeds,Leeds City Council,31/07/2021,Adults and Health,Services For Adults Under 65 Mental/Dis,Agency Payments,Fees - Level 4,520,01/07/2021,2107-00322,0.00,175.00,R,Abubaker Denja Mohammed,No
Http://opendatacommunities.org/id/metropolitan-district-council/leeds,Leeds City Council,31/07/2021,Adults and Health,Services For Adults Under 65 Mental/Dis,Agency Payments,Fees - Level 4,520,09/07/2021,2107-00323,0.00,175.00,R,Abubaker Denja Mohammed,No
Http://opendatacommunities.org/id/metropolitan-district-council/leeds,Leeds City Council,31/07/2021,Adults and Health,Services For Adults Under 65 Mental/Dis,Agency Payments,Fees - Level 4,520,09/07/2021,2107-00324,0.00,175.00,R,Abubaker Denja Mohammed,No
Http://opendatacommunities.org/id/metropolitan-district-council/leeds,Leeds City Council,31/07/2021,Adults and Health,Services For Adults Under 65 Mental/Dis,Agency Payments,Fees - Level 4,520,09/07/2021,2107-00325,0.00,175.00,R,Abubaker Denja Mohammed,No
Http://opendatacommunities.org/id/metropolitan-district-council/leeds,Leeds City Council,31/07/2021,Adults and Health,Services For Adults Under 65 Mental/Dis,Agency Payments,Fees - Level 4,520,30/07/2021,2107-00326,0.00,175.00,R,Abubaker Denja Mohammed,No
Http://opendatacommunities.org/id/metropolitan-district-council/leeds,Leeds City Council,31/07/2021,Adults and Health,Services For Adults Under 65 Mental/Dis,Agency Payments,Fees - Level 4,520,30/07/2021,2107-00327,0.00,175.00,R,Abubaker Denja Mohammed,No
Http://opendatacommunities.org/id/metropolitan-district-council/leeds,Leeds City Council,31/07/2021,Adults and Health,Services For Adults Under 65 Mental/Dis,Agency Payments,Fees - Level 4,520,30/07/2021,2107-00328,0.00,175.00,R,Abubaker Denja Mohammed,No
Http://opendatacommunities.org/id/metropolitan-district-council/leeds,Leeds City Council,31/07/2021,Adults and Health,Social Services Support Services,Employees,Training & Development,70,30/07/2021,2107-00329,0.00,3440.00,R,ACAS,No
Http://opendatacommunities.org/id/metropolitan-district-council/leeds,Leeds City Council,31/07/2021,Resources and Housing,Strategic Housing Partnership & Support,Supplies and Services,Other Hired And Contracted Services,265,26/07/2021,2107-00330,0.00,193.09,R,Accent Foundation Ltd,No
Http://opendatacommunities.org/id/metropolitan-district-council/leeds,Leeds City Council,31/07/2021,Children and Families,Social Care,Supplies and Services,Operational Materials,205,15/06/2021,2107-00331,0.00,21.60,R,Access Locksmiths,Yes
Http://opendatacommunities.org/id/metropolitan-district-council/leeds,Leeds City Council,31/07/2021,Communities and Environment,Waste Management,Transport,Repair & Maintenance of  Plant,342,22/06/2021,2107-00332,0.00,57.25,R,Access Locksmiths,Yes
Http://opendatacommunities.org/id/metropolitan-district-council/leeds,Leeds City Council,31/07/2021,Strategic Landlord,Property and Contracts,Premises,General Maintenance,104,07/07/2021,2107-00333,0.00,245.59,R,ACCESS LOCKSMITHS (LEEDS) LIMITED,No
Http://opendatacommunities.org/id/metropolitan-district-council/leeds,Leeds City Council,31/07/2021,Resources and Housing,Leeds Building Services,Supplies and Services,Operational Materials,205,08/07/2021,2107-00334,0.00,103.00,R,ACCESS LOCKSMITHS (LEEDS) LIMITED,No
Http://opendatacommunities.org/id/metropolitan-district-council/leeds,Leeds City Council,31/07/2021,Resources and Housing,Leeds Building Services,Supplies and Services,Operational Materials,205,08/07/2021,2107-00335,0.00,5.40,R,ACCESS LOCKSMITHS (LEEDS) LIMITED,No
Http://opendatacommunities.org/id/metropolitan-district-council/leeds,Leeds City Council,31/07/2021,Resources and Housing,Leeds Building Services,Supplies and Services,Operational Materials,205,08/07/2021,2107-00336,0.00,128.01,R,ACCESS LOCKSMITHS (LEEDS) LIMITED,No
Http://opendatacommunities.org/id/metropolitan-district-council/leeds,Leeds City Council,31/07/2021,Resources and Housing,Leeds Building Services,Supplies and Services,Operational Materials,205,08/07/2021,2107-00337,0.00,40.50,R,ACCESS LOCKSMITHS (LEEDS) LIMITED,No
Http://opendatacommunities.org/id/metropolitan-district-council/leeds,Leeds City Council,31/07/2021,Resources and Housing,HRA Housing Leeds,Capital,OTHER COSTS,7,08/07/2021,2107-00338,0.00,214.67,C,ACCESS LOCKSMITHS (LEEDS) LIMITED,No
Http://opendatacommunities.org/id/metropolitan-district-council/leeds,Leeds City Council,31/07/2021,Strategic Landlord,Property and Contracts,Premises,Maintenance Of Buildings,101,08/07/2021,2107-00339,0.00,749.40,R,ACCESS LOCKSMITHS (LEEDS) LIMITED,No
Http://opendatacommunities.org/id/metropolitan-district-council/leeds,Leeds City Council,31/07/2021,Strategic Landlord,Housing Management,Supplies and Services,Resaleable Materials,204,15/07/2021,2107-00340,0.00,753.59,R,ACCESS LOCKSMITHS (LEEDS) LIMITED,No
Http://opendatacommunities.org/id/metropolitan-district-council/leeds,Leeds City Council,31/07/2021,Resources and Housing,Commercial Services,Supplies and Services,Operational Furniture And Equipment,203,15/07/2021,2107-00341,0.00,23.00,R,ACCESS LOCKSMITHS (LEEDS) LIMITED,No
Http://opendatacommunities.org/id/metropolitan-district-council/leeds,Leeds City Council,31/07/2021,Resources and Housing,HRA Housing Leeds,Capital,OTHER COSTS,7,15/07/2021,2107-00342,0.00,261.56,C,ACCESS LOCKSMITHS (LEEDS) LIMITED,No
Http://opendatacommunities.org/id/metropolitan-district-council/leeds,Leeds City Council,31/07/2021,Resources and Housing,HRA Housing Leeds,Capital,OTHER COSTS,7,15/07/2021,2107-00343,0.00,187.74,C,ACCESS LOCKSMITHS (LEEDS) LIMITED,No
Http://opendatacommunities.org/id/metropolitan-district-council/leeds,Leeds City Council,31/07/2021,Strategic Landlord,Housing Management,Supplies and Services,Resaleable Materials,204,21/07/2021,2107-00344,0.00,124.00,R,ACCESS LOCKSMITHS (LEEDS) LIMITED,No
Http://opendatacommunities.org/id/metropolitan-district-council/leeds,Leeds City Council,31/07/2021,Strategic Landlord,Housing Management,Supplies and Services,Resaleable Materials,204,21/07/2021,2107-00345,0.00,88.00,R,ACCESS LOCKSMITHS (LEEDS) LIMITED,No
Http://opendatacommunities.org/id/metropolitan-district-council/leeds,Leeds City Council,31/07/2021,Strategic Landlord,Housing Management,Supplies and Services,Resaleable Materials,204,26/07/2021,2107-00346,0.00,70.62,R,ACCESS LOCKSMITHS (LEEDS) LIMITED,No
Http://opendatacommunities.org/id/metropolitan-district-council/leeds,Leeds City Council,31/07/2021,Resources and Housing,Leeds Building Services,Supplies and Services,Operational Materials,205,29/07/2021,2107-00347,0.00,309.04,R,ACCESS LOCKSMITHS (LEEDS) LIMITED,No
Http://opendatacommunities.org/id/metropolitan-district-council/leeds,Leeds City Council,31/07/2021,Resources and Housing,Leeds Building Services,Supplies and Services,Operational Materials,205,29/07/2021,2107-00348,0.00,8.55,R,ACCESS LOCKSMITHS (LEEDS) LIMITED,No
Http://opendatacommunities.org/id/metropolitan-district-council/leeds,Leeds City Council,31/07/2021,Resources and Housing,Leeds Building Services,Supplies and Services,Operational Materials,205,29/07/2021,2107-00349,0.00,39.30,R,ACCESS LOCKSMITHS (LEEDS) LIMITED,No
Http://opendatacommunities.org/id/metropolitan-district-council/leeds,Leeds City Council,31/07/2021,Strategic Landlord,Housing Management,Supplies and Services,Resaleable Materials,204,29/07/2021,2107-00350,0.00,21.60,R,ACCESS LOCKSMITHS (LEEDS) LIMITED,No
Http://opendatacommunities.org/id/metropolitan-district-council/leeds,Leeds City Council,31/07/2021,Strategic Landlord,Housing Management,Supplies and Services,Resaleable Materials,204,29/07/2021,2107-00351,0.00,24.80,R,ACCESS LOCKSMITHS (LEEDS) LIMITED,No
Http://opendatacommunities.org/id/metropolitan-district-council/leeds,Leeds City Council,31/07/2021,Strategic Landlord,Property and Contracts,Premises,Maintenance Of Buildings,101,29/07/2021,2107-00352,0.00,102.42,R,ACCESS LOCKSMITHS (LEEDS) LIMITED,No
Http://opendatacommunities.org/id/metropolitan-district-council/leeds,Leeds City Council,31/07/2021,Strategic Landlord,Housing Management,Supplies and Services,Resaleable Materials,204,29/07/2021,2107-00353,0.00,124.00,R,ACCESS LOCKSMITHS (LEEDS) LIMITED,No
Http://opendatacommunities.org/id/metropolitan-district-council/leeds,Leeds City Council,31/07/2021,Resources and Housing,Strategic Housing Partnership & Support,Supplies and Services,Other Hired And Contracted Services,265,23/07/2021,2107-00354,0.00,2584.00,R,Accommodation Lettings Ltd,No
Http://opendatacommunities.org/id/metropolitan-district-council/leeds,Leeds City Council,31/07/2021,Insurance,Insurance,Supplies and Services,Insurance Claims,248,15/07/2021,2107-00355,0.00,6000.00,R,Accountant General Of The Senior Courts,No
Http://opendatacommunities.org/id/metropolitan-district-council/leeds,Leeds City Council,31/07/2021,City Development,Libraries Arts & Heritage,Supplies and Services,Other Hired And Contracted Services,265,02/07/2021,2107-00356,0.00,45.00,R,ACE CONTAINER SERVICES LIMITED,No
Http://opendatacommunities.org/id/metropolitan-district-council/leeds,Leeds City Council,31/07/2021,City Development,Recreation,Transport,External Hire -Occasional,304,30/07/2021,2107-00357,0.00,128.65,R,ACE CONTAINER SERVICES LIMITED,No
Http://opendatacommunities.org/id/metropolitan-district-council/leeds,Leeds City Council,31/07/2021,Children and Families,Social Care,Supplies and Services,Bought In Professional Services,277,01/07/2021,2107-00358,0.00,125.00,R,ACET UK,No
Http://opendatacommunities.org/id/metropolitan-district-council/leeds,Leeds City Council,31/07/2021,City Development,Economic Development,Supplies and Services,Grant Related Expenditure,290,12/07/2021,2107-00359,0.00,250.00,R,Achla Manrai,No
Http://opendatacommunities.org/id/metropolitan-district-council/leeds,Leeds City Council,31/07/2021,Resources and Housing,Strategic Housing Partnership & Support,Supplies and Services,Other Hired And Contracted Services,265,19/07/2021,2107-00360,0.00,1185.00,R,ACL Rents,No
Http://opendatacommunities.org/id/metropolitan-district-council/leeds,Leeds City Council,31/07/2021,Communities and Environment,Parks and Countryside,Premises,General Maintenance,104,01/06/2021,2107-00361,0.00,90.00,R,Acme Facilities Group,Yes
Http://opendatacommunities.org/id/metropolitan-district-council/leeds,Leeds City Council,31/07/2021,Children and Families,Social Care,Agency Payments,General External Residential Placements,507,01/07/2021,2107-00362,0.00,-15695.00,R,Acorn Care & Education Ltd (Sales),No
Http://opendatacommunities.org/id/metropolitan-district-council/leeds,Leeds City Council,31/07/2021,Children and Families,Social Care,Agency Payments,General External Residential Placements,507,01/07/2021,2107-00363,0.00,-15695.00,R,Acorn Care & Education Ltd (Sales),No
Http://opendatacommunities.org/id/metropolitan-district-council/leeds,Leeds City Council,31/07/2021,Children and Families,Social Care,Agency Payments,General External Residential Placements,507,01/07/2021,2107-00364,0.00,-15695.00,R,Acorn Care & Education Ltd (Sales),No
Http://opendatacommunities.org/id/metropolitan-district-council/leeds,Leeds City Council,31/07/2021,Children and Families,Partnerships & Health,Agency Payments,SEN Placements,566,01/07/2021,2107-00365,0.00,1040.00,R,Acorn Care & Education Ltd (Sales),No
Http://opendatacommunities.org/id/metropolitan-district-council/leeds,Leeds City Council,31/07/2021,Children and Families,Social Care,Agency Payments,General External Residential Placements,507,01/07/2021,2107-00366,0.00,16692.86,R,Acorn Care & Education Ltd (Sales),No
Http://opendatacommunities.org/id/metropolitan-district-council/leeds,Leeds City Council,31/07/2021,Children and Families,Social Care,Agency Payments,General External Residential Placements,507,01/07/2021,2107-00367,0.00,16692.86,R,Acorn Care & Education Ltd (Sales),No
Http://opendatacommunities.org/id/metropolitan-district-council/leeds,Leeds City Council,31/07/2021,Children and Families,Social Care,Agency Payments,General External Residential Placements,507,01/07/2021,2107-00368,0.00,17249.29,R,Acorn Care & Education Ltd (Sales),No
Http://opendatacommunities.org/id/metropolitan-district-council/leeds,Leeds City Council,31/07/2021,Children and Families,Partnerships & Health,Agency Payments,SEN Placements,566,01/07/2021,2107-00369,0.00,1520.00,R,Acorn Care & Education Ltd (Sales),No
Http://opendatacommunities.org/id/metropolitan-district-council/leeds,Leeds City Council,31/07/2021,Children and Families,Social Care,Agency Payments,General External Residential Placements,507,01/07/2021,2107-00370,0.00,17249.29,R,Acorn Care & Education Ltd (Sales),No
Http://opendatacommunities.org/id/metropolitan-district-council/leeds,Leeds City Council,31/07/2021,Adults and Health,Other Adult Services,Agency Payments,Residential,580,01/07/2021,2107-00371,0.00,904.12,R,Acorn Care & Education Ltd (Sales),No
Http://opendatacommunities.org/id/metropolitan-district-council/leeds,Leeds City Council,31/07/2021,Adults and Health,Other Adult Services,Agency Payments,Residential,580,01/07/2021,2107-00372,0.00,707.72,R,Acorn Care & Education Ltd (Sales),No
Http://opendatacommunities.org/id/metropolitan-district-council/leeds,Leeds City Council,31/07/2021,Children and Families,Social Care,Agency Payments,General External Residential Placements,507,29/07/2021,2107-00373,0.00,16692.86,R,Acorn Care & Education Ltd (Sales),No
Http://opendatacommunities.org/id/metropolitan-district-council/leeds,Leeds City Council,31/07/2021,Children and Families,Social Care,Agency Payments,General External Residential Placements,507,29/07/2021,2107-00374,0.00,20374.46,R,Acorn Care & Education Ltd (Sales),No
Http://opendatacommunities.org/id/metropolitan-district-council/leeds,Leeds City Council,31/07/2021,Children and Families,Social Care,Agency Payments,General External Residential Placements,507,29/07/2021,2107-00375,0.00,19717.22,R,Acorn Care & Education Ltd (Sales),No
Http://opendatacommunities.org/id/metropolitan-district-council/leeds,Leeds City Council,31/07/2021,Children and Families,Social Care,Agency Payments,General External Residential Placements,507,29/07/2021,2107-00376,0.00,-15480.00,R,Acorn Care & Education Ltd (Sales),No
Http://opendatacommunities.org/id/metropolitan-district-council/leeds,Leeds City Council,31/07/2021,Adults and Health,Services For Older People - 65 And Over,Agency Payments,Residential Care Dementia,571,21/07/2021,2107-00377,0.00,1640.48,R,Acorn Nursing Home,No
Http://opendatacommunities.org/id/metropolitan-district-council/leeds,Leeds City Council,31/07/2021,Adults and Health,Other Adult Services,Agency Payments,Residential - Drugs & Alcohol,583,30/07/2021,2107-00378,0.00,1335.71,R,Acorn Treatment & Housing,No
Http://opendatacommunities.org/id/metropolitan-district-council/leeds,Leeds City Council,31/07/2021,Children and Families,Social Care,Agency Payments,Services Rendered By Other Organisations,511,02/07/2021,2107-00379,0.00,9044.88,R,ACORNS NURSERY,No
Http://opendatacommunities.org/id/metropolitan-district-council/leeds,Leeds City Council,31/07/2021,Children and Families,Social Care,Agency Payments,Services Rendered By Other Organisations,511,07/07/2021,2107-00380,0.00,522.60,R,ACORNS NURSERY,No
Http://opendatacommunities.org/id/metropolitan-district-council/leeds,Leeds City Council,31/07/2021,Adults and Health,Services For Older People - 65 And Over,Agency Payments,Nursing Home,570,21/07/2021,2107-00381,0.00,23131.36,R,Acre Green,No
Http://opendatacommunities.org/id/metropolitan-district-council/leeds,Leeds City Council,31/07/2021,Adults and Health,Services For Older People - 65 And Over,Agency Payments,Residential,580,21/07/2021,2107-00382,0.00,201.20,R,Acre Green,No
Http://opendatacommunities.org/id/metropolitan-district-council/leeds,Leeds City Council,31/07/2021,Adults and Health,Services For Older People Under 65 P/Dis,Agency Payments,Nursing Home,570,21/07/2021,2107-00383,0.00,5555.43,R,Acre Green,No
Http://opendatacommunities.org/id/metropolitan-district-council/leeds,Leeds City Council,31/07/2021,Adults and Health,Services For Older People Under 65 P/Dis,Agency Payments,Residential,580,21/07/2021,2107-00384,0.00,1647.20,R,Acre Green,No
Http://opendatacommunities.org/id/metropolitan-district-council/leeds,Leeds City Council,31/07/2021,Children and Families,Social Care,Agency Payments,Services Rendered By Other Organisations,511,02/07/2021,2107-00385,0.00,12523.68,R,Acre Wood Day Nursery,No
Http://opendatacommunities.org/id/metropolitan-district-council/leeds,Leeds City Council,31/07/2021,Children and Families,Social Care,Agency Payments,Services Rendered By Other Organisations,511,07/07/2021,2107-00386,0.00,1463.28,R,Acre Wood Day Nursery,No
Http://opendatacommunities.org/id/metropolitan-district-council/leeds,Leeds City Council,31/07/2021,Children and Families,Social Care,Agency Payments,Services Rendered By Voluntary Sector,505,26/07/2021,2107-00387,0.00,1368.42,R,Acre Wood Day Nursery,No
Http://opendatacommunities.org/id/metropolitan-district-council/leeds,Leeds City Council,31/07/2021,City Development,Highways,Supplies and Services,Operational Materials,205,23/07/2021,2107-00388,0.00,16.20,R,Actavo Hire And Sales Uk Limited,No
Http://opendatacommunities.org/id/metropolitan-district-council/leeds,Leeds City Council,31/07/2021,Children and Families,Social Care,Agency Payments,Independent Fostering Agencies,509,02/07/2021,2107-00389,0.00,4663.96,R,Action For Children Services Ltd,No
Http://opendatacommunities.org/id/metropolitan-district-council/leeds,Leeds City Council,31/07/2021,Children and Families,Social Care,Agency Payments,Independent Fostering Agencies,509,02/07/2021,2107-00390,0.00,5163.67,R,Action For Children Services Ltd,No
Http://opendatacommunities.org/id/metropolitan-district-council/leeds,Leeds City Council,31/07/2021,Children and Families,Social Care,Agency Payments,Independent Fostering Agencies,509,02/07/2021,2107-00391,0.00,4897.20,R,Action For Children Services Ltd,No
Http://opendatacommunities.org/id/metropolitan-district-council/leeds,Leeds City Council,31/07/2021,Children and Families,Social Care,Agency Payments,Independent Fostering Agencies,509,15/07/2021,2107-00392,0.00,5060.44,R,Action For Children Services Ltd,No
Http://opendatacommunities.org/id/metropolitan-district-council/leeds,Leeds City Council,31/07/2021,Children and Families,Social Care,Agency Payments,Independent Fostering Agencies,509,29/07/2021,2107-00393,0.00,4897.20,R,Action For Children Services Ltd,No
Http://opendatacommunities.org/id/metropolitan-district-council/leeds,Leeds City Council,31/07/2021,Adults and Health,Services For Older People - 65 And Over,Agency Payments,Payments To Voluntary Organisations,561,01/07/2021,2107-00394,0.00,49415.82,R,ACTION FOR GIPTON ELDERLY,No
Http://opendatacommunities.org/id/metropolitan-district-council/leeds,Leeds City Council,31/07/2021,Insurance,Insurance,Supplies and Services,Insurance Claims,248,20/07/2021,2107-00395,0.00,2000.00,R,Active Claims Solutions Ltd,No
Http://opendatacommunities.org/id/metropolitan-district-council/leeds,Leeds City Council,31/07/2021,City Development,Economic Development,Supplies and Services,Grant Related Expenditure,290,16/07/2021,2107-00396,0.00,5859.00,R,ACTIVE HIRE (LEEDS) LTD,No
Http://opendatacommunities.org/id/metropolitan-district-council/leeds,Leeds City Council,31/07/2021,Children and Families,Social Care,Agency Payments,Services Rendered By Other Organisations,511,02/07/2021,2107-00397,0.00,7421.44,R,ACTIVE KIDS YEADON LLP,No
Http://opendatacommunities.org/id/metropolitan-district-council/leeds,Leeds City Council,31/07/2021,Children and Families,Social Care,Agency Payments,Services Rendered By Other Organisations,511,07/07/2021,2107-00398,0.00,627.12,R,ACTIVE KIDS YEADON LLP,No
Http://opendatacommunities.org/id/metropolitan-district-council/leeds,Leeds City Council,31/07/2021,Adults and Health,Services For Adults Under 65 Mental/Dis,Agency Payments,Sheltered Accommodation,569,21/07/2021,2107-00399,0.00,19345.85,R,Active Pathways,No
Http://opendatacommunities.org/id/metropolitan-district-council/leeds,Leeds City Council as Accountable Body,31/07/2021,Social Services Pooled Budgets,Jcs For People With Learning Disabilitie,Agency Payments,Sheltered Accommodation,569,21/07/2021,2107-00400,0.00,12452.52,R,Active Pathways,No
Http://opendatacommunities.org/id/metropolitan-district-council/leeds,Leeds City Council,31/07/2021,Communities and Environment,Waste Management,Supplies and Services,Recycling & Reuse Charges,234,09/07/2021,2107-00401,0.00,989.28,R,Acumen Waste Services Ltd,No
Http://opendatacommunities.org/id/metropolitan-district-council/leeds,Leeds City Council,31/07/2021,Communities and Environment,Waste Management,Supplies and Services,Recycling & Reuse Charges,234,09/07/2021,2107-00402,0.00,981.36,R,Acumen Waste Services Ltd,No
Http://opendatacommunities.org/id/metropolitan-district-council/leeds,Leeds City Council,31/07/2021,Communities and Environment,Waste Management,Supplies and Services,Recycling & Reuse Charges,234,09/07/2021,2107-00403,0.00,1031.04,R,Acumen Waste Services Ltd,No
Http://opendatacommunities.org/id/metropolitan-district-council/leeds,Leeds City Council,31/07/2021,Communities and Environment,Waste Management,Supplies and Services,Recycling & Reuse Charges,234,09/07/2021,2107-00404,0.00,1041.84,R,Acumen Waste Services Ltd,No
Http://opendatacommunities.org/id/metropolitan-district-council/leeds,Leeds City Council,31/07/2021,Communities and Environment,Waste Management,Supplies and Services,Recycling & Reuse Charges,234,09/07/2021,2107-00405,0.00,163.00,R,Acumen Waste Services Ltd,No
Http://opendatacommunities.org/id/metropolitan-district-council/leeds,Leeds City Council,31/07/2021,Communities and Environment,Waste Management,Supplies and Services,Recycling & Reuse Charges,234,09/07/2021,2107-00406,0.00,1005.12,R,Acumen Waste Services Ltd,No
Http://opendatacommunities.org/id/metropolitan-district-council/leeds,Leeds City Council,31/07/2021,Communities and Environment,Waste Management,Supplies and Services,Recycling & Reuse Charges,234,09/07/2021,2107-00407,0.00,1023.84,R,Acumen Waste Services Ltd,No
Http://opendatacommunities.org/id/metropolitan-district-council/leeds,Leeds City Council,31/07/2021,Communities and Environment,Waste Management,Supplies and Services,Recycling & Reuse Charges,234,09/07/2021,2107-00408,0.00,999.36,R,Acumen Waste Services Ltd,No
Http://opendatacommunities.org/id/metropolitan-district-council/leeds,Leeds City Council,31/07/2021,Communities and Environment,Waste Management,Supplies and Services,Recycling & Reuse Charges,234,09/07/2021,2107-00409,0.00,1043.28,R,Acumen Waste Services Ltd,No
Http://opendatacommunities.org/id/metropolitan-district-council/leeds,Leeds City Council,31/07/2021,Communities and Environment,Waste Management,Supplies and Services,Recycling & Reuse Charges,234,09/07/2021,2107-00410,0.00,1016.64,R,Acumen Waste Services Ltd,No
Http://opendatacommunities.org/id/metropolitan-district-council/leeds,Leeds City Council,31/07/2021,Communities and Environment,Waste Management,Supplies and Services,Recycling & Reuse Charges,234,09/07/2021,2107-00411,0.00,1035.36,R,Acumen Waste Services Ltd,No
Http://opendatacommunities.org/id/metropolitan-district-council/leeds,Leeds City Council,31/07/2021,Communities and Environment,Waste Management,Supplies and Services,Recycling & Reuse Charges,234,16/07/2021,2107-00412,0.00,1015.20,R,Acumen Waste Services Ltd,No
Http://opendatacommunities.org/id/metropolitan-district-council/leeds,Leeds City Council,31/07/2021,Communities and Environment,Waste Management,Supplies and Services,Recycling & Reuse Charges,234,16/07/2021,2107-00413,0.00,960.48,R,Acumen Waste Services Ltd,No
Http://opendatacommunities.org/id/metropolitan-district-council/leeds,Leeds City Council,31/07/2021,Communities and Environment,Waste Management,Supplies and Services,Recycling & Reuse Charges,234,16/07/2021,2107-00414,0.00,1031.76,R,Acumen Waste Services Ltd,No
Http://opendatacommunities.org/id/metropolitan-district-council/leeds,Leeds City Council,31/07/2021,Communities and Environment,Waste Management,Supplies and Services,Recycling & Reuse Charges,234,16/07/2021,2107-00415,0.00,994.32,R,Acumen Waste Services Ltd,No
Http://opendatacommunities.org/id/metropolitan-district-council/leeds,Leeds City Council,31/07/2021,Communities and Environment,Waste Management,Supplies and Services,Recycling & Reuse Charges,234,16/07/2021,2107-00416,0.00,1028.16,R,Acumen Waste Services Ltd,No
Http://opendatacommunities.org/id/metropolitan-district-council/leeds,Leeds City Council,31/07/2021,Communities and Environment,Waste Management,Supplies and Services,Bought In Professional Services,277,16/07/2021,2107-00417,0.00,750.40,R,Acumen Waste Services Ltd,No
Http://opendatacommunities.org/id/metropolitan-district-council/leeds,Leeds City Council,31/07/2021,Communities and Environment,Waste Management,Supplies and Services,Recycling & Reuse Charges,234,21/07/2021,2107-00418,0.00,1000.08,R,Acumen Waste Services Ltd,No
Http://opendatacommunities.org/id/metropolitan-district-council/leeds,Leeds City Council,31/07/2021,Communities and Environment,Waste Management,Supplies and Services,Recycling & Reuse Charges,234,22/07/2021,2107-00419,0.00,-978.48,R,Acumen Waste Services Ltd,No
Http://opendatacommunities.org/id/metropolitan-district-council/leeds,Leeds City Council,31/07/2021,Communities and Environment,Waste Management,Supplies and Services,Recycling & Reuse Charges,234,22/07/2021,2107-00420,0.00,997.92,R,Acumen Waste Services Ltd,No
Http://opendatacommunities.org/id/metropolitan-district-council/leeds,Leeds City Council,31/07/2021,Communities and Environment,Parks and Countryside,Supplies and Services,Resaleable Materials,204,21/07/2021,2107-00421,0.00,75.00,R,ACUSHNET EUROPE LIMITED,No
Http://opendatacommunities.org/id/metropolitan-district-council/leeds,Leeds City Council,31/07/2021,Communities and Environment,Parks and Countryside,Supplies and Services,Resaleable Materials,204,23/07/2021,2107-00422,0.00,150.00,R,ACUSHNET EUROPE LIMITED,No
Http://opendatacommunities.org/id/metropolitan-district-council/leeds,Leeds City Council,31/07/2021,City Development,Economic Development,Supplies and Services,Grant Related Expenditure,290,30/07/2021,2107-00423,0.00,2000.00,R,Acute Care Chiropractic Clinic Ltd,No
Http://opendatacommunities.org/id/metropolitan-district-council/leeds,Leeds City Council,31/07/2021,Resources and Housing,Shared Services,Supplies and Services,Operational Materials,205,09/07/2021,2107-00424,0.00,1131.75,R,AD3 Envelope Printers Limited,No
Http://opendatacommunities.org/id/metropolitan-district-council/leeds,Leeds City Council,31/07/2021,Resources and Housing,Shared Services,Supplies and Services,Other Hired And Contracted Services,265,14/07/2021,2107-00425,0.00,80.72,R,AD3 Envelope Printers Limited,No
Http://opendatacommunities.org/id/metropolitan-district-council/leeds,Leeds City Council,31/07/2021,Communities and Environment,Benefits Welfare and Poverty,Supplies and Services,Grant Related Expenditure,290,01/07/2021,2107-00426,0.00,500.00,R,REDACTED PERSONAL DATA,No
Http://opendatacommunities.org/id/metropolitan-district-council/leeds,Leeds City Council,31/07/2021,Communities and Environment,Benefits Welfare and Poverty,Supplies and Services,Grant Related Expenditure,298,26/07/2021,2107-00427,0.00,500.00,R,REDACTED PERSONAL DATA,No
Http://opendatacommunities.org/id/metropolitan-district-council/leeds,Leeds City Council,31/07/2021,Communities and Environment,Benefits Welfare and Poverty,Supplies and Services,Grant Related Expenditure,298,21/07/2021,2107-00428,0.00,500.00,R,REDACTED PERSONAL DATA,No
Http://opendatacommunities.org/id/metropolitan-district-council/leeds,Leeds City Council,31/07/2021,City Development,Economic Development,Supplies and Services,Grant Related Expenditure,290,01/07/2021,2107-00429,0.00,250.00,R,Adam H Sharif,No
Http://opendatacommunities.org/id/metropolitan-district-council/leeds,Leeds City Council,31/07/2021,Communities and Environment,Benefits Welfare and Poverty,Supplies and Services,Grant Related Expenditure,298,21/07/2021,2107-00430,0.00,500.00,R,REDACTED PERSONAL DATA,No
Http://opendatacommunities.org/id/metropolitan-district-council/leeds,Leeds City Council,31/07/2021,Communities and Environment,Benefits Welfare and Poverty,Supplies and Services,Grant Related Expenditure,290,07/07/2021,2107-00431,0.00,500.00,R,REDACTED PERSONAL DATA,No
Http://opendatacommunities.org/id/metropolitan-district-council/leeds,Leeds City Council,31/07/2021,Children and Families,Social Care,Appropriations,Leaving Care Allowances,634,02/07/2021,2107-00432,0.00,70.00,R,REDACTED PERSONAL DATA,No
Http://opendatacommunities.org/id/metropolitan-district-council/leeds,Leeds City Council,31/07/2021,Children and Families,Social Care,Appropriations,Leaving Care Allowances,634,09/07/2021,2107-00433,0.00,70.00,R,REDACTED PERSONAL DATA,No
Http://opendatacommunities.org/id/metropolitan-district-council/leeds,Leeds City Council,31/07/2021,Children and Families,Social Care,Appropriations,Leaving Care Allowances,634,16/07/2021,2107-00434,0.00,70.00,R,REDACTED PERSONAL DATA,No
Http://opendatacommunities.org/id/metropolitan-district-council/leeds,Leeds City Council,31/07/2021,Children and Families,Social Care,Appropriations,Leaving Care Allowances,634,23/07/2021,2107-00435,0.00,70.00,R,REDACTED PERSONAL DATA,No
Http://opendatacommunities.org/id/metropolitan-district-council/leeds,Leeds City Council,31/07/2021,Children and Families,Social Care,Appropriations,Leaving Care Allowances,634,28/07/2021,2107-00436,0.00,280.00,R,REDACTED PERSONAL DATA,No
Http://opendatacommunities.org/id/metropolitan-district-council/leeds,Leeds City Council,31/07/2021,Children and Families,Social Care,Appropriations,Leaving Care Allowances,634,30/07/2021,2107-00437,0.00,70.00,R,REDACTED PERSONAL DATA,No
Http://opendatacommunities.org/id/metropolitan-district-council/leeds,Leeds City Council,31/07/2021,Communities and Environment,Benefits Welfare and Poverty,Supplies and Services,Grant Related Expenditure,298,28/07/2021,2107-00438,0.00,500.00,R,REDACTED PERSONAL DATA,No
Http://opendatacommunities.org/id/metropolitan-district-council/leeds,Leeds City Council,31/07/2021,City Development,Economic Development,Supplies and Services,Grant Related Expenditure,290,12/07/2021,2107-00439,0.00,250.00,R,Adam Sawicki,No
Http://opendatacommunities.org/id/metropolitan-district-council/leeds,Leeds City Council,31/07/2021,Communities and Environment,Benefits Welfare and Poverty,Supplies and Services,Grant Related Expenditure,298,26/07/2021,2107-00440,0.00,500.00,R,REDACTED PERSONAL DATA,No
Http://opendatacommunities.org/id/metropolitan-district-council/leeds,Leeds City Council,31/07/2021,Communities and Environment,Benefits Welfare and Poverty,Supplies and Services,Grant Related Expenditure,290,30/07/2021,2107-00441,0.00,500.00,R,REDACTED PERSONAL DATA,No
Http://opendatacommunities.org/id/metropolitan-district-council/leeds,Leeds City Council,31/07/2021,Communities and Environment,Benefits Welfare and Poverty,Supplies and Services,Grant Related Expenditure,298,16/07/2021,2107-00442,0.00,500.00,R,REDACTED PERSONAL DATA,No
Http://opendatacommunities.org/id/metropolitan-district-council/leeds,Leeds City Council,31/07/2021,Communities and Environment,Benefits Welfare and Poverty,Supplies and Services,Grant Related Expenditure,298,22/07/2021,2107-00443,0.00,500.00,R,REDACTED PERSONAL DATA,No
Http://opendatacommunities.org/id/metropolitan-district-council/leeds,Leeds City Council,31/07/2021,Adults and Health,Services For Older People - 65 And Over,Agency Payments,Nursing Home,570,21/07/2021,2107-00444,0.00,2584.00,R,Adbolton Hall,No
Http://opendatacommunities.org/id/metropolitan-district-council/leeds,Leeds City Council,31/07/2021,City Development,Economic Development,Supplies and Services,Grant Related Expenditure,290,30/07/2021,2107-00445,0.00,540.00,R,Additive Design Ltd,No
Http://opendatacommunities.org/id/metropolitan-district-council/leeds,Leeds City Council,31/07/2021,Resources and Housing,Technology,Employees,Agency Staff,8,08/06/2021,2107-00446,0.00,46037.91,R,Adecco Alfred Marks,Yes
Http://opendatacommunities.org/id/metropolitan-district-council/leeds,Leeds City Council,31/07/2021,Resources and Housing,Technology,Employees,Agency Staff,8,15/06/2021,2107-00447,0.00,11850.61,R,Adecco Alfred Marks,Yes
Http://opendatacommunities.org/id/metropolitan-district-council/leeds,Leeds City Council,31/07/2021,Strategic Accounts,Miscellaneous,Supplies and Services,Non-Recurring Grants,227,05/07/2021,2107-00448,0.00,200.00,R,ADEL CRAG COMMUNITY ASSOCIATION,No
Http://opendatacommunities.org/id/metropolitan-district-council/leeds,Leeds City Council,31/07/2021,Strategic Landlord,Housing Management,Supplies and Services,Grants To Voluntary Organisations,293,16/07/2021,2107-00449,0.00,750.00,R,ADEL CRAG COMMUNITY ASSOCIATION,No
Http://opendatacommunities.org/id/metropolitan-district-council/leeds,Leeds City Council,31/07/2021,Children and Families,Social Care,Agency Payments,Services Rendered By Voluntary Sector,505,02/07/2021,2107-00450,0.00,7582.00,R,ADEL PRE SCHOOL,No
Http://opendatacommunities.org/id/metropolitan-district-council/leeds,Leeds City Council,31/07/2021,Children and Families,Social Care,Agency Payments,Services Rendered By Voluntary Sector,505,07/07/2021,2107-00451,0.00,836.16,R,ADEL PRE SCHOOL,No
Http://opendatacommunities.org/id/metropolitan-district-council/leeds,Leeds City Council,31/07/2021,Children and Families,Social Care,Agency Payments,Contact,548,21/07/2021,2107-00452,0.00,6.20,R,REDACTED PERSONAL DATA,No
Http://opendatacommunities.org/id/metropolitan-district-council/leeds,Leeds City Council,31/07/2021,Children and Families,Social Care,Agency Payments,Contact,548,23/07/2021,2107-00453,0.00,12.40,R,REDACTED PERSONAL DATA,No
Http://opendatacommunities.org/id/metropolitan-district-council/leeds,Leeds City Council,31/07/2021,Children and Families,Social Care,Agency Payments,Contact,548,30/07/2021,2107-00454,0.00,6.20,R,REDACTED PERSONAL DATA,No
Http://opendatacommunities.org/id/metropolitan-district-council/leeds,Leeds City Council,31/07/2021,City Development,Recreation,Supplies and Services,Bought In Professional Services,277,28/07/2021,2107-00455,0.00,90.00,R,Adele Battersby,No
Http://opendatacommunities.org/id/metropolitan-district-council/leeds,Leeds City Council,31/07/2021,City Development,Recreation,Supplies and Services,Bought In Professional Services,277,30/07/2021,2107-00456,0.00,200.00,R,Adele Battersby,No
Http://opendatacommunities.org/id/metropolitan-district-council/leeds,Leeds City Council,31/07/2021,City Development,Recreation,Supplies and Services,Bought In Professional Services,277,30/07/2021,2107-00457,0.00,40.00,R,Adele Battersby,No
Http://opendatacommunities.org/id/metropolitan-district-council/leeds,Leeds City Council,31/07/2021,Children and Families,Social Care,Agency Payments,Services Rendered By Other Organisations,511,02/07/2021,2107-00458,0.00,1391.52,R,REDACTED PERSONAL DATA,No
Http://opendatacommunities.org/id/metropolitan-district-council/leeds,Leeds City Council,31/07/2021,Children and Families,Social Care,Agency Payments,Services Rendered By Other Organisations,511,07/07/2021,2107-00459,0.00,209.04,R,REDACTED PERSONAL DATA,No
Http://opendatacommunities.org/id/metropolitan-district-council/leeds,Leeds City Council,31/07/2021,Communities and Environment,Benefits Welfare and Poverty,Supplies and Services,Grant Related Expenditure,290,28/07/2021,2107-00460,0.00,500.00,R,REDACTED PERSONAL DATA,No
Http://opendatacommunities.org/id/metropolitan-district-council/leeds,Leeds City Council,31/07/2021,Children and Families,Social Care,Agency Payments,Section 17,551,27/07/2021,2107-00461,0.00,79.20,R,REDACTED PERSONAL DATA,No
Http://opendatacommunities.org/id/metropolitan-district-council/leeds,Leeds City Council,31/07/2021,Resources and Housing,Leeds Building Services,Supplies and Services,Operational Materials,205,20/07/2021,2107-00462,0.00,698.20,R,ADI Global,No
Http://opendatacommunities.org/id/metropolitan-district-council/leeds,Leeds City Council,31/07/2021,Resources and Housing,Leeds Building Services,Supplies and Services,Operational Materials,205,27/07/2021,2107-00463,0.00,12.75,R,ADI Global,No
Http://opendatacommunities.org/id/metropolitan-district-council/leeds,Leeds City Council,31/07/2021,Resources and Housing,Leeds Building Services,Supplies and Services,Operational Materials,205,27/07/2021,2107-00464,0.00,357.49,R,ADI Global,No
Http://opendatacommunities.org/id/metropolitan-district-council/leeds,Leeds City Council,31/07/2021,Resources and Housing,Leeds Building Services,Supplies and Services,Operational Materials,205,27/07/2021,2107-00465,0.00,67.75,R,ADI Global,No
Http://opendatacommunities.org/id/metropolitan-district-council/leeds,Leeds City Council,31/07/2021,Resources and Housing,Leeds Building Services,Supplies and Services,Operational Materials,205,27/07/2021,2107-00466,0.00,387.84,R,ADI Global,No
Http://opendatacommunities.org/id/metropolitan-district-council/leeds,Leeds City Council,31/07/2021,Resources and Housing,Leeds Building Services,Supplies and Services,Operational Materials,205,27/07/2021,2107-00467,0.00,801.83,R,ADI Global,No
Http://opendatacommunities.org/id/metropolitan-district-council/leeds,Leeds City Council,31/07/2021,Resources and Housing,Leeds Building Services,Supplies and Services,Operational Materials,205,27/07/2021,2107-00468,0.00,914.77,R,ADI Global,No
Http://opendatacommunities.org/id/metropolitan-district-council/leeds,Leeds City Council,31/07/2021,Resources and Housing,Leeds Building Services,Supplies and Services,Operational Materials,205,28/07/2021,2107-00469,0.00,60.40,R,ADI Global,No
Http://opendatacommunities.org/id/metropolitan-district-council/leeds,Leeds City Council,31/07/2021,City Development,Libraries Arts & Heritage,Supplies and Services,Operational Furniture And Equipment,203,05/07/2021,2107-00470,0.00,2517.84,R,ADI UK LTD,No
Http://opendatacommunities.org/id/metropolitan-district-council/leeds,Leeds City Council,31/07/2021,Communities and Environment,Benefits Welfare and Poverty,Supplies and Services,Grant Related Expenditure,298,23/07/2021,2107-00471,0.00,500.00,R,REDACTED PERSONAL DATA,No
Http://opendatacommunities.org/id/metropolitan-district-council/leeds,Leeds City Council,31/07/2021,City Development,Libraries Arts & Heritage,Supplies and Services,Computer Software & Equipment,214,02/06/2021,2107-00472,0.00,41.62,R,Adobe Creative Cloud,Yes
Http://opendatacommunities.org/id/metropolitan-district-council/leeds,Leeds City Council,31/07/2021,Children and Families,Social Care,Agency Payments,Independent Fostering Agencies,509,02/07/2021,2107-00473,0.00,3565.00,R,Adolescent And Childrens Trust,No
Http://opendatacommunities.org/id/metropolitan-district-council/leeds,Leeds City Council,31/07/2021,Children and Families,Social Care,Agency Payments,Independent Fostering Agencies,509,02/07/2021,2107-00474,0.00,3565.00,R,Adolescent And Childrens Trust,No
Http://opendatacommunities.org/id/metropolitan-district-council/leeds,Leeds City Council,31/07/2021,Children and Families,Social Care,Agency Payments,Independent Fostering Agencies,509,02/07/2021,2107-00475,0.00,3565.00,R,Adolescent And Childrens Trust,No
Http://opendatacommunities.org/id/metropolitan-district-council/leeds,Leeds City Council,31/07/2021,Children and Families,Social Care,Agency Payments,Independent Fostering Agencies,509,02/07/2021,2107-00476,0.00,3751.00,R,Adolescent And Childrens Trust,No
Http://opendatacommunities.org/id/metropolitan-district-council/leeds,Leeds City Council,31/07/2021,Children and Families,Social Care,Agency Payments,Independent Fostering Agencies,509,02/07/2021,2107-00477,0.00,3751.00,R,Adolescent And Childrens Trust,No
Http://opendatacommunities.org/id/metropolitan-district-council/leeds,Leeds City Council,31/07/2021,Children and Families,Social Care,Agency Payments,Independent Fostering Agencies,509,02/07/2021,2107-00478,0.00,3565.00,R,Adolescent And Childrens Trust,No
Http://opendatacommunities.org/id/metropolitan-district-council/leeds,Leeds City Council,31/07/2021,Children and Families,Social Care,Agency Payments,Independent Fostering Agencies,509,02/07/2021,2107-00479,0.00,3751.00,R,Adolescent And Childrens Trust,No
Http://opendatacommunities.org/id/metropolitan-district-council/leeds,Leeds City Council,31/07/2021,Children and Families,Social Care,Agency Payments,Independent Fostering Agencies,509,16/07/2021,2107-00480,0.00,3751.00,R,Adolescent And Childrens Trust,No
Http://opendatacommunities.org/id/metropolitan-district-council/leeds,Leeds City Council,31/07/2021,Adults and Health,Services For Adults Under 65 Mental/Dis,Agency Payments,Home Care,568,01/07/2021,2107-00481,0.00,165.00,R,Adopt Healthcare,No
Http://opendatacommunities.org/id/metropolitan-district-council/leeds,Leeds City Council,31/07/2021,Adults and Health,Services For Adults Under 65 Mental/Dis,Agency Payments,Home Care,568,08/07/2021,2107-00482,0.00,171.00,R,Adopt Healthcare,No
Http://opendatacommunities.org/id/metropolitan-district-council/leeds,Leeds City Council,31/07/2021,Adults and Health,Services For Adults Under 65 Mental/Dis,Agency Payments,Home Care,568,21/07/2021,2107-00483,0.00,198.00,R,Adopt Healthcare,No
Http://opendatacommunities.org/id/metropolitan-district-council/leeds,Leeds City Council,31/07/2021,Adults and Health,Services For Adults Under 65 Mental/Dis,Agency Payments,Home Care,568,22/07/2021,2107-00484,0.00,181.50,R,Adopt Healthcare,No
Http://opendatacommunities.org/id/metropolitan-district-council/leeds,Leeds City Council,31/07/2021,Adults and Health,Services For Adults Under 65 Mental/Dis,Agency Payments,Home Care,568,28/07/2021,2107-00485,0.00,181.50,R,Adopt Healthcare,No
Http://opendatacommunities.org/id/metropolitan-district-council/leeds,Leeds City Council,31/07/2021,City Development,Economic Development,Supplies and Services,Grant Related Expenditure,290,01/07/2021,2107-00486,0.00,250.00,R,Adrian Foster,No
Http://opendatacommunities.org/id/metropolitan-district-council/leeds,Leeds City Council,31/07/2021,Children and Families,Social Care,Agency Payments,Placement Support,550,02/07/2021,2107-00487,0.00,21.15,R,REDACTED PERSONAL DATA,No
Http://opendatacommunities.org/id/metropolitan-district-council/leeds,Leeds City Council,31/07/2021,Children and Families,Social Care,Agency Payments,Placement Support,550,09/07/2021,2107-00488,0.00,21.15,R,REDACTED PERSONAL DATA,No
Http://opendatacommunities.org/id/metropolitan-district-council/leeds,Leeds City Council,31/07/2021,Children and Families,Social Care,Agency Payments,Placement Support,550,16/07/2021,2107-00489,0.00,21.15,R,REDACTED PERSONAL DATA,No
Http://opendatacommunities.org/id/metropolitan-district-council/leeds,Leeds City Council,31/07/2021,Children and Families,Social Care,Agency Payments,Contact,548,23/07/2021,2107-00490,0.00,21.15,R,REDACTED PERSONAL DATA,No
Http://opendatacommunities.org/id/metropolitan-district-council/leeds,Leeds City Council,31/07/2021,Children and Families,Social Care,Agency Payments,Placement Support,550,30/07/2021,2107-00491,0.00,21.15,R,REDACTED PERSONAL DATA,No
Http://opendatacommunities.org/id/metropolitan-district-council/leeds,Leeds City Council,31/07/2021,Communities and Environment,Benefits Welfare and Poverty,Supplies and Services,Grant Related Expenditure,298,29/07/2021,2107-00492,0.00,500.00,R,REDACTED PERSONAL DATA,No
Http://opendatacommunities.org/id/metropolitan-district-council/leeds,Leeds City Council,31/07/2021,Resources and Housing,Strategic Housing Partnerships,Capital,OTHER COSTS,7,05/07/2021,2107-00493,0.00,62250.00,C,Adriatic Land GR8 (2) Ltd,No
Http://opendatacommunities.org/id/metropolitan-district-council/leeds,Leeds City Council,31/07/2021,Resources and Housing,Strategic Housing Partnerships,Capital,OTHER COSTS,7,05/07/2021,2107-00494,0.00,121650.00,C,Adriatic Land GR8 (2) Ltd,No
Http://opendatacommunities.org/id/metropolitan-district-council/leeds,Leeds City Council,31/07/2021,City Development,Economic Development,Supplies and Services,Grant Related Expenditure,290,14/07/2021,2107-00495,0.00,250.00,R,Adris Hussain,No
Http://opendatacommunities.org/id/metropolitan-district-council/leeds,Leeds City Council,31/07/2021,Strategic Landlord,Housing Management,Supplies and Services,Grant Related Expenditure,298,02/07/2021,2107-00496,0.00,169.36,R,ADT Fire And Security Plc,No
Http://opendatacommunities.org/id/metropolitan-district-council/leeds,Leeds City Council,31/07/2021,Strategic Landlord,Housing Management,Supplies and Services,Grant Related Expenditure,298,06/07/2021,2107-00497,0.00,170.65,R,ADT Fire And Security Plc,No
Http://opendatacommunities.org/id/metropolitan-district-council/leeds,Leeds City Council,31/07/2021,Resources and Housing,Corporate Property Management,Premises,Maintenance Of Buildings,101,28/07/2021,2107-00498,0.00,1549.24,R,ADT Fire And Security Plc,No
Http://opendatacommunities.org/id/metropolitan-district-council/leeds,Leeds City Council,31/07/2021,Strategic Landlord,Property and Contracts,Premises,General Maintenance,104,30/07/2021,2107-00499,0.00,511.92,R,ADT Fire And Security Plc,No
Http://opendatacommunities.org/id/metropolitan-district-council/leeds,Leeds City Council,31/07/2021,Children and Families,Social Care,Internal Recharges,Legal Disbursements,411,02/07/2021,2107-00500,0.00,294.07,R,ADVANCED CHILD CARE ASSESSMENTS LTD,No
Http://opendatacommunities.org/id/metropolitan-district-council/leeds,Leeds City Council,31/07/2021,City Development,Libraries Arts & Heritage,Supplies and Services,Other Hired And Contracted Services,265,28/05/2021,2107-00501,0.00,280.90,R,Advanced Moulds Ltd,Yes
Http://opendatacommunities.org/id/metropolitan-district-council/leeds,Leeds City Council,31/07/2021,City Development,Economic Development,Supplies and Services,Grant Related Expenditure,290,16/07/2021,2107-00502,0.00,250.00,R,Advanced Power Care Ltd,No
Http://opendatacommunities.org/id/metropolitan-district-council/leeds,Leeds City Council as Accountable Body,31/07/2021,Social Services Pooled Budgets,Jcs For People With Learning Disabilitie,Agency Payments,Home Care,568,02/07/2021,2107-00503,0.00,1616.58,R,Advantage Healthcare Ltd,No
Http://opendatacommunities.org/id/metropolitan-district-council/leeds,Leeds City Council as Accountable Body,31/07/2021,Social Services Pooled Budgets,Jcs For People With Learning Disabilitie,Agency Payments,Home Care,568,02/07/2021,2107-00504,0.00,2156.25,R,Advantage Healthcare Ltd,No
Http://opendatacommunities.org/id/metropolitan-district-council/leeds,Leeds City Council as Accountable Body,31/07/2021,Social Services Pooled Budgets,Jcs For People With Learning Disabilitie,Agency Payments,Home Care,568,09/07/2021,2107-00505,0.00,1637.30,R,Advantage Healthcare Ltd,No
Http://opendatacommunities.org/id/metropolitan-district-council/leeds,Leeds City Council as Accountable Body,31/07/2021,Social Services Pooled Budgets,Jcs For People With Learning Disabilitie,Agency Payments,Home Care,568,09/07/2021,2107-00506,0.00,1811.25,R,Advantage Healthcare Ltd,No
Http://opendatacommunities.org/id/metropolitan-district-council/leeds,Leeds City Council as Accountable Body,31/07/2021,Social Services Pooled Budgets,Jcs For People With Learning Disabilitie,Agency Payments,Home Care,568,16/07/2021,2107-00507,0.00,977.20,R,Advantage Healthcare Ltd,No
Http://opendatacommunities.org/id/metropolitan-district-council/leeds,Leeds City Council as Accountable Body,31/07/2021,Social Services Pooled Budgets,Jcs For People With Learning Disabilitie,Agency Payments,Home Care,568,23/07/2021,2107-00508,0.00,977.20,R,Advantage Healthcare Ltd,No
Http://opendatacommunities.org/id/metropolitan-district-council/leeds,Leeds City Council as Accountable Body,31/07/2021,Social Services Pooled Budgets,Jcs For People With Learning Disabilitie,Agency Payments,Residential,580,21/07/2021,2107-00509,0.00,17069.36,R,ADVITAM LTD,No
Http://opendatacommunities.org/id/metropolitan-district-council/leeds,Leeds City Council,31/07/2021,Adults and Health,Services For Older People - 65 And Over,Agency Payments,Payments To Voluntary Organisations,561,23/07/2021,2107-00510,0.00,103916.67,R,Advonet,No
Http://opendatacommunities.org/id/metropolitan-district-council/leeds,Leeds City Council,31/07/2021,Adults and Health,Services For Adults Under 65 Mental/Dis,Agency Payments,Fees - Level 4,520,02/07/2021,2107-00511,0.00,198.00,R,AE BIA Assessments Limited,No
Http://opendatacommunities.org/id/metropolitan-district-council/leeds,Leeds City Council,31/07/2021,Adults and Health,Services For Adults Under 65 Mental/Dis,Agency Payments,Fees - Level 4,520,09/07/2021,2107-00512,0.00,198.00,R,AE BIA Assessments Limited,No
Http://opendatacommunities.org/id/metropolitan-district-council/leeds,Leeds City Council,31/07/2021,Adults and Health,Services For Adults Under 65 Mental/Dis,Agency Payments,Fees - Level 4,520,09/07/2021,2107-00513,0.00,198.00,R,AE BIA Assessments Limited,No
Http://opendatacommunities.org/id/metropolitan-district-council/leeds,Leeds City Council,31/07/2021,Adults and Health,Services For Adults Under 65 Mental/Dis,Agency Payments,Fees - Level 4,520,15/07/2021,2107-00514,0.00,198.00,R,AE BIA Assessments Limited,No
Http://opendatacommunities.org/id/metropolitan-district-council/leeds,Leeds City Council,31/07/2021,Adults and Health,Services For Adults Under 65 Mental/Dis,Agency Payments,Fees - Level 4,520,16/07/2021,2107-00515,0.00,198.00,R,AE BIA Assessments Limited,No
Http://opendatacommunities.org/id/metropolitan-district-council/leeds,Leeds City Council,31/07/2021,Adults and Health,Services For Adults Under 65 Mental/Dis,Agency Payments,Fees - Level 4,520,16/07/2021,2107-00516,0.00,198.00,R,AE BIA Assessments Limited,No
Http://opendatacommunities.org/id/metropolitan-district-council/leeds,Leeds City Council,31/07/2021,Adults and Health,Services For Adults Under 65 Mental/Dis,Agency Payments,Fees - Level 4,520,23/07/2021,2107-00517,0.00,241.43,R,AE BIA Assessments Limited,No
Http://opendatacommunities.org/id/metropolitan-district-council/leeds,Leeds City Council,31/07/2021,Adults and Health,Services For Adults Under 65 Mental/Dis,Agency Payments,Fees - Level 4,520,23/07/2021,2107-00518,0.00,198.00,R,AE BIA Assessments Limited,No
Http://opendatacommunities.org/id/metropolitan-district-council/leeds,Leeds City Council,31/07/2021,Adults and Health,Services For Adults Under 65 Mental/Dis,Agency Payments,Fees - Level 4,520,29/07/2021,2107-00519,0.00,198.00,R,AE BIA Assessments Limited,No
Http://opendatacommunities.org/id/metropolitan-district-council/leeds,Leeds City Council,31/07/2021,Adults and Health,Services For Adults Under 65 Mental/Dis,Agency Payments,Fees - Level 4,520,29/07/2021,2107-00520,0.00,198.00,R,AE BIA Assessments Limited,No
Http://opendatacommunities.org/id/metropolitan-district-council/leeds,Leeds City Council,31/07/2021,Adults and Health,Services For Adults Under 65 Mental/Dis,Agency Payments,Fees - Level 4,520,29/07/2021,2107-00521,0.00,198.00,R,AE BIA Assessments Limited,No
Http://opendatacommunities.org/id/metropolitan-district-council/leeds,Leeds City Council,31/07/2021,Adults and Health,Services For Adults Under 65 Mental/Dis,Agency Payments,Fees - Level 4,520,30/07/2021,2107-00522,0.00,198.00,R,AE BIA Assessments Limited,No
Http://opendatacommunities.org/id/metropolitan-district-council/leeds,Leeds City Council,31/07/2021,City Development,Asset Management,Capital,OTHER COSTS,7,16/07/2021,2107-00523,0.00,17202.44,C,Aecom Limited,No
Http://opendatacommunities.org/id/metropolitan-district-council/leeds,Leeds City Council,31/07/2021,City Development,Highways,Capital,OTHER COSTS,7,20/07/2021,2107-00524,0.00,37651.25,C,Aecom Limited,No
Http://opendatacommunities.org/id/metropolitan-district-council/leeds,Leeds City Council,31/07/2021,City Development,Highways,Capital,OTHER COSTS,7,29/07/2021,2107-00525,0.00,63893.28,C,Aecom Limited,No
Http://opendatacommunities.org/id/metropolitan-district-council/leeds,Leeds City Council,31/07/2021,Adults and Health,Services For Adults Under 65 Mental/Dis,Agency Payments,Home Care,568,02/07/2021,2107-00526,0.00,2006.00,R,Aegis Care Solutions Ltd,No
Http://opendatacommunities.org/id/metropolitan-district-council/leeds,Leeds City Council,31/07/2021,Adults and Health,Services For Adults Under 65 Mental/Dis,Agency Payments,Home Care,568,02/07/2021,2107-00527,0.00,2006.00,R,Aegis Care Solutions Ltd,No
Http://opendatacommunities.org/id/metropolitan-district-council/leeds,Leeds City Council,31/07/2021,Adults and Health,Services For Adults Under 65 Mental/Dis,Agency Payments,Home Care,568,02/07/2021,2107-00528,0.00,1231.90,R,Aegis Care Solutions Ltd,No
Http://opendatacommunities.org/id/metropolitan-district-council/leeds,Leeds City Council,31/07/2021,Adults and Health,Services For Adults Under 65 Mental/Dis,Agency Payments,Home Care,568,02/07/2021,2107-00529,0.00,4226.80,R,Aegis Care Solutions Ltd,No
Http://opendatacommunities.org/id/metropolitan-district-council/leeds,Leeds City Council,31/07/2021,Adults and Health,Services For Adults Under 65 Mental/Dis,Agency Payments,Home Care,568,02/07/2021,2107-00530,0.00,1327.50,R,Aegis Care Solutions Ltd,No
Http://opendatacommunities.org/id/metropolitan-district-council/leeds,Leeds City Council,31/07/2021,Adults and Health,Services For Adults Under 65 Mental/Dis,Agency Payments,Home Care,568,02/07/2021,2107-00531,0.00,662.65,R,Aegis Care Solutions Ltd,No
Http://opendatacommunities.org/id/metropolitan-district-council/leeds,Leeds City Council,31/07/2021,Adults and Health,Services For Adults Under 65 Mental/Dis,Agency Payments,Home Care,568,02/07/2021,2107-00532,0.00,284.80,R,Aegis Care Solutions Ltd,No
Http://opendatacommunities.org/id/metropolitan-district-council/leeds,Leeds City Council,31/07/2021,Adults and Health,Services For Adults Under 65 Mental/Dis,Agency Payments,Home Care,568,02/07/2021,2107-00533,0.00,1151.60,R,Aegis Care Solutions Ltd,No
Http://opendatacommunities.org/id/metropolitan-district-council/leeds,Leeds City Council,31/07/2021,Adults and Health,Services For Adults Under 65 Mental/Dis,Agency Payments,Home Care,568,02/07/2021,2107-00534,0.00,1228.40,R,Aegis Care Solutions Ltd,No
Http://opendatacommunities.org/id/metropolitan-district-council/leeds,Leeds City Council,31/07/2021,City Development,Economic Development,Supplies and Services,Grant Related Expenditure,290,19/07/2021,2107-00535,0.00,5812.25,R,Aeroservices Ltd,No
Http://opendatacommunities.org/id/metropolitan-district-council/leeds,Leeds City Council,31/07/2021,Adults and Health,Services For Adults Under 65 Mental/Dis,Agency Payments,Home Care,568,02/07/2021,2107-00536,0.00,942.60,R,Affinity Trust,No
Http://opendatacommunities.org/id/metropolitan-district-council/leeds,Leeds City Council as Accountable Body,31/07/2021,Social Services Pooled Budgets,Jcs For People With Learning Disabilitie,Agency Payments,Day Centre,564,09/07/2021,2107-00537,0.00,1342.32,R,Affinity Trust,No
Http://opendatacommunities.org/id/metropolitan-district-council/leeds,Leeds City Council as Accountable Body,31/07/2021,Social Services Pooled Budgets,Jcs For People With Learning Disabilitie,Agency Payments,Day Centre,564,09/07/2021,2107-00538,0.00,2460.92,R,Affinity Trust,No
Http://opendatacommunities.org/id/metropolitan-district-council/leeds,Leeds City Council as Accountable Body,31/07/2021,Social Services Pooled Budgets,Jcs For People With Learning Disabilitie,Agency Payments,Day Centre,564,09/07/2021,2107-00539,0.00,11625.87,R,Affinity Trust,No
Http://opendatacommunities.org/id/metropolitan-district-council/leeds,Leeds City Council as Accountable Body,31/07/2021,Social Services Pooled Budgets,Jcs For People With Learning Disabilitie,Agency Payments,Day Centre,564,09/07/2021,2107-00540,0.00,15018.72,R,Affinity Trust,No
Http://opendatacommunities.org/id/metropolitan-district-council/leeds,Leeds City Council as Accountable Body,31/07/2021,Social Services Pooled Budgets,Jcs For People With Learning Disabilitie,Agency Payments,Day Centre,564,22/07/2021,2107-00541,0.00,29782.14,R,Affinity Trust,No
Http://opendatacommunities.org/id/metropolitan-district-council/leeds,Leeds City Council as Accountable Body,31/07/2021,Social Services Pooled Budgets,Jcs For People With Learning Disabilitie,Agency Payments,Day Centre,564,27/07/2021,2107-00542,0.00,9142.77,R,Affinity Trust,No
Http://opendatacommunities.org/id/metropolitan-district-council/leeds,Leeds City Council as Accountable Body,31/07/2021,Social Services Pooled Budgets,Jcs For People With Learning Disabilitie,Agency Payments,Sheltered Accommodation,569,21/07/2021,2107-00543,0.00,118561.05,R,Affinity Trust North Divisional Office,No
Http://opendatacommunities.org/id/metropolitan-district-council/leeds,Leeds City Council,31/07/2021,Communities and Environment,Parks and Countryside,Transport,External Hire -Occasional,304,14/06/2021,2107-00544,0.00,950.00,R,Afi Uplift,Yes
Http://opendatacommunities.org/id/metropolitan-district-council/leeds,Leeds City Council,31/07/2021,Communities and Environment,Parks and Countryside,Transport,External Hire -Occasional,304,14/06/2021,2107-00545,0.00,950.00,R,Afi Uplift,Yes
Http://opendatacommunities.org/id/metropolitan-district-council/leeds,Leeds City Council,31/07/2021,Communities and Environment,Parks and Countryside,Transport,External Hire -Occasional,304,14/06/2021,2107-00546,0.00,950.00,R,Afi Uplift,Yes
Http://opendatacommunities.org/id/metropolitan-district-council/leeds,Leeds City Council,31/07/2021,Communities and Environment,Parks and Countryside,Transport,External Hire -Occasional,304,14/06/2021,2107-00547,0.00,950.00,R,Afi Uplift,Yes
Http://opendatacommunities.org/id/metropolitan-district-council/leeds,Leeds City Council,31/07/2021,Communities and Environment,Parks and Countryside,Employees,Training Costs,71,07/07/2021,2107-00548,0.00,471.80,R,AFI-Uplift Limited,No
Http://opendatacommunities.org/id/metropolitan-district-council/leeds,Leeds City Council,31/07/2021,Communities and Environment,Parks and Countryside,Employees,Training Costs,71,07/07/2021,2107-00549,0.00,372.20,R,AFI-Uplift Limited,No
Http://opendatacommunities.org/id/metropolitan-district-council/leeds,Leeds City Council,31/07/2021,Communities and Environment,Environmental Health,Supplies and Services,Operational Furniture And Equipment,203,08/06/2021,2107-00550,0.00,81.82,R,Afs Supplies Limited,Yes
Http://opendatacommunities.org/id/metropolitan-district-council/leeds,Leeds City Council,31/07/2021,City Development,Economic Development,Supplies and Services,Grant Related Expenditure,290,02/07/2021,2107-00551,0.00,250.00,R,Aftab Hussain,No
Http://opendatacommunities.org/id/metropolitan-district-council/leeds,Leeds City Council,31/07/2021,Adults and Health,Services For Older People - 65 And Over,Agency Payments,Payments To Voluntary Organisations,561,01/07/2021,2107-00552,0.00,10599.75,R,Age Uk Leeds,No
Http://opendatacommunities.org/id/metropolitan-district-council/leeds,Leeds City Council,31/07/2021,Adults and Health,Public Health,Supplies and Services,Non-Recurring Grants,227,14/07/2021,2107-00553,0.00,30000.00,R,Age Uk Leeds,No
Http://opendatacommunities.org/id/metropolitan-district-council/leeds,Leeds City Council,31/07/2021,Insurance,Insurance,Supplies and Services,Insurance Claims,248,15/07/2021,2107-00554,0.00,240.00,R,Ageas Law,No
Http://opendatacommunities.org/id/metropolitan-district-council/leeds,Leeds City Council,31/07/2021,Communities and Environment,Customer Access,Supplies and Services,Other Hired And Contracted Services,265,15/07/2021,2107-00555,0.00,50.00,R,Agency For Good Ltd,No
Http://opendatacommunities.org/id/metropolitan-district-council/leeds,Leeds City Council,31/07/2021,City Development,Economic Development,Supplies and Services,Grant Related Expenditure,290,30/07/2021,2107-00556,0.00,2000.00,R,Agency TK Limited,No
Http://opendatacommunities.org/id/metropolitan-district-council/leeds,Leeds City Council,31/07/2021,Communities and Environment,Benefits Welfare and Poverty,Supplies and Services,Grant Related Expenditure,290,22/07/2021,2107-00557,0.00,500.00,R,REDACTED PERSONAL DATA,No
Http://opendatacommunities.org/id/metropolitan-district-council/leeds,Leeds City Council,31/07/2021,City Development,Economic Development,Supplies and Services,Grant Related Expenditure,290,19/07/2021,2107-00558,0.00,500.00,R,Ahmed Abdu,No
Http://opendatacommunities.org/id/metropolitan-district-council/leeds,Leeds City Council,31/07/2021,City Development,Economic Development,Supplies and Services,Grant Related Expenditure,290,29/07/2021,2107-00559,0.00,250.00,R,Ahmed Abdu,No
Http://opendatacommunities.org/id/metropolitan-district-council/leeds,Leeds City Council,31/07/2021,City Development,Economic Development,Supplies and Services,Grant Related Expenditure,290,16/07/2021,2107-00560,0.00,500.00,R,Ahmed Ali,No
Http://opendatacommunities.org/id/metropolitan-district-council/leeds,Leeds City Council,31/07/2021,City Development,Economic Development,Supplies and Services,Leasing & Internal Recharges - Equipment,209,29/07/2021,2107-00561,0.00,250.00,R,Ahmed Ali,No
Http://opendatacommunities.org/id/metropolitan-district-council/leeds,Leeds City Council,31/07/2021,City Development,Economic Development,Supplies and Services,Grant Related Expenditure,290,12/07/2021,2107-00562,0.00,250.00,R,Ahmed Mahmood Rahman,No
Http://opendatacommunities.org/id/metropolitan-district-council/leeds,Leeds City Council,31/07/2021,Communities and Environment,Customer Access,Supplies and Services,Bought In Professional Services,277,16/07/2021,2107-00563,0.00,18.00,R,Ahmed Moustafa Moustafa Mousa,No
Http://opendatacommunities.org/id/metropolitan-district-council/leeds,Leeds City Council,31/07/2021,Communities and Environment,Customer Access,Supplies and Services,Bought In Professional Services,277,21/07/2021,2107-00564,0.00,9.00,R,Ahmed Moustafa Moustafa Mousa,No
Http://opendatacommunities.org/id/metropolitan-district-council/leeds,Leeds City Council,31/07/2021,Communities and Environment,Customer Access,Supplies and Services,Bought In Professional Services,277,21/07/2021,2107-00565,0.00,9.00,R,Ahmed Moustafa Moustafa Mousa,No
Http://opendatacommunities.org/id/metropolitan-district-council/leeds,Leeds City Council,31/07/2021,Communities and Environment,Customer Access,Supplies and Services,Bought In Professional Services,277,29/07/2021,2107-00566,0.00,18.00,R,Ahmed Moustafa Moustafa Mousa,No
Http://opendatacommunities.org/id/metropolitan-district-council/leeds,Leeds City Council,31/07/2021,Resources and Housing,Sustainable Energy & Climate Change,Capital,OTHER COSTS,7,22/07/2021,2107-00567,0.00,2100.00,C,REDACTED COMMERCIAL CONFIDENTIALITY,No
Http://opendatacommunities.org/id/metropolitan-district-council/leeds,Leeds City Council,31/07/2021,City Development,Economic Development,Supplies and Services,Grant Related Expenditure,290,16/07/2021,2107-00568,0.00,500.00,R,Ahmed Yar,No
Http://opendatacommunities.org/id/metropolitan-district-council/leeds,Leeds City Council,31/07/2021,City Development,Economic Development,Supplies and Services,Grant Related Expenditure,290,28/07/2021,2107-00569,0.00,250.00,R,Ahmed Yar,No
Http://opendatacommunities.org/id/metropolitan-district-council/leeds,Leeds City Council,31/07/2021,City Development,Economic Development,Supplies and Services,Grant Related Expenditure,290,16/07/2021,2107-00570,0.00,500.00,R,Ahtasham Rafiq,No
Http://opendatacommunities.org/id/metropolitan-district-council/leeds,Leeds City Council,31/07/2021,City Development,Economic Development,Supplies and Services,Grant Related Expenditure,290,28/07/2021,2107-00571,0.00,250.00,R,Ahtasham Rafiq,No
Http://opendatacommunities.org/id/metropolitan-district-council/leeds,Leeds City Council,31/07/2021,Children and Families,Learning,Supplies and Services,Teaching Materials,202,23/07/2021,2107-00572,0.00,48.71,R,Aid Training & Operations Ltd,No
Http://opendatacommunities.org/id/metropolitan-district-council/leeds,Leeds City Council,31/07/2021,Communities and Environment,Benefits Welfare and Poverty,Supplies and Services,Grant Related Expenditure,298,26/07/2021,2107-00573,0.00,500.00,R,REDACTED PERSONAL DATA,No
Http://opendatacommunities.org/id/metropolitan-district-council/leeds,Leeds City Council as Accountable Body,31/07/2021,Social Services Pooled Budgets,Leeds Community Equip Store Pooled Budgt,Supplies and Services,Other Equipment,203,02/07/2021,2107-00574,0.00,292.50,R,AIDAPT BATHROOMS LTD,No
Http://opendatacommunities.org/id/metropolitan-district-council/leeds,Leeds City Council as Accountable Body,31/07/2021,Social Services Pooled Budgets,Leeds Community Equip Store Pooled Budgt,Supplies and Services,Other Equipment,203,09/07/2021,2107-00575,0.00,5.50,R,AIDAPT BATHROOMS LTD,No
Http://opendatacommunities.org/id/metropolitan-district-council/leeds,Leeds City Council as Accountable Body,31/07/2021,Social Services Pooled Budgets,Leeds Community Equip Store Pooled Budgt,Supplies and Services,Other Equipment,203,27/07/2021,2107-00576,0.00,1147.05,R,AIDAPT BATHROOMS LTD,No
Http://opendatacommunities.org/id/metropolitan-district-council/leeds,Leeds City Council as Accountable Body,31/07/2021,Social Services Pooled Budgets,Leeds Community Equip Store Pooled Budgt,Supplies and Services,Other Equipment,203,27/07/2021,2107-00577,0.00,998.50,R,AIDAPT BATHROOMS LTD,No
Http://opendatacommunities.org/id/metropolitan-district-council/leeds,Leeds City Council as Accountable Body,31/07/2021,Social Services Pooled Budgets,Leeds Community Equip Store Pooled Budgt,Supplies and Services,Other Equipment,203,30/07/2021,2107-00578,0.00,288.00,R,AIDAPT BATHROOMS LTD,No
Http://opendatacommunities.org/id/metropolitan-district-council/leeds,Leeds City Council,31/07/2021,Children and Families,Social Care,Appropriations,Leaving Care Allowances,634,01/07/2021,2107-00579,0.00,70.00,R,REDACTED PERSONAL DATA,No
Http://opendatacommunities.org/id/metropolitan-district-council/leeds,Leeds City Council,31/07/2021,Children and Families,Social Care,Agency Payments,Allowances,546,16/07/2021,2107-00580,0.00,395.20,R,REDACTED PERSONAL DATA,No
Http://opendatacommunities.org/id/metropolitan-district-council/leeds,Leeds City Council,31/07/2021,Communities and Environment,Benefits Welfare and Poverty,Supplies and Services,Grant Related Expenditure,290,13/07/2021,2107-00581,0.00,500.00,R,REDACTED PERSONAL DATA,No
Http://opendatacommunities.org/id/metropolitan-district-council/leeds,Leeds City Council,31/07/2021,Children and Families,Partnerships & Health,Supplies and Services,Conference Meetings,253,02/07/2021,2107-00582,0.00,1625.00,R,AIM PROJECT,No
Http://opendatacommunities.org/id/metropolitan-district-council/leeds,Leeds City Council,31/07/2021,Children and Families,Partnerships & Health,Supplies and Services,Teaching Materials,202,09/07/2021,2107-00583,0.00,273.00,R,AIM PROJECT,No
Http://opendatacommunities.org/id/metropolitan-district-council/leeds,Leeds City Council,31/07/2021,Resources and Housing,Leeds Building Services,Supplies and Services,Operational Materials,205,13/07/2021,2107-00584,0.00,23.98,R,Air Conditioning Accessories,No
Http://opendatacommunities.org/id/metropolitan-district-council/leeds,Leeds City Council,31/07/2021,Resources and Housing,Leeds Building Services,Supplies and Services,Operational Materials,205,13/07/2021,2107-00585,0.00,11.99,R,Air Conditioning Accessories,No
Http://opendatacommunities.org/id/metropolitan-district-council/leeds,Leeds City Council,31/07/2021,Communities and Environment,Environmental Health,Supplies and Services,Other Hired And Contracted Services,265,30/07/2021,2107-00586,0.00,11.25,R,AIR LIQUIDE UK,No
Http://opendatacommunities.org/id/metropolitan-district-council/leeds,Leeds City Council,31/07/2021,Communities and Environment,Environmental Health,Supplies and Services,Other Hired And Contracted Services,265,30/07/2021,2107-00587,0.00,11.25,R,AIR LIQUIDE UK,No
Http://opendatacommunities.org/id/metropolitan-district-council/leeds,Leeds City Council,31/07/2021,Communities and Environment,Environmental Health,Supplies and Services,Other Hired And Contracted Services,265,30/07/2021,2107-00588,0.00,17.38,R,AIR LIQUIDE UK,No
Http://opendatacommunities.org/id/metropolitan-district-council/leeds,Leeds City Council,31/07/2021,Communities and Environment,Environmental Health,Supplies and Services,Other Hired And Contracted Services,265,30/07/2021,2107-00589,0.00,78.75,R,AIR LIQUIDE UK,No
Http://opendatacommunities.org/id/metropolitan-district-council/leeds,Leeds City Council,31/07/2021,Resources and Housing,Commercial Services,Supplies and Services,Other Hired And Contracted Services,265,07/06/2021,2107-00590,0.00,8.52,R,Aire Bearings,Yes
Http://opendatacommunities.org/id/metropolitan-district-council/leeds,Leeds City Council,31/07/2021,Strategic Accounts,Miscellaneous,Supplies and Services,Non-Recurring Grants,227,12/07/2021,2107-00591,0.00,200.00,R,Aire Rivers Trust,No
Http://opendatacommunities.org/id/metropolitan-district-council/leeds,Leeds City Council,31/07/2021,Communities and Environment,Parks and Countryside,Supplies and Services,Other Hired And Contracted Services,265,08/07/2021,2107-00592,0.00,145.00,R,Aire Valley Tree Services Ltd,No
Http://opendatacommunities.org/id/metropolitan-district-council/leeds,Leeds City Council,31/07/2021,Communities and Environment,Parks and Countryside,Supplies and Services,Other Hired And Contracted Services,265,23/07/2021,2107-00593,0.00,241.00,R,Aire Valley Tree Services Ltd,No
Http://opendatacommunities.org/id/metropolitan-district-council/leeds,Leeds City Council,31/07/2021,Communities and Environment,Parks and Countryside,Supplies and Services,Other Hired And Contracted Services,265,23/07/2021,2107-00594,0.00,2834.00,R,Aire Valley Tree Services Ltd,No
Http://opendatacommunities.org/id/metropolitan-district-council/leeds,Leeds City Council,31/07/2021,Communities and Environment,Parks and Countryside,Supplies and Services,Other Hired And Contracted Services,265,23/07/2021,2107-00595,0.00,687.00,R,Aire Valley Tree Services Ltd,No
Http://opendatacommunities.org/id/metropolitan-district-council/leeds,Leeds City Council,31/07/2021,Adults and Health,Services For Older People - 65 And Over,Agency Payments,Residential Care Dementia,571,21/07/2021,2107-00596,0.00,83745.64,R,Aire View Residential Home,No
Http://opendatacommunities.org/id/metropolitan-district-council/leeds,Leeds City Council,31/07/2021,Adults and Health,Services For Older People - 65 And Over,Agency Payments,Residential,580,21/07/2021,2107-00597,0.00,10363.93,R,Aire View Residential Home,No
Http://opendatacommunities.org/id/metropolitan-district-council/leeds,Leeds City Council,31/07/2021,Adults and Health,Services For Older People - 65 And Over,Agency Payments,Residential Care Dementia,571,21/07/2021,2107-00598,0.00,1518.60,R,Airedale Care Home,No
Http://opendatacommunities.org/id/metropolitan-district-council/leeds,Leeds City Council,31/07/2021,Adults and Health,Services For Older People - 65 And Over,Agency Payments,Residential,580,21/07/2021,2107-00599,0.00,21970.72,R,Airedale Care Home,No
Http://opendatacommunities.org/id/metropolitan-district-council/leeds,Leeds City Council,31/07/2021,Resources and Housing,Commercial Services,Supplies and Services,Operational Furniture And Equipment,203,01/07/2021,2107-00600,0.00,2826.00,R,AIREDALE CATERING EQUIPMENT LTD,No
Http://opendatacommunities.org/id/metropolitan-district-council/leeds,Leeds City Council,31/07/2021,Resources and Housing,Commercial Services,Premises,Fixtures & Fittings,131,20/07/2021,2107-00601,0.00,23606.00,R,AIREDALE CATERING EQUIPMENT LTD,No
Http://opendatacommunities.org/id/metropolitan-district-council/leeds,Leeds City Council,31/07/2021,Resources and Housing,Commercial Services,Premises,Fixtures & Fittings,131,23/07/2021,2107-00602,0.00,15939.00,R,AIREDALE CATERING EQUIPMENT LTD,No
Http://opendatacommunities.org/id/metropolitan-district-council/leeds,Leeds City Council,31/07/2021,Resources and Housing,Commercial Services,Supplies and Services,Operational Furniture And Equipment,203,30/07/2021,2107-00603,0.00,1740.00,R,AIREDALE CATERING EQUIPMENT LTD,No
Http://opendatacommunities.org/id/metropolitan-district-council/leeds,Leeds City Council,31/07/2021,Resources and Housing,Commercial Services,Supplies and Services,Operational Furniture And Equipment,203,30/07/2021,2107-00604,0.00,2215.00,R,AIREDALE CATERING EQUIPMENT LTD,No
Http://opendatacommunities.org/id/metropolitan-district-council/leeds,Leeds City Council,31/07/2021,City Development,Employment & Skills,Agency Payments,Contributions To Partnerships,544,23/07/2021,2107-00605,0.00,5700.55,R,Airnow Cybersecurity Limited,No
Http://opendatacommunities.org/id/metropolitan-district-council/leeds,Leeds City Council,31/07/2021,Children and Families,Social Care,Transport,Public Transport Expenses,310,28/06/2021,2107-00606,0.00,18.75,R,Airpay,Yes
Http://opendatacommunities.org/id/metropolitan-district-council/leeds,Leeds City Council,31/07/2021,City Development,Economic Development,Supplies and Services,Grant Related Expenditure,290,28/07/2021,2107-00607,0.00,500.00,R,Airport Services Leeds Ltd,No
Http://opendatacommunities.org/id/metropolitan-district-council/leeds,Leeds City Council as Accountable Body,31/07/2021,Social Services Pooled Budgets,Jcs For People With Learning Disabilitie,Agency Payments,Residential,580,21/07/2021,2107-00608,0.00,6698.02,R,AITCH care homes,No
Http://opendatacommunities.org/id/metropolitan-district-council/leeds,Leeds City Council,31/07/2021,Communities and Environment,Parks and Countryside,Supplies and Services,Operational Furniture And Equipment,203,07/07/2021,2107-00609,0.00,513.00,R,Aitkens Sportsturf Ltd,No
Http://opendatacommunities.org/id/metropolitan-district-council/leeds,Leeds City Council,31/07/2021,Resources and Housing,Leeds Building Services,Supplies and Services,STORES - CENTRAL AND OTHER DEPOTS,005,02/07/2021,2107-00610,0.00,910.20,R,AJM FIXINGS & POWER TOOLS LTD,No
Http://opendatacommunities.org/id/metropolitan-district-council/leeds,Leeds City Council,31/07/2021,Resources and Housing,Leeds Building Services,Supplies and Services,Operational Furniture And Equipment,203,06/07/2021,2107-00611,0.00,29.50,R,AJM FIXINGS & POWER TOOLS LTD,No
Http://opendatacommunities.org/id/metropolitan-district-council/leeds,Leeds City Council,31/07/2021,Resources and Housing,Leeds Building Services,Supplies and Services,Operational Furniture And Equipment,203,06/07/2021,2107-00612,0.00,29.50,R,AJM FIXINGS & POWER TOOLS LTD,No
Http://opendatacommunities.org/id/metropolitan-district-council/leeds,Leeds City Council,31/07/2021,Resources and Housing,Leeds Building Services,Supplies and Services,Operational Furniture And Equipment,203,06/07/2021,2107-00613,0.00,155.00,R,AJM FIXINGS & POWER TOOLS LTD,No
Http://opendatacommunities.org/id/metropolitan-district-council/leeds,Leeds City Council,31/07/2021,Resources and Housing,Leeds Building Services,Supplies and Services,Operational Furniture And Equipment,203,06/07/2021,2107-00614,0.00,398.68,R,AJM FIXINGS & POWER TOOLS LTD,No
Http://opendatacommunities.org/id/metropolitan-district-council/leeds,Leeds City Council,31/07/2021,Resources and Housing,Leeds Building Services,Supplies and Services,Operational Furniture And Equipment,203,06/07/2021,2107-00615,0.00,69.66,R,AJM FIXINGS & POWER TOOLS LTD,No
Http://opendatacommunities.org/id/metropolitan-district-council/leeds,Leeds City Council,31/07/2021,Resources and Housing,Leeds Building Services,Supplies and Services,Operational Furniture And Equipment,203,06/07/2021,2107-00616,0.00,26.97,R,AJM FIXINGS & POWER TOOLS LTD,No
Http://opendatacommunities.org/id/metropolitan-district-council/leeds,Leeds City Council,31/07/2021,Resources and Housing,Leeds Building Services,Supplies and Services,Operational Furniture And Equipment,203,06/07/2021,2107-00617,0.00,216.56,R,AJM FIXINGS & POWER TOOLS LTD,No
Http://opendatacommunities.org/id/metropolitan-district-council/leeds,Leeds City Council,31/07/2021,Resources and Housing,Leeds Building Services,Supplies and Services,Operational Furniture And Equipment,203,06/07/2021,2107-00618,0.00,216.16,R,AJM FIXINGS & POWER TOOLS LTD,No
Http://opendatacommunities.org/id/metropolitan-district-council/leeds,Leeds City Council,31/07/2021,Resources and Housing,Leeds Building Services,Supplies and Services,Operational Furniture And Equipment,203,06/07/2021,2107-00619,0.00,299.00,R,AJM FIXINGS & POWER TOOLS LTD,No
Http://opendatacommunities.org/id/metropolitan-district-council/leeds,Leeds City Council,31/07/2021,Resources and Housing,Leeds Building Services,Supplies and Services,Operational Furniture And Equipment,203,06/07/2021,2107-00620,0.00,216.16,R,AJM FIXINGS & POWER TOOLS LTD,No
Http://opendatacommunities.org/id/metropolitan-district-council/leeds,Leeds City Council,31/07/2021,Resources and Housing,Leeds Building Services,Supplies and Services,Operational Furniture And Equipment,203,06/07/2021,2107-00621,0.00,359.16,R,AJM FIXINGS & POWER TOOLS LTD,No
Http://opendatacommunities.org/id/metropolitan-district-council/leeds,Leeds City Council,31/07/2021,Resources and Housing,Leeds Building Services,Capital,FURNITURE AND EQUIPMENT,5,08/07/2021,2107-00622,0.00,91012.27,C,AJM FIXINGS & POWER TOOLS LTD,No
Http://opendatacommunities.org/id/metropolitan-district-council/leeds,Leeds City Council,31/07/2021,Resources and Housing,Leeds Building Services,Supplies and Services,Operational Furniture And Equipment,203,12/07/2021,2107-00623,0.00,495.00,R,AJM FIXINGS & POWER TOOLS LTD,No
Http://opendatacommunities.org/id/metropolitan-district-council/leeds,Leeds City Council,31/07/2021,Resources and Housing,Leeds Building Services,Supplies and Services,Operational Furniture And Equipment,203,12/07/2021,2107-00624,0.00,117.30,R,AJM FIXINGS & POWER TOOLS LTD,No
Http://opendatacommunities.org/id/metropolitan-district-council/leeds,Leeds City Council,31/07/2021,Resources and Housing,Leeds Building Services,Supplies and Services,Operational Furniture And Equipment,203,13/07/2021,2107-00625,0.00,393.92,R,AJM FIXINGS & POWER TOOLS LTD,No
Http://opendatacommunities.org/id/metropolitan-district-council/leeds,Leeds City Council,31/07/2021,Resources and Housing,Leeds Building Services,Supplies and Services,Operational Furniture And Equipment,203,13/07/2021,2107-00626,0.00,2629.35,R,AJM FIXINGS & POWER TOOLS LTD,No
Http://opendatacommunities.org/id/metropolitan-district-council/leeds,Leeds City Council,31/07/2021,City Development,Economic Development,Supplies and Services,Grant Related Expenditure,290,01/07/2021,2107-00627,0.00,250.00,R,Akhtar Jaji,No
Http://opendatacommunities.org/id/metropolitan-district-council/leeds,Leeds City Council,31/07/2021,Resources and Housing,Sustainable Energy & Climate Change,Capital,OTHER COSTS,7,09/07/2021,2107-00628,0.00,2100.00,C,REDACTED COMMERCIAL CONFIDENTIALITY,No
Http://opendatacommunities.org/id/metropolitan-district-council/leeds,Leeds City Council,31/07/2021,City Development,Economic Development,Supplies and Services,Grant Related Expenditure,290,12/07/2021,2107-00629,0.00,250.00,R,Akmal Shafiq,No
Http://opendatacommunities.org/id/metropolitan-district-council/leeds,Leeds City Council,31/07/2021,Adults and Health,Services For Older People - 65 And Over,Agency Payments,Payments To Voluntary Organisations,561,01/07/2021,2107-00630,0.00,3000.00,R,Al Khidmat Centre,No
Http://opendatacommunities.org/id/metropolitan-district-council/leeds,Leeds City Council,31/07/2021,Children and Families,Social Care,Appropriations,Leaving Care Grants,635,15/06/2021,2107-00631,0.00,63.06,R,Al Murad,Yes
Http://opendatacommunities.org/id/metropolitan-district-council/leeds,Leeds City Council,31/07/2021,Resources and Housing,Sustainable Energy & Climate Change,Capital,OTHER COSTS,7,09/07/2021,2107-00632,0.00,2100.00,C,REDACTED COMMERCIAL CONFIDENTIALITY,No
Http://opendatacommunities.org/id/metropolitan-district-council/leeds,Leeds City Council,31/07/2021,Adults and Health,Services For Adults Under 65 Mental/Dis,Supplies and Services,Operational Furniture And Equipment,203,08/06/2021,2107-00633,0.00,333.33,R,Alams Beautiful Blinds,Yes
Http://opendatacommunities.org/id/metropolitan-district-council/leeds,Leeds City Council,31/07/2021,Communities and Environment,Benefits Welfare and Poverty,Supplies and Services,Grant Related Expenditure,298,12/07/2021,2107-00634,0.00,500.00,R,REDACTED PERSONAL DATA,No
Http://opendatacommunities.org/id/metropolitan-district-council/leeds,Leeds City Council,31/07/2021,Communities and Environment,Benefits Welfare and Poverty,Supplies and Services,Grant Related Expenditure,290,26/07/2021,2107-00635,0.00,500.00,R,REDACTED PERSONAL DATA,No
Http://opendatacommunities.org/id/metropolitan-district-council/leeds,Leeds City Council,31/07/2021,Children and Families,Partnerships & Health,Supplies and Services,Teaching Materials,202,28/05/2021,2107-00636,0.00,7.85,R,Alan Penn Irlen Clinic,Yes
Http://opendatacommunities.org/id/metropolitan-district-council/leeds,Leeds City Council,31/07/2021,Communities and Environment,Benefits Welfare and Poverty,Supplies and Services,Grant Related Expenditure,290,30/07/2021,2107-00637,0.00,500.00,R,REDACTED PERSONAL DATA,No
Http://opendatacommunities.org/id/metropolitan-district-council/leeds,Leeds City Council,31/07/2021,City Development,Recreation,External Income,Instructor Lead Sporting Fees (coaching),927,09/07/2021,2107-00638,0.00,59.90,R,REDACTED PERSONAL DATA,No
Http://opendatacommunities.org/id/metropolitan-district-council/leeds,Leeds City Council,31/07/2021,Children and Families,Social Care,Agency Payments,Services Rendered By Other Organisations,511,02/07/2021,2107-00639,0.00,769.35,R,REDACTED PERSONAL DATA,No
Http://opendatacommunities.org/id/metropolitan-district-council/leeds,Leeds City Council,31/07/2021,Communities and Environment,Benefits Welfare and Poverty,Supplies and Services,Grant Related Expenditure,298,02/07/2021,2107-00640,0.00,500.00,R,REDACTED PERSONAL DATA,No
Http://opendatacommunities.org/id/metropolitan-district-council/leeds,Leeds City Council,31/07/2021,Communities and Environment,Benefits Welfare and Poverty,Supplies and Services,Grant Related Expenditure,298,19/07/2021,2107-00641,0.00,500.00,R,REDACTED PERSONAL DATA,No
Http://opendatacommunities.org/id/metropolitan-district-council/leeds,Leeds City Council,31/07/2021,Communities and Environment,Communities,Supplies and Services,Computer Software & Equipment,214,21/07/2021,2107-00642,0.00,1228.33,R,Alcium Software Ltd,No
Http://opendatacommunities.org/id/metropolitan-district-council/leeds,Leeds City Council,31/07/2021,Children and Families,Social Care,Appropriations,Leaving Care Allowances,634,04/06/2021,2107-00643,0.00,12.33,R,Aldi,Yes
Http://opendatacommunities.org/id/metropolitan-district-council/leeds,Leeds City Council,31/07/2021,Children and Families,Social Care,Supplies and Services,Food & Drink,231,28/06/2021,2107-00644,0.00,65.47,R,Aldi,Yes
Http://opendatacommunities.org/id/metropolitan-district-council/leeds,Leeds City Council,31/07/2021,Communities and Environment,Parks and Countryside,Supplies and Services,Food & Drink,231,21/06/2021,2107-00645,0.00,3.60,R,Aldi 103 779,Yes
Http://opendatacommunities.org/id/metropolitan-district-council/leeds,Leeds City Council,31/07/2021,Children and Families,Social Care,Supplies and Services,Food & Drink,231,10/06/2021,2107-00646,0.00,7.98,R,Aldi 40 779,Yes
Http://opendatacommunities.org/id/metropolitan-district-council/leeds,Leeds City Council,31/07/2021,Resources and Housing,Strategic Housing Partnership & Support,Premises,Repairs & Adapts - Buildings,191,25/06/2021,2107-00647,0.00,14.78,R,Aldi 49 779,Yes
Http://opendatacommunities.org/id/metropolitan-district-council/leeds,Leeds City Council,31/07/2021,Children and Families,Social Care,Appropriations,Leaving Care Allowances,634,01/06/2021,2107-00648,0.00,24.21,R,Aldi 71 779,Yes
Http://opendatacommunities.org/id/metropolitan-district-council/leeds,Leeds City Council,31/07/2021,Children and Families,Social Care,Agency Payments,Placement Support,550,18/06/2021,2107-00649,0.00,20.35,R,Aldi 71 779,Yes
Http://opendatacommunities.org/id/metropolitan-district-council/leeds,Leeds City Council,31/07/2021,Resources and Housing,Strategic Housing Partnership & Support,Supplies and Services,Other Hired And Contracted Services,265,22/06/2021,2107-00650,0.00,30.35,R,Aldi 71 779,Yes
Http://opendatacommunities.org/id/metropolitan-district-council/leeds,Leeds City Council,31/07/2021,City Development,Recreation,Supplies and Services,Operational Furniture And Equipment,203,08/06/2021,2107-00651,0.00,3.98,R,Aldi 779-126,Yes
Http://opendatacommunities.org/id/metropolitan-district-council/leeds,Leeds City Council,31/07/2021,Children and Families,Social Care,Appropriations,Leaving Care Allowances,634,01/06/2021,2107-00652,0.00,5.71,R,Aldi 82 779,Yes
Http://opendatacommunities.org/id/metropolitan-district-council/leeds,Leeds City Council,31/07/2021,Children and Families,Social Care,Supplies and Services,Food & Drink,231,11/06/2021,2107-00653,0.00,36.86,R,Aldi 85 779,Yes
Http://opendatacommunities.org/id/metropolitan-district-council/leeds,Leeds City Council,31/07/2021,Children and Families,Social Care,Premises,Cleaning Maintenance & Toiletries,127,14/06/2021,2107-00654,0.00,2.41,R,Aldi 85 779,Yes
Http://opendatacommunities.org/id/metropolitan-district-council/leeds,Leeds City Council,31/07/2021,Children and Families,Social Care,Supplies and Services,Food & Drink,231,14/06/2021,2107-00655,0.00,2.88,R,Aldi 85 779,Yes
Http://opendatacommunities.org/id/metropolitan-district-council/leeds,Leeds City Council,31/07/2021,Children and Families,Social Care,Supplies and Services,Food & Drink,231,07/06/2021,2107-00656,0.00,74.78,R,Aldi 89 779,Yes
Http://opendatacommunities.org/id/metropolitan-district-council/leeds,Leeds City Council,31/07/2021,Children and Families,Social Care,Supplies and Services,Food & Drink,231,14/06/2021,2107-00657,0.00,85.86,R,Aldi 89 779,Yes
Http://opendatacommunities.org/id/metropolitan-district-council/leeds,Leeds City Council,31/07/2021,Children and Families,Social Care,Supplies and Services,Operational Furniture And Equipment,203,14/06/2021,2107-00658,0.00,24.98,R,Aldi 89 779,Yes
Http://opendatacommunities.org/id/metropolitan-district-council/leeds,Leeds City Council,31/07/2021,Children and Families,Social Care,Premises,Cleaning Maintenance & Toiletries,127,14/06/2021,2107-00659,0.00,8.49,R,Aldi 89 779,Yes
Http://opendatacommunities.org/id/metropolitan-district-council/leeds,Leeds City Council,31/07/2021,Children and Families,Social Care,Supplies and Services,Food & Drink,231,22/06/2021,2107-00660,0.00,10.68,R,Aldi 89 779,Yes
Http://opendatacommunities.org/id/metropolitan-district-council/leeds,Leeds City Council,31/07/2021,Children and Families,Social Care,Supplies and Services,Food & Drink,231,28/05/2021,2107-00661,0.00,31.05,R,Aldi Stores,Yes
Http://opendatacommunities.org/id/metropolitan-district-council/leeds,Leeds City Council,31/07/2021,Children and Families,Social Care,Supplies and Services,Food & Drink,231,04/06/2021,2107-00662,0.00,75.19,R,Aldi Stores,Yes
Http://opendatacommunities.org/id/metropolitan-district-council/leeds,Leeds City Council,31/07/2021,Children and Families,Social Care,Appropriations,Leaving Care Allowances,634,28/06/2021,2107-00663,0.00,15.25,R,Aldi Stores,Yes
Http://opendatacommunities.org/id/metropolitan-district-council/leeds,Leeds City Council,31/07/2021,Children and Families,Social Care,Agency Payments,Contact,548,06/07/2021,2107-00664,0.00,9.40,R,REDACTED PERSONAL DATA,No
Http://opendatacommunities.org/id/metropolitan-district-council/leeds,Leeds City Council,31/07/2021,City Development,Economic Development,Supplies and Services,Grant Related Expenditure,290,14/07/2021,2107-00665,0.00,250.00,R,Alemseged Tesfamichael,No
Http://opendatacommunities.org/id/metropolitan-district-council/leeds,Leeds City Council,31/07/2021,Communities and Environment,Customer Access,Supplies and Services,Bought In Professional Services,277,07/07/2021,2107-00666,0.00,9.00,R,Alena Zueva,No
Http://opendatacommunities.org/id/metropolitan-district-council/leeds,Leeds City Council,31/07/2021,City Development,Economic Development,Supplies and Services,Grant Related Expenditure,290,23/07/2021,2107-00667,0.00,500.00,R,Alessandro Roberto,No
Http://opendatacommunities.org/id/metropolitan-district-council/leeds,Leeds City Council,31/07/2021,City Development,Economic Development,Supplies and Services,Grant Related Expenditure,290,28/07/2021,2107-00668,0.00,250.00,R,Alessandro Roberto,No
Http://opendatacommunities.org/id/metropolitan-district-council/leeds,Leeds City Council,31/07/2021,Communities and Environment,Benefits Welfare and Poverty,Supplies and Services,Grant Related Expenditure,298,21/07/2021,2107-00669,0.00,500.00,R,REDACTED PERSONAL DATA,No
Http://opendatacommunities.org/id/metropolitan-district-council/leeds,Leeds City Council,31/07/2021,City Development,Economic Development,Supplies and Services,Grant Related Expenditure,290,30/07/2021,2107-00670,0.00,1160.00,R,Alex Fawcett,No
Http://opendatacommunities.org/id/metropolitan-district-council/leeds,Leeds City Council,31/07/2021,Children and Families,Social Care,Supplies and Services,General Amenity For Clients/Residents,285,15/07/2021,2107-00671,0.00,19.99,R,REDACTED PERSONAL DATA,No
Http://opendatacommunities.org/id/metropolitan-district-council/leeds,Leeds City Council,31/07/2021,Children and Families,Social Care,Transport,Public Transport Expenses,310,15/07/2021,2107-00672,0.00,4.24,R,REDACTED PERSONAL DATA,No
Http://opendatacommunities.org/id/metropolitan-district-council/leeds,Leeds City Council,31/07/2021,City Development,Economic Development,Supplies and Services,Grant Related Expenditure,290,16/07/2021,2107-00673,0.00,250.00,R,Alex Jacob,No
Http://opendatacommunities.org/id/metropolitan-district-council/leeds,Leeds City Council,31/07/2021,Children and Families,Learning,Supplies and Services,Bought In Professional Services,277,13/07/2021,2107-00674,0.00,499.00,R,Alex Manners,No
Http://opendatacommunities.org/id/metropolitan-district-council/leeds,Leeds City Council,31/07/2021,Communities and Environment,Benefits Welfare and Poverty,Supplies and Services,Grant Related Expenditure,298,09/07/2021,2107-00675,0.00,500.00,R,REDACTED PERSONAL DATA,No
Http://opendatacommunities.org/id/metropolitan-district-council/leeds,Leeds City Council,31/07/2021,Communities and Environment,Benefits Welfare and Poverty,Supplies and Services,Grant Related Expenditure,298,29/07/2021,2107-00676,0.00,500.00,R,REDACTED PERSONAL DATA,No
Http://opendatacommunities.org/id/metropolitan-district-council/leeds,Leeds City Council,31/07/2021,Children and Families,Social Care,Internal Recharges,Legal Disbursements,411,09/07/2021,2107-00677,0.00,811.00,R,Alex Taylor,No
Http://opendatacommunities.org/id/metropolitan-district-council/leeds,Leeds City Council,31/07/2021,City Development,Economic Development,Supplies and Services,Grant Related Expenditure,290,14/07/2021,2107-00678,0.00,250.00,R,Alex Uwayezu,No
Http://opendatacommunities.org/id/metropolitan-district-council/leeds,Leeds City Council,31/07/2021,Communities and Environment,Benefits Welfare and Poverty,Supplies and Services,Grant Related Expenditure,290,22/07/2021,2107-00679,0.00,500.00,R,REDACTED PERSONAL DATA,No
Http://opendatacommunities.org/id/metropolitan-district-council/leeds,Leeds City Council,31/07/2021,Resources and Housing,Commercial Services,Supplies and Services,Other Hired And Contracted Services,265,07/07/2021,2107-00680,0.00,70.00,R,ALEX WAGG,No
Http://opendatacommunities.org/id/metropolitan-district-council/leeds,Leeds City Council,31/07/2021,Resources and Housing,Commercial Services,Supplies and Services,Other Hired And Contracted Services,265,07/07/2021,2107-00681,0.00,300.00,R,ALEX WAGG,No
Http://opendatacommunities.org/id/metropolitan-district-council/leeds,Leeds City Council,31/07/2021,Resources and Housing,Commercial Services,Supplies and Services,Other Hired And Contracted Services,265,07/07/2021,2107-00682,0.00,277.00,R,ALEX WAGG,No
Http://opendatacommunities.org/id/metropolitan-district-council/leeds,Leeds City Council,31/07/2021,Resources and Housing,Commercial Services,Supplies and Services,Other Hired And Contracted Services,265,09/07/2021,2107-00683,0.00,80.00,R,ALEX WAGG,No
Http://opendatacommunities.org/id/metropolitan-district-council/leeds,Leeds City Council,31/07/2021,Resources and Housing,Commercial Services,Supplies and Services,Other Hired And Contracted Services,265,09/07/2021,2107-00684,0.00,30.00,R,ALEX WAGG,No
Http://opendatacommunities.org/id/metropolitan-district-council/leeds,Leeds City Council,31/07/2021,Resources and Housing,Commercial Services,Supplies and Services,Other Hired And Contracted Services,265,09/07/2021,2107-00685,0.00,40.00,R,ALEX WAGG,No
Http://opendatacommunities.org/id/metropolitan-district-council/leeds,Leeds City Council,31/07/2021,Resources and Housing,Commercial Services,Supplies and Services,Other Hired And Contracted Services,265,16/07/2021,2107-00686,0.00,190.00,R,ALEX WAGG,No
Http://opendatacommunities.org/id/metropolitan-district-council/leeds,Leeds City Council,31/07/2021,Resources and Housing,Commercial Services,Supplies and Services,Other Hired And Contracted Services,265,16/07/2021,2107-00687,0.00,350.00,R,ALEX WAGG,No
Http://opendatacommunities.org/id/metropolitan-district-council/leeds,Leeds City Council,31/07/2021,Resources and Housing,Commercial Services,Supplies and Services,Other Hired And Contracted Services,265,16/07/2021,2107-00688,0.00,280.00,R,ALEX WAGG,No
Http://opendatacommunities.org/id/metropolitan-district-council/leeds,Leeds City Council,31/07/2021,Resources and Housing,Commercial Services,Supplies and Services,Other Hired And Contracted Services,265,26/07/2021,2107-00689,0.00,300.00,R,ALEX WAGG,No
Http://opendatacommunities.org/id/metropolitan-district-council/leeds,Leeds City Council,31/07/2021,Resources and Housing,Commercial Services,Supplies and Services,Other Hired And Contracted Services,265,30/07/2021,2107-00690,0.00,120.00,R,ALEX WAGG,No
Http://opendatacommunities.org/id/metropolitan-district-council/leeds,Leeds City Council,31/07/2021,Communities and Environment,Benefits Welfare and Poverty,Supplies and Services,Grant Related Expenditure,298,28/07/2021,2107-00691,0.00,500.00,R,REDACTED PERSONAL DATA,No
Http://opendatacommunities.org/id/metropolitan-district-council/leeds,Leeds City Council,31/07/2021,City Development,Economic Development,Supplies and Services,Grant Related Expenditure,290,12/07/2021,2107-00692,0.00,250.00,R,Alexander Jeans Ltd,No
Http://opendatacommunities.org/id/metropolitan-district-council/leeds,Leeds City Council,31/07/2021,Communities and Environment,Benefits Welfare and Poverty,Supplies and Services,Grant Related Expenditure,298,28/07/2021,2107-00693,0.00,500.00,R,REDACTED PERSONAL DATA,No
Http://opendatacommunities.org/id/metropolitan-district-council/leeds,Leeds City Council,31/07/2021,Adults and Health,Services For Older People - 65 And Over,Agency Payments,Residential Care Dementia,571,21/07/2021,2107-00694,0.00,22321.27,R,ALEXANDER RESIDENTIAL HOME,No
Http://opendatacommunities.org/id/metropolitan-district-council/leeds,Leeds City Council,31/07/2021,Adults and Health,Services For Older People - 65 And Over,Agency Payments,Residential,580,21/07/2021,2107-00695,0.00,13324.36,R,ALEXANDER RESIDENTIAL HOME,No
Http://opendatacommunities.org/id/metropolitan-district-council/leeds,Leeds City Council,31/07/2021,Adults and Health,Services For Older People Under 65 P/Dis,Agency Payments,Residential Care Dementia,571,21/07/2021,2107-00696,0.00,2094.40,R,ALEXANDER RESIDENTIAL HOME,No
Http://opendatacommunities.org/id/metropolitan-district-council/leeds,Leeds City Council,31/07/2021,Children and Families,Social Care,Agency Payments,Section 17,551,27/06/2021,2107-00697,0.00,44.00,R,Alexander Thomson Hote,Yes
Http://opendatacommunities.org/id/metropolitan-district-council/leeds,Leeds City Council,31/07/2021,Communities and Environment,Customer Access,Supplies and Services,Bought In Professional Services,277,07/07/2021,2107-00698,0.00,144.00,R,Alexandra Costenco,No
Http://opendatacommunities.org/id/metropolitan-district-council/leeds,Leeds City Council,31/07/2021,Communities and Environment,Customer Access,Supplies and Services,Bought In Professional Services,277,07/07/2021,2107-00699,0.00,45.00,R,Alexandra Costenco,No
Http://opendatacommunities.org/id/metropolitan-district-council/leeds,Leeds City Council,31/07/2021,Communities and Environment,Customer Access,Supplies and Services,Bought In Professional Services,277,16/07/2021,2107-00700,0.00,63.00,R,Alexandra Costenco,No
Http://opendatacommunities.org/id/metropolitan-district-council/leeds,Leeds City Council,31/07/2021,Communities and Environment,Customer Access,Supplies and Services,Bought In Professional Services,277,21/07/2021,2107-00701,0.00,18.00,R,Alexandra Costenco,No
Http://opendatacommunities.org/id/metropolitan-district-council/leeds,Leeds City Council,31/07/2021,Adults and Health,Services For Older People - 65 And Over,Agency Payments,Residential Care Dementia,571,21/07/2021,2107-00702,0.00,5646.96,R,ALEXANDRA COURT,No
Http://opendatacommunities.org/id/metropolitan-district-council/leeds,Leeds City Council,31/07/2021,Adults and Health,Services For Older People - 65 And Over,Agency Payments,Residential,580,21/07/2021,2107-00703,0.00,6138.04,R,ALEXANDRA COURT,No
Http://opendatacommunities.org/id/metropolitan-district-council/leeds,Leeds City Council,31/07/2021,Communities and Environment,Benefits Welfare and Poverty,Supplies and Services,Grant Related Expenditure,290,21/07/2021,2107-00704,0.00,500.00,R,REDACTED PERSONAL DATA,No
Http://opendatacommunities.org/id/metropolitan-district-council/leeds,Leeds City Council,31/07/2021,Children and Families,Social Care,Agency Payments,Services Rendered By Other Organisations,511,07/07/2021,2107-00705,0.00,783.90,R,REDACTED PERSONAL DATA,No
Http://opendatacommunities.org/id/metropolitan-district-council/leeds,Leeds City Council,31/07/2021,Adults and Health,Services For Older People - 65 And Over,Supplies and Services,Clothing & Uniforms,241,28/05/2021,2107-00706,0.00,26.98,R,Alexandra Website,Yes
Http://opendatacommunities.org/id/metropolitan-district-council/leeds,Leeds City Council,31/07/2021,Adults and Health,Home Care Services,Supplies and Services,Clothing & Uniforms,241,28/06/2021,2107-00707,0.00,20.98,R,Alexandra Website,Yes
Http://opendatacommunities.org/id/metropolitan-district-council/leeds,Leeds City Council,31/07/2021,Communities and Environment,Benefits Welfare and Poverty,Supplies and Services,Grant Related Expenditure,298,21/07/2021,2107-00708,0.00,500.00,R,REDACTED PERSONAL DATA,No
Http://opendatacommunities.org/id/metropolitan-district-council/leeds,Leeds City Council,31/07/2021,Communities and Environment,Benefits Welfare and Poverty,Supplies and Services,Grant Related Expenditure,290,07/07/2021,2107-00709,0.00,500.00,R,REDACTED PERSONAL DATA,No
Http://opendatacommunities.org/id/metropolitan-district-council/leeds,Leeds City Council,31/07/2021,City Development,Economic Development,Supplies and Services,Grant Related Expenditure,290,30/07/2021,2107-00710,0.00,832.00,R,Aleyah Thompson,No
Http://opendatacommunities.org/id/metropolitan-district-council/leeds,Leeds City Council,31/07/2021,Children and Families,Social Care,Appropriations,Leaving Care Allowances,634,09/07/2021,2107-00711,0.00,49.25,R,REDACTED PERSONAL DATA,No
Http://opendatacommunities.org/id/metropolitan-district-council/leeds,Leeds City Council,31/07/2021,City Development,Economic Development,Supplies and Services,Grant Related Expenditure,290,09/07/2021,2107-00712,0.00,2100.00,R,Alfies Coffee And Patisserie,No
Http://opendatacommunities.org/id/metropolitan-district-council/leeds,Leeds City Council,31/07/2021,Communities and Environment,Communities,Capital,OTHER COSTS,7,01/07/2021,2107-00713,0.00,1620.00,C,Alfred Bagnall & Sons (Leeds) Ltd,No
Http://opendatacommunities.org/id/metropolitan-district-council/leeds,Leeds City Council,31/07/2021,Communities and Environment,Communities,Capital,OTHER COSTS,7,01/07/2021,2107-00714,0.00,2410.00,C,Alfred Bagnall & Sons (Leeds) Ltd,No
Http://opendatacommunities.org/id/metropolitan-district-council/leeds,Leeds City Council,31/07/2021,Communities and Environment,Communities,Capital,OTHER COSTS,7,01/07/2021,2107-00715,0.00,1140.00,C,Alfred Bagnall & Sons (Leeds) Ltd,No
Http://opendatacommunities.org/id/metropolitan-district-council/leeds,Leeds City Council,31/07/2021,City Development,Libraries Arts & Heritage,Supplies and Services,Other Hired And Contracted Services,265,01/07/2021,2107-00716,0.00,3120.00,R,Alfred Bagnall & Sons (Leeds) Ltd,No
Http://opendatacommunities.org/id/metropolitan-district-council/leeds,Leeds City Council,31/07/2021,Resources and Housing,Leeds Building Services,Supplies and Services,Other Hired And Contracted Services,265,13/07/2021,2107-00717,0.00,2970.00,R,Alfred Bagnall & Sons (Leeds) Ltd,No
Http://opendatacommunities.org/id/metropolitan-district-council/leeds,Leeds City Council,31/07/2021,Communities and Environment,Community Safety,Supplies and Services,Operational Furniture And Equipment,203,15/07/2021,2107-00718,0.00,1180.00,R,Alfred Bagnall & Sons (Leeds) Ltd,No
Http://opendatacommunities.org/id/metropolitan-district-council/leeds,Leeds City Council,31/07/2021,Communities and Environment,Elections Licensing and Registration,Supplies and Services,Office Furniture & Equipment,201,20/07/2021,2107-00719,0.00,3430.00,R,Alfred Bagnall & Sons (Leeds) Ltd,No
Http://opendatacommunities.org/id/metropolitan-district-council/leeds,Leeds City Council,31/07/2021,Communities and Environment,Benefits Welfare and Poverty,Supplies and Services,Grant Related Expenditure,298,26/07/2021,2107-00720,0.00,500.00,R,REDACTED PERSONAL DATA,No
Http://opendatacommunities.org/id/metropolitan-district-council/leeds,Leeds City Council,31/07/2021,City Development,Economic Development,Supplies and Services,Grant Related Expenditure,290,19/07/2021,2107-00721,0.00,250.00,R,Ali Ashgar,No
Http://opendatacommunities.org/id/metropolitan-district-council/leeds,Leeds City Council,31/07/2021,Communities and Environment,Customer Access,Supplies and Services,Bought In Professional Services,277,07/07/2021,2107-00722,0.00,18.00,R,Ali Pourakaberian,No
Http://opendatacommunities.org/id/metropolitan-district-council/leeds,Leeds City Council,31/07/2021,Communities and Environment,Customer Access,Supplies and Services,Bought In Professional Services,277,16/07/2021,2107-00723,0.00,10.00,R,Ali Pourakaberian,No
Http://opendatacommunities.org/id/metropolitan-district-council/leeds,Leeds City Council,31/07/2021,Communities and Environment,Customer Access,Supplies and Services,Bought In Professional Services,277,16/07/2021,2107-00724,0.00,18.00,R,Ali Pourakaberian,No
Http://opendatacommunities.org/id/metropolitan-district-council/leeds,Leeds City Council,31/07/2021,Communities and Environment,Customer Access,Supplies and Services,Bought In Professional Services,277,16/07/2021,2107-00725,0.00,13.50,R,Ali Pourakaberian,No
Http://opendatacommunities.org/id/metropolitan-district-council/leeds,Leeds City Council,31/07/2021,Communities and Environment,Customer Access,Supplies and Services,Bought In Professional Services,277,21/07/2021,2107-00726,0.00,18.00,R,Ali Pourakaberian,No
Http://opendatacommunities.org/id/metropolitan-district-council/leeds,Leeds City Council,31/07/2021,Communities and Environment,Customer Access,Supplies and Services,Bought In Professional Services,277,21/07/2021,2107-00727,0.00,18.00,R,Ali Pourakaberian,No
Http://opendatacommunities.org/id/metropolitan-district-council/leeds,Leeds City Council,31/07/2021,Communities and Environment,Customer Access,Supplies and Services,Bought In Professional Services,277,29/07/2021,2107-00728,0.00,31.50,R,Ali Pourakaberian,No
Http://opendatacommunities.org/id/metropolitan-district-council/leeds,Leeds City Council,31/07/2021,City Development,Economic Development,Supplies and Services,Grant Related Expenditure,290,12/07/2021,2107-00729,0.00,250.00,R,Ali Yalcin,No
Http://opendatacommunities.org/id/metropolitan-district-council/leeds,Leeds City Council,31/07/2021,Communities and Environment,Benefits Welfare and Poverty,Supplies and Services,Grant Related Expenditure,290,22/07/2021,2107-00730,0.00,500.00,R,REDACTED PERSONAL DATA,No
Http://opendatacommunities.org/id/metropolitan-district-council/leeds,Leeds City Council,31/07/2021,Communities and Environment,Benefits Welfare and Poverty,Supplies and Services,Grant Related Expenditure,298,27/07/2021,2107-00731,0.00,500.00,R,REDACTED PERSONAL DATA,No
Http://opendatacommunities.org/id/metropolitan-district-council/leeds,Leeds City Council,31/07/2021,Communities and Environment,Benefits Welfare and Poverty,Supplies and Services,Grant Related Expenditure,298,16/07/2021,2107-00732,0.00,500.00,R,REDACTED PERSONAL DATA,No
Http://opendatacommunities.org/id/metropolitan-district-council/leeds,Leeds City Council,31/07/2021,Communities and Environment,Benefits Welfare and Poverty,Supplies and Services,Grant Related Expenditure,290,27/07/2021,2107-00733,0.00,500.00,R,REDACTED PERSONAL DATA,No
Http://opendatacommunities.org/id/metropolitan-district-council/leeds,Leeds City Council,31/07/2021,Communities and Environment,Benefits Welfare and Poverty,Supplies and Services,Grant Related Expenditure,298,28/07/2021,2107-00734,0.00,500.00,R,REDACTED PERSONAL DATA,No
Http://opendatacommunities.org/id/metropolitan-district-council/leeds,Leeds City Council,31/07/2021,City Development,Recreation,Supplies and Services,Bought In Professional Services,277,14/07/2021,2107-00735,0.00,60.00,R,Alice M Richardson,No
Http://opendatacommunities.org/id/metropolitan-district-council/leeds,Leeds City Council,31/07/2021,City Development,Recreation,Supplies and Services,Bought In Professional Services,277,23/07/2021,2107-00736,0.00,80.00,R,Alice M Richardson,No
Http://opendatacommunities.org/id/metropolitan-district-council/leeds,Leeds City Council,31/07/2021,Communities and Environment,Benefits Welfare and Poverty,Supplies and Services,Grant Related Expenditure,290,06/07/2021,2107-00737,0.00,500.00,R,REDACTED PERSONAL DATA,No
Http://opendatacommunities.org/id/metropolitan-district-council/leeds,Leeds City Council,31/07/2021,City Development,Economic Development,Supplies and Services,Grant Related Expenditure,298,09/07/2021,2107-00738,0.00,2000.00,R,Alice Rose Needham,No
Http://opendatacommunities.org/id/metropolitan-district-council/leeds,Leeds City Council,31/07/2021,Children and Families,Social Care,External Income,Nursery Fees Income,926,14/07/2021,2107-00739,0.00,1400.00,R,REDACTED PERSONAL DATA,No
Http://opendatacommunities.org/id/metropolitan-district-council/leeds,Leeds City Council,31/07/2021,Communities and Environment,Benefits Welfare and Poverty,Supplies and Services,Grant Related Expenditure,298,29/07/2021,2107-00740,0.00,500.00,R,REDACTED PERSONAL DATA,No
Http://opendatacommunities.org/id/metropolitan-district-council/leeds,Leeds City Council,31/07/2021,Children and Families,Social Care,Agency Payments,Services Rendered By Other Organisations,511,02/07/2021,2107-00741,0.00,739.25,R,REDACTED PERSONAL DATA,No
Http://opendatacommunities.org/id/metropolitan-district-council/leeds,Leeds City Council,31/07/2021,City Development,Economic Development,Supplies and Services,Grant Related Expenditure,290,14/07/2021,2107-00742,0.00,500.00,R,Alison Finburg,No
Http://opendatacommunities.org/id/metropolitan-district-council/leeds,Leeds City Council,31/07/2021,City Development,Economic Development,Supplies and Services,Grant Related Expenditure,290,28/07/2021,2107-00743,0.00,250.00,R,Alison Finburg,No
Http://opendatacommunities.org/id/metropolitan-district-council/leeds,Leeds City Council,31/07/2021,Strategic Landlord,Property and Contracts,Internal Recharges,Legal Disbursements,411,02/07/2021,2107-00744,0.00,1800.00,R,Alison Law Solicitors,No
Http://opendatacommunities.org/id/metropolitan-district-council/leeds,Leeds City Council,31/07/2021,Strategic Landlord,Property and Contracts,Internal Recharges,Legal Disbursements,411,06/07/2021,2107-00745,0.00,1761.74,R,Alison Law Solicitors,No
Http://opendatacommunities.org/id/metropolitan-district-council/leeds,Leeds City Council,31/07/2021,Strategic Landlord,Property and Contracts,Supplies and Services,Insurance Claims,248,12/07/2021,2107-00746,0.00,5250.00,R,Alison Law Solicitors,No
Http://opendatacommunities.org/id/metropolitan-district-council/leeds,Leeds City Council,31/07/2021,Strategic Landlord,Property and Contracts,Internal Recharges,Legal Disbursements,411,29/07/2021,2107-00747,0.00,2629.59,R,Alison Law Solicitors,No
Http://opendatacommunities.org/id/metropolitan-district-council/leeds,Leeds City Council,31/07/2021,City Development,Libraries Arts & Heritage,Supplies and Services,Bought In Professional Services,277,21/07/2021,2107-00748,0.00,400.00,R,ALISON MCINTYRE,No
Http://opendatacommunities.org/id/metropolitan-district-council/leeds,Leeds City Council,31/07/2021,City Development,Libraries Arts & Heritage,Supplies and Services,Other Hired And Contracted Services,265,28/07/2021,2107-00749,0.00,400.00,R,Alison Rhind,No
Http://opendatacommunities.org/id/metropolitan-district-council/leeds,Leeds City Council,31/07/2021,City Development,Economic Development,Supplies and Services,Grant Related Expenditure,290,19/07/2021,2107-00750,0.00,250.00,R,Alison Walker Health & Beauty,No
Http://opendatacommunities.org/id/metropolitan-district-council/leeds,Leeds City Council,31/07/2021,Children and Families,Social Care,Supplies and Services,Other Hired And Contracted Services,265,12/07/2021,2107-00751,0.00,25.50,R,REDACTED PERSONAL DATA,No
Http://opendatacommunities.org/id/metropolitan-district-council/leeds,Leeds City Council,31/07/2021,Children and Families,Social Care,Transport,Car & Motorcycle Allowances,311,12/07/2021,2107-00752,0.00,4.05,R,REDACTED PERSONAL DATA,No
Http://opendatacommunities.org/id/metropolitan-district-council/leeds,Leeds City Council,31/07/2021,City Development,Economic Development,Supplies and Services,Grant Related Expenditure,290,30/07/2021,2107-00753,0.00,2000.00,R,Alivini North Limited,No
Http://opendatacommunities.org/id/metropolitan-district-council/leeds,Leeds City Council,31/07/2021,Communities and Environment,Benefits Welfare and Poverty,Supplies and Services,Grant Related Expenditure,298,19/07/2021,2107-00754,0.00,500.00,R,REDACTED PERSONAL DATA,No
Http://opendatacommunities.org/id/metropolitan-district-council/leeds,Leeds City Council,31/07/2021,City Development,Economic Development,Supplies and Services,Grant Related Expenditure,290,16/07/2021,2107-00755,0.00,1000.00,R,All Floors Direct Limited,No
Http://opendatacommunities.org/id/metropolitan-district-council/leeds,Leeds City Council,31/07/2021,City Development,Economic Development,Supplies and Services,Grant Related Expenditure,290,28/07/2021,2107-00756,0.00,500.00,R,All Floors Direct Limited,No
Http://opendatacommunities.org/id/metropolitan-district-council/leeds,Leeds City Council,31/07/2021,Children and Families,Social Care,Agency Payments,Services Rendered By Other Organisations,511,02/07/2021,2107-00757,0.00,10088.52,R,All Stars Childcare,No
Http://opendatacommunities.org/id/metropolitan-district-council/leeds,Leeds City Council,31/07/2021,Children and Families,Social Care,Agency Payments,Services Rendered By Voluntary Sector,505,07/07/2021,2107-00758,0.00,836.16,R,All Stars Childcare,No
Http://opendatacommunities.org/id/metropolitan-district-council/leeds,Leeds City Council,31/07/2021,Communities and Environment,Benefits Welfare and Poverty,Supplies and Services,Grant Related Expenditure,290,16/07/2021,2107-00759,0.00,500.00,R,REDACTED PERSONAL DATA,No
Http://opendatacommunities.org/id/metropolitan-district-council/leeds,Leeds City Council,31/07/2021,Adults and Health,Services For Adults Under 65 Mental/Dis,Supplies and Services,Operational Furniture And Equipment,203,09/07/2021,2107-00760,0.00,90.00,R,ALLANSOUND COMMUNICATIONS,No
Http://opendatacommunities.org/id/metropolitan-district-council/leeds,Leeds City Council as Accountable Body,31/07/2021,Social Services Pooled Budgets,Jcs For People With Learning Disabilitie,Agency Payments,Sheltered Accommodation,569,21/07/2021,2107-00761,0.00,21342.00,R,Allerton Avenue,No
Http://opendatacommunities.org/id/metropolitan-district-council/leeds,Leeds City Council,31/07/2021,City Development,Economic Development,Supplies and Services,Grant Related Expenditure,290,21/07/2021,2107-00762,0.00,5933.75,R,Allerton Builders Leeds Limited,No
Http://opendatacommunities.org/id/metropolitan-district-council/leeds,Leeds City Council,31/07/2021,Adults and Health,Services For Older People - 65 And Over,Agency Payments,Nursing Care Dementia,574,21/07/2021,2107-00763,0.00,2390.08,R,ALLERTON PARK N H,No
Http://opendatacommunities.org/id/metropolitan-district-council/leeds,Leeds City Council,31/07/2021,Resources and Housing,Finance,Supplies and Services,Bank Charges,263,07/07/2021,2107-00764,0.00,146.31,R,ALLIANCE & LEICESTER COMMERCIAL BANK,No
Http://opendatacommunities.org/id/metropolitan-district-council/leeds,Leeds City Council,31/07/2021,Resources and Housing,Finance,Supplies and Services,Bank Charges,263,07/07/2021,2107-00765,0.00,100.19,R,ALLIANCE & LEICESTER COMMERCIAL BANK,No
Http://opendatacommunities.org/id/metropolitan-district-council/leeds,Leeds City Council,31/07/2021,Resources and Housing,Commercial Services,Supplies and Services,Operational Materials,205,05/07/2021,2107-00766,0.00,149.64,R,ALLIANCE DISPOSABLES LTD,No
Http://opendatacommunities.org/id/metropolitan-district-council/leeds,Leeds City Council,31/07/2021,Resources and Housing,Commercial Services,Supplies and Services,Operational Materials,205,05/07/2021,2107-00767,0.00,74.82,R,ALLIANCE DISPOSABLES LTD,No
Http://opendatacommunities.org/id/metropolitan-district-council/leeds,Leeds City Council,31/07/2021,Resources and Housing,Commercial Services,Supplies and Services,Operational Materials,205,07/07/2021,2107-00768,0.00,149.64,R,ALLIANCE DISPOSABLES LTD,No
Http://opendatacommunities.org/id/metropolitan-district-council/leeds,Leeds City Council,31/07/2021,Resources and Housing,Commercial Services,Supplies and Services,Operational Materials,205,07/07/2021,2107-00769,0.00,112.23,R,ALLIANCE DISPOSABLES LTD,No
Http://opendatacommunities.org/id/metropolitan-district-council/leeds,Leeds City Council,31/07/2021,Resources and Housing,Commercial Services,Supplies and Services,Operational Materials,205,07/07/2021,2107-00770,0.00,187.04,R,ALLIANCE DISPOSABLES LTD,No
Http://opendatacommunities.org/id/metropolitan-district-council/leeds,Leeds City Council,31/07/2021,Resources and Housing,Commercial Services,Supplies and Services,Operational Materials,205,07/07/2021,2107-00771,0.00,61.86,R,ALLIANCE DISPOSABLES LTD,No
Http://opendatacommunities.org/id/metropolitan-district-council/leeds,Leeds City Council,31/07/2021,Resources and Housing,Commercial Services,Supplies and Services,Operational Materials,205,07/07/2021,2107-00772,0.00,74.82,R,ALLIANCE DISPOSABLES LTD,No
Http://opendatacommunities.org/id/metropolitan-district-council/leeds,Leeds City Council,31/07/2021,Resources and Housing,Commercial Services,Supplies and Services,Operational Materials,205,07/07/2021,2107-00773,0.00,224.46,R,ALLIANCE DISPOSABLES LTD,No
Http://opendatacommunities.org/id/metropolitan-district-council/leeds,Leeds City Council,31/07/2021,Resources and Housing,Commercial Services,Supplies and Services,Operational Materials,205,07/07/2021,2107-00774,0.00,37.41,R,ALLIANCE DISPOSABLES LTD,No
Http://opendatacommunities.org/id/metropolitan-district-council/leeds,Leeds City Council,31/07/2021,Resources and Housing,Commercial Services,Supplies and Services,Operational Materials,205,07/07/2021,2107-00775,0.00,112.23,R,ALLIANCE DISPOSABLES LTD,No
Http://opendatacommunities.org/id/metropolitan-district-council/leeds,Leeds City Council,31/07/2021,Resources and Housing,Commercial Services,Supplies and Services,Operational Materials,205,07/07/2021,2107-00776,0.00,112.23,R,ALLIANCE DISPOSABLES LTD,No
